Workbook

Sheet 四支股票
A1: 大盤^TWII | E1: 2454-聯發科 | I1: 2834-台企銀 | M1: 1215-卜蜂 | Q1: 8069-元太
A3: 日期 | B3: 未調整 收盤價（元） | C3: 大盤報酬率 | D3: 大盤報酬率-Ln | E3: 日期 | F3: 未調整 收盤價（元） | G3: 報酬率(聯發科) | H3: 報酬率Ln(聯發科) | I3: 日期 | J3: 未調整 收盤價（元） | K3: 報酬率(台企銀) | L3: 報酬率Ln(台企銀) | M3: 日期 | N3: 未調整 收盤價（元） | O3: 報酬率(卜蜂) | P3: 報酬率Ln(卜蜂) | Q3: 日期 | R3: 未調整 收盤價（元） | S3: 報酬率(元太) | T3: 報酬率Ln(元太)
A4: 2021-01-04 | B4: 14902.03027 | C4: =(B5-B4)/B4 -> 0.006576285124 | D4: =LN(B5/B4) -> 0.006554755698 | E4: 2021-01-04 | F4: 792 | G4: =(F5-F4)/F4 -> 0.006313131313 | H4: =LN(F5/F4) -> 0.006293286976 | I4: 2021-01-04 | J4: 9.055656 | K4: =(J5-J4)/J4 -> 0.002059707215 | L4: =LN(J5/J4) -> 0.002057588926 | M4: 2021-01-04 | N4: 66.818184 | O4: =(N5-N4)/N4 -> -0.008163286808 | P4: =LN(N5/N4) -> -0.008196788883 | Q4: 2021-01-04 | R4: 48.5 | S4: =(R5-R4)/R4 -> 0.01030927835 | T4: =LN(R5/R4) -> 0.01025650017
A5: 2021-01-05 | B5: 15000.03027 | C5: =(B6-B5)/B5 -> -0.001126690393 | D5: =LN(B6/B5) -> -0.001127325586 | E5: 2021-01-05 | F5: 797 | G5: =(F6-F5)/F5 -> -0.006273525721 | H5: =LN(F6/F5) -> -0.006293286976 | I5: 2021-01-05 | J5: 9.074308 | K5: =(J6-J5)/J5 -> -0.009249741137 | L5: =LN(J6/J5) -> -0.009292785632 | M5: 2021-01-05 | N5: 66.272728 | O5: =(N6-N5)/N5 -> -0.005487023259 | P5: =LN(N6/N5) -> -0.005502132266 | Q5: 2021-01-05 | R5: 49 | S5: =(R6-R5)/R5 -> -0.03979593878 | T5: =LN(R6/R5) -> -0.04060945333
A6: 2021-01-06 | B6: 14983.12988 | C6: 0.01540867087 | D6: 0.01529116286 | E6: 2021-01-06 | F6: 792 | G6: 0.008838383838 | H6: 0.008799553952 | I6: 2021-01-06 | J6: 8.990373 | K6: 0.001037331821 | L6: 0.001036794165 | M6: 2021-01-06 | N6: 65.909088 | O6: 0.001379354544 | P6: 0.001378404108 | Q6: 2021-01-06 | R6: 47.049999 | S6: 0.02337944789 | T6: 0.023110335
A7: 2021-01-07 | B7: 15214 | C7: 0.01642895984 | D7: 0.01629546462 | E7: 2021-01-07 | F7: 799 | G7: 0.04881101377 | H7: 0.04765715472 | I7: 2021-01-07 | J7: 8.999699 | K7: 0.01036267991 | L7: 0.01030935541 | M7: 2021-01-07 | N7: 66 | O7: 0.002754787879 | P7: 0.002751000405 | Q7: 2021-01-07 | R7: 48.150002 | S7: -0.01453792255 | T7: -0.01464463365
A8: 2021-01-08 | B8: 15463.95019 | C8: 0.00603659536 | D8: 0.006018448114 | E8: 2021-01-08 | F8: 838 | G8: 0.01551312649 | H8: 0.01539402809 | I8: 2021-01-08 | J8: 9.09296 | K8: 0.005128253066 | L8: 0.00511514836 | M8: 2021-01-08 | N8: 66.181816 | O8: 0.009615450866 | P8: 0.009569516636 | Q8: 2021-01-08 | R8: 47.450001 | S8: 0.007376143153 | T8: 0.007349072446
A9: 2021-01-11 | B9: 15557.29981 | C9: -0.003638138412 | D9: -0.003644772533 | E9: 2021-01-11 | F9: 851 | G9: -0.005875440658 | H9: -0.005892768967 | I9: 2021-01-11 | J9: 9.139591 | K9: -0.01632655116 | L9: -0.01646129794 | M9: 2021-01-11 | N9: 66.818184 | O9: -0.005442231115 | P9: -0.005457094004 | Q9: 2021-01-11 | R9: 47.799999 | S9: -0.03138075379 | T9: -0.03188367908
A10: 2021-01-12 | B10: 15500.70019 | C10: 0.01737213614 | D10: 0.01722296571 | E10: 2021-01-12 | F10: 846 | G10: 0.04491725768 | H10: 0.04393770303 | I10: 2021-01-12 | J10: 8.990373 | K10: 0.001037331821 | L10: 0.001036794165 | M10: 2021-01-12 | N10: 66.454544 | O10: 0.001368032862 | P10: 0.001367097957 | Q10: 2021-01-12 | R10: 46.299999 | S10: -0.005399568151 | T10: -0.005414198508
A11: 2021-01-13 | B11: 15769.98047 | C11: -0.003981618057 | D11: -0.003989565802 | E11: 2021-01-13 | F11: 884 | G11: -0.02601809955 | H11: -0.02636255821 | I11: 2021-01-13 | J11: 8.999699 | K11: 0 | L11: 0 | M11: 2021-01-13 | N11: 66.545456 | O11: -0.002732327809 | P11: -0.00273606743 | Q11: 2021-01-13 | R11: 46.049999 | S11: -0.01737239994 | T11: -0.01752507084
A12: 2021-01-14 | B12: 15707.19043 | C12: -0.005780841736 | D12: -0.005797615477 | E12: 2021-01-14 | F12: 861 | G12: -0.01277584204 | H12: -0.01285815494 | I12: 2021-01-14 | J12: 8.999699 | K12: -0.009326423028 | L12: -0.009370186428 | M12: 2021-01-14 | N12: 66.363632 | O12: -0.005479386662 | P12: -0.005494453564 | Q12: 2021-01-14 | R12: 45.25 | S12: -0.02099449724 | T12: -0.02121801567
A13: 2021-01-15 | B13: 15616.38965 | C13: -0.0002810923715 | D13: -0.0002811318853 | E13: 2021-01-15 | F13: 850 | G13: -0.007058823529 | H13: -0.007083854888 | I13: 2021-01-15 | J13: 8.915764 | K13: -0.009414224064 | L13: -0.00945881797 | M13: 2021-01-15 | N13: 66 | O13: -0.006887030303 | P13: -0.006910855348 | Q13: 2021-01-15 | R13: 44.299999 | S13: 0.01128668197 | T13: 0.01122346262
A14: 2021-01-18 | B14: 15612 | C14: 0.01699782968 | D14: 0.01685498303 | E14: 2021-01-18 | F14: 844 | G14: 0.04146919431 | H14: 0.04063240309 | I14: 2021-01-18 | J14: 8.831829 | K14: 0.001055953416 | L14: 0.001055396289 | M14: 2021-01-18 | N14: 65.545456 | O14: -0.004160898659 | P14: -0.004169579286 | Q14: 2021-01-18 | R14: 44.799999 | S14: -0.005580357267 | T14: -0.005595985629
A15: 2021-01-19 | B15: 15877.37012 | C15: -0.004483767052 | D15: -0.004493849284 | E15: 2021-01-19 | F15: 879 | G15: -0.007963594994 | H15: -0.007995473776 | I15: 2021-01-19 | J15: 8.841155 | K15: -0.01371302731 | L15: -0.01380791938 | M15: 2021-01-19 | N15: 65.272728 | O15: -0.02089142038 | P15: -0.0211127339 | Q15: 2021-01-19 | R15: 44.549999 | S15: -0.02693604999 | T15: -0.02730547438
A16: 2021-01-20 | B16: 15806.17969 | C16: 0.02199075614 | D16: 0.02175244687 | E16: 2021-01-20 | F16: 872 | G16: 0.07110091743 | H16: 0.06868701432 | I16: 2021-01-20 | J16: 8.719916 | K16: -0.001069505715 | L16: -0.001070078045 | M16: 2021-01-20 | N16: 63.909088 | O16: 0.01280231068 | P16: 0.01272105388 | Q16: 2021-01-20 | R16: 43.349998 | S16: 0.04613610363 | T16: 0.04510347537
A17: 2021-01-21 | B17: 16153.76953 | C17: -0.00834104125 | D17: -0.00837602239 | E17: 2021-01-21 | F17: 934 | G17: -0.0182012848 | H17: -0.01836896597 | I17: 2021-01-21 | J17: 8.71059 | K17: -0.008565321063 | L17: -0.008602214245 | M17: 2021-01-21 | N17: 64.727272 | O17: 0.01264048329 | P17: 0.0125612593 | Q17: 2021-01-21 | R17: 45.349998 | S17: 0.06063947346 | T17: 0.05887200307
A18: 2021-01-22 | B18: 16019.03027 | C18: -0.00452525732 | D18: -0.004535527291 | E18: 2021-01-22 | F18: 917 | G18: -0.007633587786 | H18: -0.007662872746 | I18: 2021-01-22 | J18: 8.635981 | K18: 0.01079912056 | L18: 0.01074122649 | M18: 2021-01-22 | N18: 65.545456 | O18: -0.01109568907 | P18: -0.0111577054 | Q18: 2021-01-22 | R18: 48.099998 | S18: 0.01039501083 | T18: 0.01034135422
A19: 2021-01-25 | B19: 15946.54004 | C19: -0.01804093109 | D19: -0.01820565285 | E19: 2021-01-25 | F19: 910 | G19: -0.04285714286 | H19: -0.04380262266 | I19: 2021-01-25 | J19: 8.729242 | K19: -0.008547019317 | L19: -0.008583754555 | M19: 2021-01-25 | N19: 64.818184 | O19: 0.002805015333 | P19: 0.002801088619 | Q19: 2021-01-25 | R19: 48.599998 | S19: 0.0133745273 | T19: 0.01328587786
A20: 2021-01-26 | B20: 15658.84961 | C20: 0.002720543786 | D20: 0.002716849805 | E20: 2021-01-26 | F20: 871 | G20: 0.02985074627 | H20: 0.02941388521 | I20: 2021-01-26 | J20: 8.654633 | K20: -0.002155146267 | L20: -0.002157471937 | M20: 2021-01-26 | N20: 65 | O20: -0.0111888 | P20: -0.01125186548 | Q20: 2021-01-26 | R20: 49.25 | S20: 0.006091350254 | T20: 0.006072872976
A21: 2021-01-27 | B21: 15701.45019 | C21: -0.01818751188 | D21: -0.01835493782 | E21: 2021-01-27 | F21: 897 | G21: -0.03121516165 | H21: -0.03171273679 | I21: 2021-01-27 | J21: 8.635981 | K21: -0.005399618179 | L21: -0.005414248807 | M21: 2021-01-27 | N21: 64.272728 | O21: 0.001414347933 | P21: 0.001413348685 | Q21: 2021-01-27 | R21: 49.549999 | S21: -0.04742680217 | T21: -0.04858832682
A22: 2021-01-28 | B22: 15415.87988 | C22: -0.01800547975 | D22: -0.01816955083 | E22: 2021-01-28 | F22: 869 | G22: 0.006904487917 | H22: 0.006880761092 | I22: 2021-01-28 | J22: 8.58935 | K22: -0.01194351144 | L22: -0.01201540821 | M22: 2021-01-28 | N22: 64.363632 | O22: 0 | P22: 0 | Q22: 2021-01-28 | R22: 47.200001 | S22: 0.04025417288 | T22: 0.03946508029
A23: 2021-01-29 | B23: 15138.30957 | C23: 0.01795314548 | D23: 0.01779389102 | E23: 2021-01-29 | F23: 875 | G23: 0.03428571429 | H23: 0.03371105734 | I23: 2021-01-29 | J23: 8.486763 | K23: 0.01428565874 | L23: 0.01418458023 | M23: 2021-01-29 | N23: 64.363632 | O23: 0.001412474672 | P23: 0.001411478068 | Q23: 2021-01-29 | R23: 49.099998 | S23: 0.02851328018 | T23: 0.02811434221
A24: 2021-02-01 | B24: 15410.08984 | C24: 0.02270979368 | D24: 0.02245576509 | E24: 2021-02-01 | F24: 905 | G24: 0.02872928177 | H24: 0.02832433358 | I24: 2021-02-01 | J24: 8.608002 | K24: 0.002166937229 | L24: 0.002164592807 | M24: 2021-02-01 | N24: 64.454544 | O24: 0.01128348686 | P24: 0.01122030316 | Q24: 2021-02-01 | R24: 50.5 | S24: -0.01782182178 | T24: -0.01798254287
A25: 2021-02-02 | B25: 15760.04981 | C25: 0.0007151314964 | D25: 0.0007148759117 | E25: 2021-02-02 | F25: 931 | G25: 0.02040816327 | H25: 0.02020270732 | I25: 2021-02-02 | J25: 8.626655 | K25: 0.005405339613 | L25: 0.005390783196 | M25: 2021-02-02 | N25: 65.181816 | O25: 0 | P25: 0 | Q25: 2021-02-02 | R25: 49.599998 | S25: 0.006048467986 | T25: 0.006030249429
A26: 2021-02-03 | B26: 15771.32031 | C26: -0.004127782881 | D26: -0.004136325694 | E26: 2021-02-03 | F26: 950 | G26: -0.004210526316 | H26: -0.004219415543 | I26: 2021-02-03 | J26: 8.673285 | K26: -0.0010752558 | L26: -0.001075834302 | M26: 2021-02-03 | N26: 65.181816 | O26: 0 | P26: 0 | Q26: 2021-02-03 | R26: 49.900002 | S26: -0.02805615118 | T26: -0.02845724489
A27: 2021-02-04 | B27: 15706.21973 | C27: 0.00612373096 | D27: 0.006105057116 | E27: 2021-02-04 | F27: 946 | G27: 0.00422832981 | H27: 0.004219415543 | I27: 2021-02-04 | J27: 8.663959 | K27: 0 | L27: 0 | M27: 2021-02-04 | N27: 65.181816 | O27: 0.001394744817 | P27: 0.001393773063 | Q27: 2021-02-04 | R27: 48.5 | S27: -0.009278371134 | T27: -0.009321683339
A28: 2021-02-05 | B28: 15802.40039 | C28: 0.03543067092 | D28: 0.03481744734 | E28: 2021-02-05 | F28: 950 | G28: 0.03157894737 | H28: 0.03109058707 | I28: 2021-02-05 | J28: 8.663959 | K28: 0.01614642913 | L28: 0.01601746193 | M28: 2021-02-05 | N28: 65.272728 | O28: 0 | P28: 0 | Q28: 2021-02-05 | R28: 48.049999 | S28: 0.02705513064 | T28: 0.02669561075
A29: 2021-02-17 | B29: 16362.29004 | C29: 0.003802629513 | D29: 0.003795417794 | E29: 2021-02-17 | F29: 980 | G29: -0.002040816327 | H29: -0.00204290163 | I29: 2021-02-17 | J29: 8.803851 | K29: -0.002118618318 | L29: -0.002120865765 | M29: 2021-02-17 | N29: 65.272728 | O29: 0.009749247802 | P29: 0.009702030526 | Q29: 2021-02-17 | R29: 49.349998 | S29: 0.06585613235 | T29: 0.06377835637
A30: 2021-02-18 | B30: 16424.50977 | C30: -0.005061331156 | D30: -0.005074183076 | E30: 2021-02-18 | F30: 978 | G30: -0.01431492843 | H30: -0.01441837542 | I30: 2021-02-18 | J30: 8.785199 | K30: 0.005307790979 | L30: 0.005293754304 | M30: 2021-02-18 | N30: 65.909088 | O30: 0.001379354544 | P30: 0.001378404108 | Q30: 2021-02-18 | R30: 52.599998 | S30: 0 | T30: 0
A31: 2021-02-19 | B31: 16341.37988 | C31: 0.004208963594 | D31: 0.004200130683 | E31: 2021-02-19 | F31: 964 | G31: -0.01348547718 | H31: -0.01357723207 | I31: 2021-02-19 | J31: 8.831829 | K31: -0.002111906832 | L31: -0.002114140052 | M31: 2021-02-19 | N31: 66 | O31: 0.005509575758 | P31: 0.005494453564 | Q31: 2021-02-19 | R31: 52.599998 | S31: 0.00760460105 | T31: 0.007575831831
A32: 2021-02-22 | B32: 16410.16016 | C32: 0.002025588701 | D32: 0.002023539963 | E32: 2021-02-22 | F32: 951 | G32: 0.01472134595 | H32: 0.01461403879 | I32: 2021-02-22 | J32: 8.813177 | K32: 0.01164018378 | L32: 0.01157295802 | M32: 2021-02-22 | N32: 66.363632 | O32: 0.001369906939 | P32: 0.001368969473 | Q32: 2021-02-22 | R32: 53 | S32: -0.03018864151 | T32: -0.03065370218
A33: 2021-02-23 | B33: 16443.40039 | C33: -0.01404029048 | D33: -0.01413978777 | E33: 2021-02-23 | F33: 965 | G33: -0.02590673575 | H33: -0.02624822607 | I33: 2021-02-23 | J33: 8.915764 | K33: 0.003138149462 | L33: 0.003133235748 | M33: 2021-02-23 | N33: 66.454544 | O33: -0.00273594534 | P33: -0.002739694879 | Q33: 2021-02-23 | R33: 51.400002 | S33: -0.03307394813 | T33: -0.03363325815
A34: 2021-02-24 | B34: 16212.53027 | C34: 0.01478174048 | D34: 0.01467355536 | E34: 2021-02-24 | F34: 940 | G34: 0.004255319149 | H34: 0.004246290881 | I34: 2021-02-24 | J34: 8.943743 | K34: 0.009384773243 | L34: 0.009341009852 | M34: 2021-02-24 | N34: 66.272728 | O34: 0.002743451273 | P34: 0.002739694879 | Q34: 2021-02-24 | R34: 49.700001 | S34: 0.02816895316 | T34: 0.02777950485
A35: 2021-02-25 | B35: 16452.17969 | C35: -0.03029263553 | D35: -0.03076093912 | E35: 2021-02-25 | F35: 944 | G35: -0.05084745763 | H35: -0.05218575317 | I35: 2021-02-25 | J35: 9.027678 | K35: -0.02169428285 | L35: -0.02193306357 | M35: 2021-02-25 | N35: 66.454544 | O35: -0.008207956404 | P35: -0.008241827145 | Q35: 2021-02-25 | R35: 51.099998 | S35: -0.0117416443 | T35: -0.01181112179
A36: 2021-02-26 | B36: 15953.79981 | C36: -0.0004337475764 | D36: -0.0004338416721 | E36: 2021-02-26 | F36: 896 | G36: 0.004464285714 | H36: 0.004454350349 | I36: 2021-02-26 | J36: 8.831829 | K36: -0.007391787137 | L36: -0.007419241772 | M36: 2021-02-26 | N36: 65.909088 | O36: 0.005517296795 | P36: 0.005502132266 | Q36: 2021-02-26 | R36: 50.5 | S36: 0.005940574257 | T36: 0.005922998618
A37: 2021-03-02 | B37: 15946.87988 | C37: 0.01660830131 | D37: 0.01647189175 | E37: 2021-03-02 | F37: 900 | G37: 0.03333333333 | H37: 0.03278982282 | I37: 2021-03-02 | J37: 8.766546 | K37: 0.02234049761 | L37: 0.02209460421 | M37: 2021-03-02 | N37: 66.272728 | O37: 0.00137166528 | P37: 0.001370725406 | Q37: 2021-03-02 | R37: 50.799999 | S37: 0.001968563031 | T37: 0.00196662795
A38: 2021-03-03 | B38: 16211.73047 | C38: -0.01883329565 | D38: -0.01901290078 | E38: 2021-03-03 | F38: 930 | G38: -0.03548387097 | H38: -0.03612872409 | I38: 2021-03-03 | J38: 8.962395 | K38: -0.007284102073 | L38: -0.00731076068 | M38: 2021-03-03 | N38: 66.363632 | O38: 0.00547950721 | P38: 0.005464549326 | Q38: 2021-03-03 | R38: 50.900002 | S38: -0.0137524749 | T38: -0.01384791623
A39: 2021-03-04 | B39: 15906.41016 | C39: -0.003217551069 | D39: -0.003222738517 | E39: 2021-03-04 | F39: 897 | G39: -0.01560758082 | H39: -0.01573066145 | I39: 2021-03-04 | J39: 8.897112 | K39: 0.001048205305 | L39: 0.001047656322 | M39: 2021-03-04 | N39: 66.727272 | O39: 0.002724762972 | P39: 0.002721057535 | Q39: 2021-03-04 | R39: 50.200001 | S39: -0.02390440191 | T39: -0.02419474851
A40: 2021-03-05 | B40: 15855.23047 | C40: -0.00221504929 | D40: -0.002217506141 | E40: 2021-03-05 | F40: 883 | G40: -0.0181200453 | H40: -0.01828622382 | I40: 2021-03-05 | J40: 8.906438 | K40: -0.003141323164 | L40: -0.003146267477 | M40: 2021-03-05 | N40: 66.909088 | O40: 0.0176631312 | P40: 0.01750895099 | Q40: 2021-03-05 | R40: 49 | S40: 0.004081653061 | T40: 0.004073345713
A41: 2021-03-08 | B41: 15820.11035 | C41: 0.002084656255 | D41: 0.002082486374 | E41: 2021-03-08 | F41: 867 | G41: 0.01384083045 | H41: 0.0137459209 | I41: 2021-03-08 | J41: 8.87846 | K41: 0.01155459393 | L41: 0.0114883494 | M41: 2021-03-08 | N41: 68.090912 | O41: 0.002670194812 | P41: 0.002666636176 | Q41: 2021-03-08 | R41: 49.200001 | S41: 0.004065060893 | T41: 0.004056820856
A42: 2021-03-09 | B42: 15853.08984 | C42: 0.003695183625 | D42: 0.003688373206 | E42: 2021-03-09 | F42: 879 | G42: -0.01706484642 | H42: -0.01721212888 | I42: 2021-03-09 | J42: 8.981047 | K42: 0.007268974319 | L42: 0.007242682657 | M42: 2021-03-09 | N42: 68.272728 | O42: 0.001331483341 | P42: 0.001330597703 | Q42: 2021-03-09 | R42: 49.400002 | S42: -0.004048603075 | T42: -0.004056820856
A43: 2021-03-10 | B43: 15911.66992 | C43: 0.01683604859 | D43: 0.01669589325 | E43: 2021-03-10 | F43: 864 | G43: 0.02777777778 | H43: 0.02739897419 | I43: 2021-03-10 | J43: 9.04633 | K43: 0.003092745898 | L43: 0.003087973197 | M43: 2021-03-10 | N43: 68.363632 | O43: -0.001329712851 | P43: -0.001330597703 | Q43: 2021-03-10 | R43: 49.200001 | S43: 0.03861782442 | T43: 0.03789081425
A44: 2021-03-11 | B44: 16179.55957 | C44: 0.004673805716 | D44: 0.004662917399 | E44: 2021-03-11 | F44: 888 | G44: 0.01238738739 | H44: 0.01231129148 | I44: 2021-03-11 | J44: 9.074308 | K44: 0.002055473541 | L44: 0.002053363946 | M44: 2021-03-11 | N44: 68.272728 | O44: -0.001331600518 | P44: -0.001332487886 | Q44: 2021-03-11 | R44: 51.099998 | S44: -0.0136985524 | T44: -0.01379324331
A45: 2021-03-12 | B45: 16255.17969 | C45: -0.0003598612942 | D45: -0.0003599260598 | E45: 2021-03-12 | F45: 899 | G45: 0.008898776418 | H45: 0.008859415644 | I45: 2021-03-12 | J45: 9.09296 | K45: 0.005128253066 | L45: 0.00511514836 | M45: 2021-03-12 | N45: 68.181816 | O45: -0.009333280299 | P45: -0.009377108278 | Q45: 2021-03-12 | R45: 50.400002 | S45: 0.03373007803 | T45: 0.03317369561
A46: 2021-03-15 | B46: 16249.33008 | C46: 0.003928166742 | D46: 0.003920471641 | E46: 2021-03-15 | F46: 907 | G46: 0.01323042999 | H46: 0.01314367224 | I46: 2021-03-15 | J46: 9.139591 | K46: 0.007142879807 | L46: 0.007117490272 | M46: 2021-03-15 | N46: 67.545456 | O46: 0.001345819621 | P46: 0.001344914818 | Q46: 2021-03-15 | R46: 52.099998 | S46: 0.02687144057 | T46: 0.02651674353
A47: 2021-03-16 | B47: 16313.16016 | C47: -0.005966951962 | D47: -0.005984825355 | E47: 2021-03-16 | F47: 919 | G47: -0.0119695321 | H47: -0.01204174375 | I47: 2021-03-16 | J47: 9.204874 | K47: -0.01013169762 | L47: -0.0101833726 | M47: 2021-03-16 | N47: 67.63636 | O47: 0.002688258209 | P47: 0.002684651306 | Q47: 2021-03-16 | R47: 53.5 | S47: -0.01682246729 | T47: -0.01696557218
A48: 2021-03-17 | B48: 16215.82031 | C48: 0.004441312842 | D48: 0.004431479317 | E48: 2021-03-17 | F48: 908 | G48: -0.00550660793 | H48: -0.005521825184 | I48: 2021-03-17 | J48: 9.111613 | K48: -0.001023638734 | L48: -0.00102416301 | M48: 2021-03-17 | N48: 67.818184 | O48: 0.004021458316 | P48: 0.004013393866 | Q48: 2021-03-17 | R48: 52.599998 | S48: 0.02471490588 | T48: 0.0244144333
A49: 2021-03-18 | B49: 16287.83984 | C49: -0.01335963591 | D49: -0.0134496787 | E49: 2021-03-18 | F49: 903 | G49: -0.01993355482 | H49: -0.02013490841 | I49: 2021-03-18 | J49: 9.102286 | K49: -0.007172044473 | L49: -0.007197887222 | M49: 2021-03-18 | N49: 68.090912 | O49: -0.002670312302 | P49: -0.002673883946 | Q49: 2021-03-18 | R49: 53.900002 | S49: 0.01669753185 | T49: 0.01655966069
A50: 2021-03-19 | B50: 16070.24023 | C50: 0.007403715891 | D50: 0.007376442918 | E50: 2021-03-19 | F50: 885 | G50: -0.004519774011 | H50: -0.004530019072 | I50: 2021-03-19 | J50: 9.037004 | K50: 0.008255944116 | L50: 0.008222050232 | M50: 2021-03-19 | N50: 67.909088 | O50: 0.01070949443 | P50: 0.01065255397 | Q50: 2021-03-19 | R50: 54.799999 | S50: -0.001824781055 | T50: -0.001826447996
A51: 2021-03-22 | B51: 16189.21973 | C51: -0.0007183720523 | D51: -0.0007186302051 | E51: 2021-03-22 | F51: 881 | G51: -0.01248581158 | H51: -0.01256441429 | I51: 2021-03-22 | J51: 9.111613 | K51: -0.004094225688 | L51: -0.004102629977 | M51: 2021-03-22 | N51: 68.63636 | O51: 0.006622612271 | P51: 0.006600779117 | Q51: 2021-03-22 | R51: 54.700001 | S51: -0.02376597763 | T51: -0.02405294429
A52: 2021-03-23 | B52: 16177.58984 | C52: -0.008992051869 | D52: -0.009032724371 | E52: 2021-03-23 | F52: 870 | G52: 0.0275862069 | H52: 0.02721256352 | I52: 2021-03-23 | J52: 9.074308 | K52: 0.003083210312 | L52: 0.003078466966 | M52: 2021-03-23 | N52: 69.090912 | O52: -0.009210589086 | P52: -0.009253268834 | Q52: 2021-03-23 | R52: 53.400002 | S52: 0.01685387577 | T52: 0.0167134251
A53: 2021-03-24 | B53: 16032.12012 | C53: 0.001747712143 | D53: 0.001746186671 | E53: 2021-03-24 | F53: 894 | G53: 0.0615212528 | H53: 0.05970302344 | I53: 2021-03-24 | J53: 9.102286 | K53: 0.006147576554 | L53: 0.006128757294 | M53: 2021-03-24 | N53: 68.454544 | O53: 0.002656010681 | P53: 0.002652489717 | Q53: 2021-03-24 | R53: 54.299999 | S53: -0.0184162066 | T53: -0.01858789611
A54: 2021-03-25 | B54: 16060.13965 | C54: 0.01530125145 | D54: 0.01518536791 | E54: 2021-03-25 | F54: 949 | G54: -0.006322444679 | H54: -0.006342515976 | I54: 2021-03-25 | J54: 9.158243 | K54: 0.004073379577 | L54: 0.004065105827 | M54: 2021-03-25 | N54: 68.63636 | O54: 0.002649091531 | P54: 0.002645588873 | Q54: 2021-03-25 | R54: 53.299999 | S54: 0.02251409048 | T54: 0.02226438926
A55: 2021-03-26 | B55: 16305.87988 | C55: 0.01043125677 | D55: 0.01037722663 | E55: 2021-03-26 | F55: 943 | G55: -0.002120890774 | H55: -0.002123143048 | I55: 2021-03-26 | J55: 9.195548 | K55: 0.01217034591 | L55: 0.0120968827 | M55: 2021-03-26 | N55: 68.818184 | O55: 0.001320929945 | P55: 0.001320058284 | Q55: 2021-03-26 | R55: 54.5 | S55: -0.005504568807 | T55: -0.005519774773
A56: 2021-03-29 | B56: 16475.9707 | C56: 0.004790594097 | D56: 0.004779155718 | E56: 2021-03-29 | F56: 941 | G56: 0.03188097768 | H56: 0.03138332871 | I56: 2021-03-29 | J56: 9.307461 | K56: 0.002003983686 | L56: 0.002001978389 | M56: 2021-03-29 | N56: 68.909088 | O56: 0.002638606972 | P56: 0.00263513196 | Q56: 2021-03-29 | R56: 54.200001 | S56: 0 | T56: 0
A57: 2021-03-30 | B57: 16554.90039 | C57: -0.007476307865 | D57: -0.007504395537 | E57: 2021-03-30 | F57: 971 | G57: -0.002059732235 | H57: -0.002061856401 | I57: 2021-03-30 | J57: 9.326113 | K57: -0.003999951534 | L57: -0.004007972737 | M57: 2021-03-30 | N57: 69.090912 | O57: 0.007894641773 | P57: 0.007863642136 | Q57: 2021-03-30 | R57: 54.200001 | S57: 0.01660511039 | T57: 0.01646875297
A58: 2021-03-31 | B58: 16431.13086 | C58: 0.008529445673 | D58: 0.00849327548 | E58: 2021-03-31 | F58: 969 | G58: -0.008255933953 | H58: -0.00829020292 | I58: 2021-03-31 | J58: 9.288809 | K58: -0.003012119207 | L58: -0.003016664768 | M58: 2021-03-31 | N58: 69.63636 | O58: -0.005221869724 | P58: -0.005235551336 | Q58: 2021-03-31 | R58: 55.099998 | S58: -0.001814845801 | T58: -0.001816494629
A59: 2021-04-01 | B59: 16571.2793 | C59: 0.0147291029 | D59: 0.01462168318 | E59: 2021-04-01 | F59: 961 | G59: 0.03850156087 | H59: 0.03777886734 | I59: 2021-04-01 | J59: 9.26083 | K59: -0.009063442478 | L59: -0.009104765347 | M59: 2021-04-01 | N59: 69.272728 | O59: -0.00524939627 | P59: -0.005263222759 | Q59: 2021-04-01 | R59: 55 | S59: 0.03090910909 | T59: 0.03044104314
A60: 2021-04-07 | B60: 16815.35938 | C60: 0.006605869998 | D60: 0.006584146853 | E60: 2021-04-07 | F60: 998 | G60: 0.02204408818 | H60: 0.02180462997 | I60: 2021-04-07 | J60: 9.176895 | K60: -0.004064991481 | L60: -0.004073276018 | M60: 2021-04-07 | N60: 68.909088 | O60: -0.002638490877 | P60: -0.002641977828 | Q60: 2021-04-07 | R60: 56.700001 | S60: 0.005290987561 | T60: 0.005277039464
A61: 2021-04-08 | B61: 16926.43945 | C61: -0.004273777967 | D61: -0.004282936661 | E61: 2021-04-08 | F61: 1020 | G61: -0.02058823529 | H61: -0.02080312763 | I61: 2021-04-08 | J61: 9.139591 | K61: -0.003061187311 | L61: -0.003065882329 | M61: 2021-04-08 | N61: 68.727272 | O61: -0.00661373552 | P61: -0.006635703181 | Q61: 2021-04-08 | R61: 57 | S61: -0.02982457895 | T61: -0.03027837739
A62: 2021-04-09 | B62: 16854.09961 | C62: 0.0003322402341 | D62: 0.0003321850546 | E62: 2021-04-09 | F62: 999 | G62: -0.03903903904 | H62: -0.03982149419 | I62: 2021-04-09 | J62: 9.111613 | K62: 0.01125892858 | L62: 0.0111960186 | M62: 2021-04-09 | N62: 68.272728 | O62: -0.001331600518 | P62: -0.001332487886 | Q62: 2021-04-09 | R62: 55.299999 | S62: -0.01265824616 | T62: -0.01273904432
A63: 2021-04-12 | B63: 16859.69922 | C63: -0.002063445056 | D63: -0.002065576892 | E63: 2021-04-12 | F63: 960 | G63: 0.001041666667 | H63: 0.001041124508 | I63: 2021-04-12 | J63: 9.2142 | K63: -0.003036508867 | L63: -0.003041128414 | M63: 2021-04-12 | N63: 68.181816 | O63: 0.006666645547 | P63: 0.006644521739 | Q63: 2021-04-12 | R63: 54.599998 | S63: -0.01098897476 | T63: -0.01104979956
A64: 2021-04-13 | B64: 16824.91016 | C64: 0.002440461591 | D64: 0.0024374885 | E64: 2021-04-13 | F64: 961 | G64: 0.004162330905 | H64: 0.004153692369 | I64: 2021-04-13 | J64: 9.186221 | K64: -0.005076080795 | L64: -0.005089007858 | M64: 2021-04-13 | N64: 68.63636 | O64: 0.001324545766 | P64: 0.001323669329 | Q64: 2021-04-13 | R64: 54 | S64: -0.02037033333 | T64: -0.02058066989
A65: 2021-04-14 | B65: 16865.9707 | C65: 0.01249615393 | D65: 0.0124187214 | E65: 2021-04-14 | F65: 965 | G65: 0.0207253886 | H65: 0.02051353983 | I65: 2021-04-14 | J65: 9.139591 | K65: 0.009183671348 | L65: 0.009141757856 | M65: 2021-04-14 | N65: 68.727272 | O65: 0 | P65: 0 | Q65: 2021-04-14 | R65: 52.900002 | S65: 0.05860109419 | T65: 0.05694831406
A66: 2021-04-15 | B66: 17076.73047 | C66: 0.004806545266 | D66: 0.00479503071 | E66: 2021-04-15 | F66: 985 | G66: -0.01015228426 | H66: -0.01020417017 | I66: 2021-04-15 | J66: 9.223526 | K66: 0.008088988961 | L66: 0.008056448452 | M66: 2021-04-15 | N66: 68.727272 | O66: 0.009259206447 | P66: 0.009216602777 | Q66: 2021-04-15 | R66: 56 | S66: -0.01428569643 | T66: -0.01438871934
A67: 2021-04-16 | B67: 17158.81055 | C67: 0.00608834451 | D67: 0.006069885427 | E67: 2021-04-16 | F67: 975 | G67: -0.01230769231 | H67: -0.0123840592 | I67: 2021-04-16 | J67: 9.298135 | K67: 0.02306914236 | L67: 0.02280707253 | M67: 2021-04-16 | N67: 69.363632 | O67: 0.038007929 | P67: 0.03730342344 | Q67: 2021-04-16 | R67: 55.200001 | S67: 0.007246322332 | T67: 0.007220193886
A68: 2021-04-19 | B68: 17263.2793 | C68: 0.003509752867 | D68: 0.003503608058 | E68: 2021-04-19 | F68: 963 | G68: 0.03634475597 | H68: 0.03569986451 | I68: 2021-04-19 | J68: 9.512635 | K68: 0 | L68: 0 | M68: 2021-04-19 | N68: 72 | O68: -0.008838444444 | P68: -0.008877735179 | Q68: 2021-04-19 | R68: 55.599998 | S68: 0.03237417383 | T68: 0.03186117288
A69: 2021-04-20 | B69: 17323.86914 | C69: =(B70-B69)/B69 -> -0.007028439491 | D69: =LN(B70/B69) -> -0.007053255317 | E69: 2021-04-20 | F69: 998 | G69: =(F70-F69)/F69 -> -0.01002004008 | H69: =LN(F70/F69) -> -0.01007057856 | I69: 2021-04-20 | J69: 9.512635 | K69: =(J70-J69)/J69 -> -0.01470580969 | L69: =LN(J70/J69) -> -0.01481501204 | M69: 2021-04-20 | N69: 71.363632 | O69: =(N70-N69)/N69 -> 0.002547852385 | P69: =LN(N70/N69) -> 0.002544612112 | Q69: 2021-04-20 | R69: 57.400002 | S69: =(R70-R69)/R69 -> -0.001742212483 | T69: =LN(R70/R69) -> -0.0017437319
A70: 2021-04-21 | B70: 17202.10938 | C70: -0.006111963929 | D70: -0.006130718437 | E70: 2021-04-21 | F70: 988 | G70: -0.004048582996 | H70: -0.004056800696 | I70: 2021-04-21 | J70: 9.372744 | K70: 0.004975063866 | L70: 0.00496272913 | M70: 2021-04-21 | N70: 71.545456 | O70: -0.003811954179 | P70: -0.003819238193 | Q70: 2021-04-21 | R70: 57.299999 | S70: -0.02443275784 | T70: -0.02473619033
A71: 2021-04-22 | B71: 17096.9707 | C71: 0.01189092685 | D71: 0.01182078526 | E71: 2021-04-22 | F71: 984 | G71: 0.05182926829 | H71: 0.05053080865 | I71: 2021-04-22 | J71: 9.419374 | K71: -0.004950435135 | L71: -0.00496272913 | M71: 2021-04-22 | N71: 71.272728 | O71: -0.005102091785 | P71: -0.005115151896 | Q71: 2021-04-22 | R71: 55.900002 | S71: 0.09838997859 | T71: 0.09384545179
A72: 2021-04-23 | B72: 17300.26953 | C72: 0.0157234274 | D72: 0.01560109497 | E72: 2021-04-23 | F72: 1035 | G72: 0.03381642512 | H72: 0.03325722176 | I72: 2021-04-23 | J72: 9.372744 | K72: 0.01492529829 | L72: 0.01481501204 | M72: 2021-04-23 | N72: 70.909088 | O72: 0 | P72: 0 | Q72: 2021-04-23 | R72: 61.400002 | S72: 0.02280125333 | T72: 0.02254518982
A73: 2021-04-26 | B73: 17572.28906 | C73: 0.001343668313 | D73: 0.001342766399 | E73: 2021-04-26 | F73: 1070 | G73: -0.004672897196 | H73: -0.004683849312 | I73: 2021-04-26 | J73: 9.512635 | K73: -0.004901901524 | L73: -0.00491395525 | M73: 2021-04-26 | N73: 70.909088 | O73: 0 | P73: 0 | Q73: 2021-04-26 | R73: 62.799999 | S73: -0.007961783566 | T73: -0.007993647809
A74: 2021-04-27 | B74: 17595.90039 | C74: -0.00161236955 | D74: -0.001613670817 | E74: 2021-04-27 | F74: 1065 | G74: 0.01408450704 | H74: 0.01398624197 | I74: 2021-04-27 | J74: 9.466005 | K74: 0 | L74: 0 | M74: 2021-04-27 | N74: 70.909088 | O74: 0.04487187876 | P74: 0.04389427385 | Q74: 2021-04-27 | R74: 62.299999 | S74: 0.05457460762 | T74: 0.05313747009
A75: 2021-04-28 | B75: 17567.5293 | C75: -4.947428778e-05 | D75: -4.947551167e-05 | E75: 2021-04-28 | F75: 1080 | G75: 0.09722222222 | H75: 0.09278173345 | I75: 2021-04-28 | J75: 9.466005 | K75: 0.004926048528 | L75: 0.00491395525 | M75: 2021-04-28 | N75: 74.090912 | O75: -0.02453990578 | P75: -0.02484602779 | Q75: 2021-04-28 | R75: 65.699997 | S75: 0.0106545667 | T75: 0.01059820677
A76: 2021-04-29 | B76: 17566.66016 | C76: -0.01960022816 | D76: -0.01979486005 | E76: 2021-04-29 | F76: 1185 | G76: -0.06751054852 | H76: -0.06989743962 | I76: 2021-04-29 | J76: 9.512635 | K76: -0.01470580969 | L76: -0.01481501204 | M76: 2021-04-29 | N76: 72.272728 | O76: 0.001257791182 | P76: 0.001257000826 | Q76: 2021-04-29 | R76: 66.400002 | S76: -0.05120484786 | T76: -0.05256236021
A77: 2021-05-03 | B77: 17222.34961 | C77: -0.0167555716 | D77: -0.0168975342 | E77: 2021-05-03 | F77: 1105 | G77: -0.01809954751 | H77: -0.01826534798 | I77: 2021-05-03 | J77: 9.372744 | K77: -0.02189060109 | L77: -0.02213375537 | M77: 2021-05-03 | N77: 72.363632 | O77: 0.005025176182 | P77: 0.005012592125 | Q77: 2021-05-03 | R77: 63 | S77: -0.03968253968 | T77: -0.04049136135
A78: 2021-05-04 | B78: 16933.7793 | C78: -0.005334889655 | D78: -0.005349170995 | E78: 2021-05-04 | F78: 1085 | G78: -0.07373271889 | H78: -0.07659244548 | I78: 2021-05-04 | J78: 9.167569 | K78: 0.007121080845 | L78: 0.007095845679 | M78: 2021-05-04 | N78: 72.727272 | O78: -0.001250040013 | P78: -0.001250821964 | Q78: 2021-05-04 | R78: 60.5 | S78: -0.02644624793 | T78: -0.02680224042
A79: 2021-05-05 | B79: 16843.43945 | C79: 0.008960160567 | D79: 0.008920256516 | E79: 2021-05-05 | F79: 1005 | G79: 0.04975124378 | H79: 0.04855322542 | I79: 2021-05-05 | J79: 9.232852 | K79: 0.002020177514 | L79: 0.002018139699 | M79: 2021-05-05 | N79: 72.63636 | O79: -0.01752191327 | P79: -0.01767723907 | Q79: 2021-05-05 | R79: 58.900002 | S79: 0.001697758856 | T79: 0.001696319292
A80: 2021-05-06 | B80: 16994.35938 | C80: 0.01710218188 | D80: 0.01695758585 | E80: 2021-05-06 | F80: 1055 | G80: 0.004739336493 | H80: 0.004728141196 | I80: 2021-05-06 | J80: 9.251504 | K80: 0.007056474277 | L80: 0.007031693869 | M80: 2021-05-06 | N80: 71.363632 | O80: 0.006369518861 | P80: 0.006349319205 | Q80: 2021-05-06 | R80: 59 | S80: 0.040678 | T80: 0.03987242382
A81: 2021-05-07 | B81: 17285 | C81: -0.00285742696 | D81: -0.002861517198 | E81: 2021-05-07 | F81: 1060 | G81: -0.07641509434 | H81: -0.07949254458 | I81: 2021-05-07 | J81: 9.316787 | K81: 0.01601603643 | L81: 0.01588913292 | M81: 2021-05-07 | N81: 71.818184 | O81: 0.01898728044 | P81: 0.01880927176 | Q81: 2021-05-07 | R81: 61.400002 | S81: -0.02442996663 | T81: -0.02473332922
A82: 2021-05-10 | B82: 17235.60938 | C82: -0.03785642282 | D82: -0.03859159082 | E82: 2021-05-10 | F82: 979 | G82: -0.06945863126 | H82: -0.07198874527 | I82: 2021-05-10 | J82: 9.466005 | K82: -0.0197044054 | L82: -0.01990112565 | M82: 2021-05-10 | N82: 73.181816 | O82: -0.02484475105 | P82: -0.02515859097 | Q82: 2021-05-10 | R82: 59.900002 | S82: -0.07679470528 | T82: -0.07990364807
A83: 2021-05-11 | B83: 16583.13086 | C83: -0.04105140023 | D83: -0.04191780327 | E83: 2021-05-11 | F83: 911 | G83: -0.02524698134 | H83: -0.02557115427 | I83: 2021-05-11 | J83: 9.279483 | K83: -0.03115583056 | L83: -0.03165149587 | M83: 2021-05-11 | N83: 71.363632 | O83: -0.02547762704 | P83: -0.02580780189 | Q83: 2021-05-11 | R83: 55.299999 | S83: -0.01446652829 | T83: -0.01457218878
A84: 2021-05-12 | B84: 15902.37012 | C84: -0.01460603082 | D84: -0.01471374906 | E84: 2021-05-12 | F84: 888 | G84: -0.01689189189 | H84: -0.01703618715 | I84: 2021-05-12 | J84: 8.990373 | K84: -0.01141076127 | L84: -0.01147636353 | M84: 2021-05-12 | N84: 69.545456 | O84: 0.01830066367 | P84: 0.01813522194 | Q84: 2021-05-12 | R84: 54.5 | S84: 0.01284405505 | T84: 0.01276226973
A85: 2021-05-13 | B85: 15670.09961 | C85: 0.01001845801 | D85: 0.009968605947 | E85: 2021-05-13 | F85: 873 | G85: 0.02520045819 | H85: 0.02488816244 | I85: 2021-05-13 | J85: 8.887786 | K85: 0.01049316444 | L85: 0.01043849331 | M85: 2021-05-13 | N85: 70.818184 | O85: 0.01026956579 | P85: 0.01021719207 | Q85: 2021-05-13 | R85: 55.200001 | S85: 0.02898547049 | T85: 0.02857333672
A86: 2021-05-14 | B86: 15827.08984 | C86: -0.02989811776 | D86: -0.03035417977 | E86: 2021-05-14 | F86: 895 | G86: 0.02122905028 | H86: 0.02100685318 | I86: 2021-05-14 | J86: 8.981047 | K86: -0.03322953326 | L86: -0.03379417805 | M86: 2021-05-14 | N86: 71.545456 | O86: -0.02922494477 | P86: -0.02966050052 | Q86: 2021-05-14 | R86: 56.799999 | S86: -0.08098588171 | T86: -0.08445379408
A87: 2021-05-17 | B87: 15353.88965 | C87: 0.05158893539 | D87: 0.05030229213 | E87: 2021-05-17 | F87: 914 | G87: 0.0875273523 | H87: 0.0839066352 | I87: 2021-05-17 | J87: 8.682611 | K87: 0.01825994508 | L87: 0.01809523433 | M87: 2021-05-17 | N87: 69.454544 | O87: 0.02225133031 | P87: 0.02200738162 | Q87: 2021-05-17 | R87: 52.200001 | S87: 0.06896547761 | T87: 0.06669133742
A88: 2021-05-18 | B88: 16145.98047 | C88: -0.0008249925129 | D88: -0.0008253330065 | E88: 2021-05-18 | F88: 994 | G88: -0.05130784708 | H88: -0.05267092402 | I88: 2021-05-18 | J88: 8.841155 | K88: -0.01265818776 | L88: -0.01273898517 | M88: 2021-05-18 | N88: 71 | O88: -0.01024326761 | P88: -0.0102960909 | Q88: 2021-05-18 | R88: 55.799999 | S88: 0.01792114727 | T88: 0.01776245666
A89: 2021-05-19 | B89: 16132.66016 | C89: -0.005597328843 | D89: -0.005613052589 | E89: 2021-05-19 | F89: 943 | G89: -0.01378579003 | H89: -0.01388169649 | I89: 2021-05-19 | J89: 8.729242 | K89: -0.001068363095 | L89: -0.001068934202 | M89: 2021-05-19 | N89: 70.272728 | O89: -0.005174695936 | P89: -0.005188131044 | Q89: 2021-05-19 | R89: 56.799999 | S89: 0.01232396148 | T89: 0.01224863968
A90: 2021-05-20 | B90: 16042.36035 | C90: 0.01618834213 | D90: 0.01605870809 | E90: 2021-05-20 | F90: 930 | G90: 0.02688172043 | H90: 0.02652675433 | I90: 2021-05-20 | J90: 8.719916 | K90: 0.006417034293 | L90: 0.006396532787 | M90: 2021-05-20 | N90: 69.909088 | O90: 0.006501930049 | P90: 0.006480883681 | Q90: 2021-05-20 | R90: 57.5 | S90: 0.001739095652 | T90: 0.001737585176
A91: 2021-05-21 | B91: 16302.05957 | C91: 0.002222447344 | D91: 0.002219981361 | E91: 2021-05-21 | F91: 955 | G91: -0.01256544503 | H91: -0.01264505785 | I91: 2021-05-21 | J91: 8.775872 | K91: -0.004250745681 | L91: -0.004259805784 | M91: 2021-05-21 | N91: 70.363632 | O91: 0.005168010656 | P91: 0.005154702321 | Q91: 2021-05-21 | R91: 57.599998 | S91: 0.001736163255 | T91: 0.001734657865
A92: 2021-05-24 | B92: 16338.29004 | C92: 0.01575317138 | D92: 0.01563037808 | E92: 2021-05-24 | F92: 943 | G92: 0.009544008484 | H92: 0.009498752158 | I92: 2021-05-24 | J92: 8.738568 | K92: 0.005336229002 | L92: 0.005322041781 | M92: 2021-05-24 | N92: 70.727272 | O92: -0.001285388188 | P92: -0.001286215008 | Q92: 2021-05-24 | R92: 57.700001 | S92: 0.07625644582 | T92: 0.07348876589
A93: 2021-05-25 | B93: 16595.66992 | C93: 0.002893497595 | D93: 0.002889319488 | E93: 2021-05-25 | F93: 952 | G93: -0.001050420168 | H93: -0.001050972246 | I93: 2021-05-25 | J93: 8.785199 | K93: 0.005307790979 | L93: 0.005293754304 | M93: 2021-05-25 | N93: 70.63636 | O93: 0.002574085075 | P93: 0.002570777792 | Q93: 2021-05-25 | R93: 62.099998 | S93: -0.001610273804 | T93: -0.001611571688
A94: 2021-05-26 | B94: 16643.68945 | C94: -0.002528290264 | D94: -0.002531491787 | E94: 2021-05-26 | F94: 951 | G94: -0.01682439537 | H94: -0.01696753326 | I94: 2021-05-26 | J94: 8.831829 | K94: -0.008447740553 | L94: -0.008483624951 | M94: 2021-05-26 | N94: 70.818184 | O94: -0.003851101293 | P94: -0.003858535878 | Q94: 2021-05-26 | R94: 62 | S94: -0.01935485484 | T94: -0.01954461252
A95: 2021-05-27 | B95: 16601.60938 | C95: 0.01621830715 | D95: 0.01608819532 | E95: 2021-05-27 | F95: 935 | G95: 0.02780748663 | H95: 0.02742787968 | I95: 2021-05-27 | J95: 8.75722 | K95: 0.01810437559 | L95: 0.01794244292 | M95: 2021-05-27 | N95: 70.545456 | O95: 0.005154577213 | P95: 0.005141337856 | Q95: 2021-05-27 | R95: 60.799999 | S95: 0.01151317453 | T95: 0.01144740229
A96: 2021-05-28 | B96: 16870.85938 | C96: 0.01171074387 | D96: 0.01164270379 | E96: 2021-05-28 | F96: 961 | G96: 0.0353798127 | H96: 0.03476832819 | I96: 2021-05-28 | J96: 8.915764 | K96: 0.005230174329 | L96: 0.005216544471 | M96: 2021-05-28 | N96: 70.909088 | O96: 0.02051280084 | P96: 0.02030524688 | Q96: 2021-05-28 | R96: 61.5 | S96: 0.00487803252 | T96: 0.00486617347
A97: 2021-05-31 | B97: 17068.42969 | C97: 0.005504382812 | D97: 0.005489289059 | E97: 2021-05-31 | F97: 995 | G97: -0.01809045226 | H97: -0.01825608512 | I97: 2021-05-31 | J97: 8.962395 | K97: -0.002081140142 | L97: -0.002083308723 | M97: 2021-05-31 | N97: 72.363632 | O97: 0.002512643368 | P97: 0.002509491957 | Q97: 2021-05-31 | R97: 61.799999 | S97: 0.03559872226 | T97: 0.03497973508
A98: 2021-06-01 | B98: 17162.38086 | C98: 0.0001548855035 | D98: 0.0001548735099 | E98: 2021-06-01 | F98: 977 | G98: -0.01842374616 | H98: -0.01859557716 | I98: 2021-06-01 | J98: 8.943743 | K98: 0.006256440955 | L98: 0.00623695068 | M98: 2021-06-01 | N98: 72.545456 | O98: 0.006265643985 | P98: 0.006246096447 | Q98: 2021-06-01 | R98: 64 | S98: 0.004687546875 | T98: 0.00467659454
A99: 2021-06-02 | B99: 17165.03906 | C99: 0.004725948639 | D99: 0.004714816404 | E99: 2021-06-02 | F99: 959 | G99: 0.02294056309 | H99: 0.02268138468 | I99: 2021-06-02 | J99: 8.999699 | K99: 0 | L99: 0 | M99: 2021-06-02 | N99: 73 | O99: 0.001245369863 | P99: 0.001244595033 | Q99: 2021-06-02 | R99: 64.300003 | S99: 0.02332814821 | T99: 0.02306020602
A100: 2021-06-03 | B100: 17246.16016 | C100: -0.005725912267 | D100: -0.00574236815 | E100: 2021-06-03 | F100: 981 | G100: -0.004077471967 | H100: -0.004085807523 | I100: 2021-06-03 | J100: 8.999699 | K100: -0.004145027517 | L100: -0.004153641957 | M100: 2021-06-03 | N100: 73.090912 | O100: -0.003731353085 | P100: -0.003738331949 | Q100: 2021-06-03 | R100: 65.800003 | S100: -0.02279635154 | T100: -0.02306020602
A101: 2021-06-04 | B101: 17147.41016 | C101: -0.003703183129 | D101: -0.003710056887 | E101: 2021-06-04 | F101: 977 | G101: -0.004094165814 | H101: -0.004102569857 | I101: 2021-06-04 | J101: 8.962395 | K101: -0.01040581229 | L101: -0.01046033129 | M101: 2021-06-04 | N101: 72.818184 | O101: 0.002496848864 | P101: 0.002493736916 | Q101: 2021-06-04 | R101: 64.300003 | S101: -0.003110497522 | T101: -0.003115345174
A102: 2021-06-07 | B102: 17083.91016 | C102: -0.0004506707147 | D102: -0.0004507722973 | E102: 2021-06-07 | F102: 973 | G102: -0.007194244604 | H102: -0.007220247973 | I102: 2021-06-07 | J102: 8.869134 | K102: -0.00315464847 | L102: -0.003159634863 | M102: 2021-06-07 | N102: 73 | O102: 0.003736 | P102: 0.003729038485 | Q102: 2021-06-07 | R102: 64.099998 | S102: 0.01092051516 | T102: 0.01086131693
A103: 2021-06-08 | B103: 17076.21094 | C103: -0.006441138224 | D103: -0.006461971865 | E103: 2021-06-08 | F103: 966 | G103: 0.001035196687 | H103: 0.001034661241 | I103: 2021-06-08 | J103: 8.841155 | K103: 0 | L103: 0 | M103: 2021-06-08 | N103: 73.272728 | O103: -0.003722094256 | P103: -0.003729038485 | Q103: 2021-06-08 | R103: 64.800003 | S103: 0.003086373314 | T103: 0.003081620241
A104: 2021-06-09 | B104: 16966.2207 | C104: 0.01137554458 | D104: 0.0113113296 | E104: 2021-06-09 | F104: 967 | G104: 0.03205791107 | H104: 0.03155478086 | I104: 2021-06-09 | J104: 8.841155 | K104: 0.004219471325 | L104: 0.004210594318 | M104: 2021-06-09 | N104: 73 | O104: 0.001245369863 | P104: 0.001244595033 | Q104: 2021-06-09 | R104: 65 | S104: -0.01538461538 | T104: -0.01550418654
A105: 2021-06-10 | B105: 17159.2207 | C105: 0.003164411073 | D105: 0.003159414862 | E105: 2021-06-10 | F105: 998 | G105: -0.01803607214 | H105: -0.01820070465 | I105: 2021-06-10 | J105: 8.87846 | K105: -0.00105040739 | L105: -0.001050959455 | M105: 2021-06-10 | N105: 73.090912 | O105: 0.006218885325 | P105: 0.006199627856 | Q105: 2021-06-10 | R105: 64 | S105: -0.00625003125 | T105: -0.00626964446
A106: 2021-06-11 | B106: 17213.51953 | C106: 0.009165442995 | D106: 0.009123695219 | E106: 2021-06-11 | F106: 980 | G106: 0.009183673469 | H106: 0.009141759958 | I106: 2021-06-11 | J106: 8.869134 | K106: -0.002103136563 | L106: -0.002105351261 | M106: 2021-06-11 | N106: 73.545456 | O106: 0.0148330578 | P106: 0.0147241239 | Q106: 2021-06-11 | R106: 63.599998 | S106: 0.06603781654 | T106: 0.06394880029
A107: 2021-06-15 | B107: 17371.28906 | C107: -0.00365140939 | D107: -0.003658092058 | E107: 2021-06-15 | F107: 989 | G107: -0.004044489383 | H107: -0.004052690451 | I107: 2021-06-15 | J107: 8.850481 | K107: -0.004214912161 | L107: -0.004223819943 | M107: 2021-06-15 | N107: 74.63636 | O107: 0.002436131666 | P107: 0.002433169107 | Q107: 2021-06-15 | R107: 67.800003 | S107: 0.02212389283 | T107: 0.02188271029
A108: 2021-06-16 | B108: 17307.85938 | C108: 0.004781064961 | D108: 0.004769671969 | E108: 2021-06-16 | F108: 985 | G108: -0.007106598985 | H108: -0.007131971137 | I108: 2021-06-16 | J108: 8.813177 | K108: 0 | L108: 0 | M108: 2021-06-16 | N108: 74.818184 | O108: 0.01215062905 | P108: 0.01207740272 | Q108: 2021-06-16 | R108: 69.300003 | S108: 0.02741693965 | T108: 0.0270478268
A109: 2021-06-17 | B109: 17390.60938 | C109: -0.004144208546 | D109: -0.004152819578 | E109: 2021-06-17 | F109: 978 | G109: -0.01329243354 | H109: -0.0133815687 | I109: 2021-06-17 | J109: 8.813177 | K109: -0.00529105452 | L109: -0.00530510172 | M109: 2021-06-17 | N109: 75.727272 | O109: -0.001200518619 | P109: -0.001201239819 | Q109: 2021-06-17 | R109: 71.199997 | S109: -0.008426952602 | T109: -0.008462660113
A110: 2021-06-18 | B110: 17318.53906 | C110: -0.01475635982 | D110: -0.01486631796 | E110: 2021-06-18 | F110: 965 | G110: -0.04870466321 | H110: -0.04993071072 | I110: 2021-06-18 | J110: 8.766546 | K110: -0.004255267696 | L110: -0.004264347114 | M110: 2021-06-18 | N110: 75.63636 | O110: 0.007211558039 | P110: 0.007185679098 | Q110: 2021-06-18 | R110: 70.599998 | S110: -0.002832804613 | T110: -0.002836824597
A111: 2021-06-21 | B111: 17062.98047 | C111: 0.0007367008374 | D111: 0.0007364296065 | E111: 2021-06-21 | F111: 918 | G111: -0.01633986928 | H111: -0.0164748372 | I111: 2021-06-21 | J111: 8.729242 | K111: 0.00213672619 | L111: 0.002134446637 | M111: 2021-06-21 | N111: 76.181816 | O111: 0.01431984767 | P111: 0.01421828705 | Q111: 2021-06-21 | R111: 70.400002 | S111: 0.0284090901 | T111: 0.02801303544
A112: 2021-06-22 | B112: 17075.55078 | C112: 0.0152943914 | D112: 0.01517861123 | E112: 2021-06-22 | F112: 903 | G112: 0.04208194906 | H112: 0.04122058617 | I112: 2021-06-22 | J112: 8.747894 | K112: 0.009594880779 | L112: 0.009549142248 | M112: 2021-06-22 | N112: 77.272728 | O112: 0.01411758104 | P112: 0.01401885608 | Q112: 2021-06-22 | R112: 72.400002 | S112: 0.03314918417 | T112: 0.03261159807
A113: 2021-06-23 | B113: 17336.71094 | C113: 0.004109776085 | D113: 0.004101354022 | E113: 2021-06-23 | F113: 941 | G113: -0.01275239107 | H113: -0.01283440077 | I113: 2021-06-23 | J113: 8.831829 | K113: -0.003167860247 | L113: -0.003172888539 | M113: 2021-06-23 | N113: 78.363632 | O113: -0.003480185809 | P113: -0.003486255742 | Q113: 2021-06-23 | R113: 74.800003 | S113: -0.01737971855 | T113: -0.01753251887
A114: 2021-06-24 | B114: 17407.96094 | C114: 0.005458956183 | D114: 0.005444110087 | E114: 2021-06-24 | F114: 929 | G114: -0.00215285253 | H114: -0.002155173248 | I114: 2021-06-24 | J114: 8.803851 | K114: 0 | L114: 0 | M114: 2021-06-24 | N114: 78.090912 | O114: 0.001164079118 | P114: 0.001163402104 | Q114: 2021-06-24 | R114: 73.5 | S114: -0.001360517007 | T114: -0.00136144335
A115: 2021-06-25 | B115: 17502.99023 | C115: 0.005026596474 | D115: 0.005014005314 | E115: 2021-06-25 | F115: 927 | G115: 0.008629989213 | H115: 0.008592963723 | I115: 2021-06-25 | J115: 8.803851 | K115: 0.002118618318 | L115: 0.002116377211 | M115: 2021-06-25 | N115: 78.181816 | O115: -0.04651158269 | P115: -0.04762800157 | Q115: 2021-06-25 | R115: 73.400002 | S115: 0.02997269673 | T115: 0.02953229386
A116: 2021-06-28 | B116: 17590.9707 | C116: 0.0004103667797 | D116: 0.0004102826023 | E116: 2021-06-28 | F116: 935 | G116: 0 | H116: 0 | I116: 2021-06-28 | J116: 8.822503 | K116: -0.003171208896 | L116: -0.003176247835 | M116: 2021-06-28 | N116: 74.545456 | O116: -0.01341463388 | P116: -0.01350542293 | Q116: 2021-06-28 | R116: 75.599998 | S116: -0.01984127037 | T116: -0.02004075142
A117: 2021-06-29 | B117: 17598.18945 | C117: 0.008936799176 | D117: 0.008897102319 | E117: 2021-06-29 | F117: 935 | G117: 0.02887700535 | H117: 0.02846792138 | I117: 2021-06-29 | J117: 8.794525 | K117: 0.00212086497 | L117: 0.002118619111 | M117: 2021-06-29 | N117: 73.545456 | O117: -0.003708291645 | P117: -0.003715184404 | Q117: 2021-06-29 | R117: 74.099998 | S117: 0.006747638509 | T117: 0.006724975089
A118: 2021-06-30 | B118: 17755.46094 | C118: -0.002338519126 | D118: -0.002341257733 | E118: 2021-06-30 | F118: 962 | G118: -0.007276507277 | H118: -0.007303110185 | I118: 2021-06-30 | J118: 8.813177 | K118: -0.003174564632 | L118: -0.003179614252 | M118: 2021-06-30 | N118: 73.272728 | O118: 0.002481359777 | P118: 0.002478286287 | Q118: 2021-06-30 | R118: 74.599998 | S118: -0.005361943843 | T118: -0.005376370658
A119: 2021-07-01 | B119: 17713.93945 | C119: -0.0002139028425 | D119: -0.0002139257229 | E119: 2021-07-01 | F119: 955 | G119: 0.002094240838 | H119: 0.002092050972 | I119: 2021-07-01 | J119: 8.785199 | K119: -0.002123230219 | L119: -0.002125487468 | M119: 2021-07-01 | N119: 73.454544 | O119: -0.006188099132 | P119: -0.006207324772 | Q119: 2021-07-01 | R119: 74.199997 | S119: 0 | T119: 0
A120: 2021-07-02 | B120: 17710.15039 | C120: 0.01181128801 | D120: 0.01174207918 | E120: 2021-07-02 | F120: 957 | G120: 0 | H120: 0 | I120: 2021-07-02 | J120: 8.766546 | K120: 0.006383015614 | L120: 0.006362730445 | M120: 2021-07-02 | N120: 73 | O120: 0.002490630137 | P120: 0.002487533658 | Q120: 2021-07-02 | R120: 74.199997 | S120: 0.04447443576 | T120: 0.04351382662
A121: 2021-07-05 | B121: 17919.33008 | C121: -0.0003493303027 | D121: -0.0003493913327 | E121: 2021-07-05 | F121: 957 | G121: -0.03657262278 | H121: -0.0372581679 | I121: 2021-07-05 | J121: 8.822503 | K121: 0.002114139264 | L121: 0.002111907616 | M121: 2021-07-05 | N121: 73.181816 | O121: 0.001242275813 | P121: 0.001241504827 | Q121: 2021-07-05 | R121: 77.5 | S121: 0.03354836129 | T121: 0.03299789275
A122: 2021-07-06 | B122: 17913.07031 | C122: -0.003482421434 | D122: -0.003488499177 | E122: 2021-07-06 | F122: 922 | G122: -0.005422993492 | H122: -0.0054377513 | I122: 2021-07-06 | J122: 8.841155 | K122: -0.004219358217 | L122: -0.004228284828 | M122: 2021-07-06 | N122: 73.272728 | O122: -0.003722094256 | P122: -0.003729038485 | Q122: 2021-07-06 | R122: 80.099998 | S122: 0.01872659223 | T122: 0.01855340835
A123: 2021-07-07 | B123: 17850.68945 | C123: 0.0008627336799 | D123: 0.0008623617391 | E123: 2021-07-07 | F123: 917 | G123: 0.003271537623 | H123: 0.003266197787 | I123: 2021-07-07 | J123: 8.803851 | K123: 0.004237236637 | L123: 0.004228284828 | M123: 2021-07-07 | N123: 73 | O123: -0.002490630137 | P123: -0.002493736916 | Q123: 2021-07-07 | R123: 81.599998 | S123: 0.006127451131 | T123: 0.006108754638
A124: 2021-07-08 | B124: 17866.08984 | C124: -0.011452387 | D124: -0.01151847061 | E124: 2021-07-08 | F124: 920 | G124: -0.001086956522 | H124: -0.001087547687 | I124: 2021-07-08 | J124: 8.841155 | K124: 0 | L124: 0 | M124: 2021-07-08 | N124: 72.818184 | O124: -0.001248479363 | P124: -0.001249259363 | Q124: 2021-07-08 | R124: 82.099998 | S124: 0.01339828291 | T124: 0.01330931967
A125: 2021-07-09 | B125: 17661.48047 | C125: 0.008654405233 | D125: 0.008617170544 | E125: 2021-07-09 | F125: 919 | G125: 0.01741022851 | H125: 0.01726040693 | I125: 2021-07-09 | J125: 8.841155 | K125: 0.001054839554 | L125: 0.001054283602 | M125: 2021-07-09 | N125: 72.727272 | O125: -0.006249980062 | P125: -0.006269592951 | Q125: 2021-07-09 | R125: 83.199997 | S125: 0.0120192312 | T125: 0.01194757385
A126: 2021-07-12 | B126: 17814.33008 | C126: 0.001863076122 | D126: 0.001861342748 | E126: 2021-07-12 | F126: 935 | G126: -0.009625668449 | H126: -0.009672294643 | I126: 2021-07-12 | J126: 8.850481 | K126: -0.002107456081 | L126: -0.002109679891 | M126: 2021-07-12 | N126: 72.272728 | O126: -0.01006288292 | P126: -0.01011385597 | Q126: 2021-07-12 | R126: 84.199997 | S126: 0.01900244723 | T126: 0.01882415584
A127: 2021-07-13 | B127: 17847.51953 | C127: -9.914716703e-05 | D127: -9.915208243e-05 | E127: 2021-07-13 | F127: 926 | G127: 0.004319654428 | H127: 0.004310351501 | I127: 2021-07-13 | J127: 8.831829 | K127: -0.001055953416 | L127: -0.001056511327 | M127: 2021-07-13 | N127: 71.545456 | O127: -0.006353219693 | P127: -0.006373487282 | Q127: 2021-07-13 | R127: 85.800003 | S127: -0.008158566148 | T127: -0.008192029381
A128: 2021-07-14 | B128: 17845.75 | C128: 0.01055934623 | D128: 0.01050398571 | E128: 2021-07-14 | F128: 930 | G128: 0.02258064516 | H128: 0.0223294764 | I128: 2021-07-14 | J128: 8.822503 | K128: 0.002114139264 | L128: 0.002111907616 | M128: 2021-07-14 | N128: 71.090912 | O128: 0.01790271026 | P128: 0.01774434408 | Q128: 2021-07-14 | R128: 85.099998 | S128: -0.01527608732 | T128: -0.01539396879
A129: 2021-07-15 | B129: 18034.18945 | C129: -0.007704224987 | D129: -0.007734055843 | E129: 2021-07-15 | F129: 951 | G129: 0.006309148265 | H129: 0.006289328908 | I129: 2021-07-15 | J129: 8.841155 | K129: 0.008438829542 | L129: 0.008403421681 | M129: 2021-07-15 | N129: 72.363632 | O129: -0.00502506563 | P129: -0.005037733728 | Q129: 2021-07-15 | R129: 83.800003 | S129: -0.009546574837 | T129: -0.009592435491
A130: 2021-07-16 | B130: 17895.25 | C130: -0.005923359551 | D130: -0.00594097223 | E130: 2021-07-16 | F130: 957 | G130: -0.03970741902 | H130: -0.0405172691 | I130: 2021-07-16 | J130: 8.915764 | K130: 0.007322199197 | L130: 0.007295522041 | M130: 2021-07-16 | N130: 72 | O130: -0.005050555556 | P130: -0.005063352718 | Q130: 2021-07-16 | R130: 83 | S130: 0.07951804819 | T130: 0.07651468986
A131: 2021-07-19 | B131: 17789.25 | C131: -0.01464422424 | D131: -0.01475250936 | E131: 2021-07-19 | F131: 919 | G131: 0.001088139282 | H131: 0.001087547687 | I131: 2021-07-19 | J131: 8.981047 | K131: -0.009345792311 | L131: -0.009389738249 | M131: 2021-07-19 | N131: 71.63636 | O131: 0.003807116945 | P131: 0.003799888216 | Q131: 2021-07-19 | R131: 89.599998 | S131: 0.02343748936 | T131: 0.02316704889
A132: 2021-07-20 | B132: 17528.74023 | C132: -0.003990655921 | D132: -0.003998639836 | E132: 2021-07-20 | F132: 920 | G132: -0.008695652174 | H132: -0.008733679969 | I132: 2021-07-20 | J132: 8.897112 | K132: 0 | L132: 0 | M132: 2021-07-20 | N132: 71.909088 | O132: -0.001264151758 | P132: -0.001264951472 | Q132: 2021-07-20 | R132: 91.699997 | S132: -0.07633588036 | T132: -0.07940678031
A133: 2021-07-21 | B133: 17458.78906 | C133: =(B134-B133)/B133 -> 0.006503372862 | D133: =LN(B134/B133) -> 0.006482317172 | E133: 2021-07-21 | F133: 912 | G133: =(F134-F133)/F133 -> 0.007675438596 | H133: =LN(F134/F133) -> 0.007646132281 | I133: 2021-07-21 | J133: 8.897112 | K133: =(J134-J133)/J133 -> 0.006289344228 | L133: =LN(J134/J133) -> 0.00626964884 | M133: 2021-07-21 | N133: 71.818184 | O133: =(N134-N133)/N133 -> -0.005063341618 | P133: =LN(N134/N133) -> -0.005076203768 | Q133: 2021-07-21 | R133: 84.699997 | S133: =(R134-R133)/R133 -> 0.02361275172 | T133: =LN(R134/R133) -> 0.02333828295
A134: 2021-07-22 | B134: 17572.33008 | C134: 3.356663558e-05 | D134: 3.356607223e-05 | E134: 2021-07-22 | F134: 919 | G134: 0.01523394995 | H134: 0.01511907849 | I134: 2021-07-22 | J134: 8.953069 | K134: -0.001041653985 | L134: -0.001042196883 | M134: 2021-07-22 | N134: 71.454544 | O134: -0.001272305369 | P134: -0.001273115437 | Q134: 2021-07-22 | R134: 86.699997 | S134: 0.005767012887 | T134: 0.005750447327
A135: 2021-07-23 | B135: 17572.91992 | C135: -0.009637520443 | D135: -0.009684261901 | E135: 2021-07-23 | F135: 933 | G135: -0.01071811361 | H135: -0.01077596634 | I135: 2021-07-23 | J135: 8.943743 | K135: -0.008342033084 | L135: -0.008377022567 | M135: 2021-07-23 | N135: 71.363632 | O135: -0.003821554374 | P135: -0.00382887517 | Q135: 2021-07-23 | R135: 87.199997 | S135: 0.02866972576 | T135: 0.02826643911
A136: 2021-07-26 | B136: 17403.56055 | C136: -0.007681842209 | D136: -0.007711499539 | E136: 2021-07-26 | F136: 923 | G136: 0.01625135428 | H136: 0.0161207145 | I136: 2021-07-26 | J136: 8.869134 | K136: 0.002103023813 | L136: 0.002100815554 | M136: 2021-07-26 | N136: 71.090912 | O136: 0.001278700715 | P136: 0.001277883873 | Q136: 2021-07-26 | R136: 89.699997 | S136: -0.05128204185 | T136: -0.05264372354
A137: 2021-07-27 | B137: 17269.86914 | C137: -0.007796726015 | D137: -0.007827279397 | E137: 2021-07-27 | F137: 938 | G137: -0.05117270789 | H137: -0.05252848628 | I137: 2021-07-27 | J137: 8.887786 | K137: -0.007345248862 | L137: -0.007372358033 | M137: 2021-07-27 | N137: 71.181816 | O137: -0.003831427959 | P137: -0.003838786681 | Q137: 2021-07-27 | R137: 85.099998 | S137: -0.03407756837 | T137: -0.03467174651
A138: 2021-07-28 | B138: 17135.2207 | C138: 0.01561636402 | D138: 0.01549568338 | E138: 2021-07-28 | F138: 890 | G138: 0.04831460674 | H138: 0.04718373812 | I138: 2021-07-28 | J138: 8.822503 | K138: 0.002114139264 | L138: 0.002111907616 | M138: 2021-07-28 | N138: 70.909088 | O138: 0.00384616426 | P138: 0.003838786681 | Q138: 2021-07-28 | R138: 82.199997 | S138: 0.01094891767 | T138: 0.01088941223
A139: 2021-07-29 | B139: 17402.81055 | C139: -0.008929614592 | D139: -0.008969722544 | E139: 2021-07-29 | F139: 933 | G139: -0.02465166131 | H139: -0.02496060134 | I139: 2021-07-29 | J139: 8.841155 | K139: 0.001054839554 | L139: 0.001054283602 | M139: 2021-07-29 | N139: 71.181816 | O139: 0.003831427959 | P139: 0.003824106734 | Q139: 2021-07-29 | R139: 83.099998 | S139: -0.03008423658 | T139: -0.0305460531
A140: 2021-07-30 | B140: 17247.41016 | C140: 0.01483522098 | D140: 0.01472625545 | E140: 2021-07-30 | F140: 910 | G140: 0.02637362637 | H140: 0.02603183872 | I140: 2021-07-30 | J140: 8.850481 | K140: 0.00105372804 | L140: 0.001053173259 | M140: 2021-07-30 | N140: 71.454544 | O140: 0.01145041245 | P140: 0.01138535264 | Q140: 2021-07-30 | R140: 80.599998 | S140: 0.0310173705 | T140: 0.0305460531
A141: 2021-08-02 | B141: 17503.2793 | C141: 0.00288405779 | D141: 0.002879906874 | E141: 2021-08-02 | F141: 934 | G141: 0.004282655246 | H141: 0.004273510777 | I141: 2021-08-02 | J141: 8.859807 | K141: 0 | L141: 0 | M141: 2021-08-02 | N141: 72.272728 | O141: -0.001257901874 | P141: -0.001258693697 | Q141: 2021-08-02 | R141: 83.099998 | S141: 0.05655842495 | T141: 0.05501685702
A142: 2021-08-03 | B142: 17553.75977 | C142: 0.003995204443 | D142: 0.003987244806 | E142: 2021-08-03 | F142: 938 | G142: 0.01279317697 | H142: 0.01271203559 | I142: 2021-08-03 | J142: 8.859807 | K142: 0.005263207201 | L142: 0.005249404934 | M142: 2021-08-03 | N142: 72.181816 | O142: -0.003778347721 | P142: -0.003785503708 | Q142: 2021-08-03 | R142: 87.800003 | S142: 0.004555740163 | T142: 0.00454539419
A143: 2021-08-04 | B143: 17623.89062 | C143: -0.0011785981 | D143: -0.001179293193 | E143: 2021-08-04 | F143: 950 | G143: 0.01157894737 | H143: 0.01151242438 | I143: 2021-08-04 | J143: 8.906438 | K143: 0 | L143: 0 | M143: 2021-08-04 | N143: 71.909088 | O143: -0.005056829535 | P143: -0.005069658565 | Q143: 2021-08-04 | R143: 88.199997 | S143: 0.001133854914 | T143: 0.001133212586
A144: 2021-08-05 | B144: 17603.11914 | C144: -0.004365126622 | D144: -0.004374681604 | E144: 2021-08-05 | F144: 961 | G144: -0.02601456816 | H144: -0.02635893249 | I144: 2021-08-05 | J144: 8.906438 | K144: 0.002094215443 | L144: 0.00209202563 | M144: 2021-08-05 | N144: 71.545456 | O144: -0.001270688665 | P144: -0.001271496675 | Q144: 2021-08-05 | R144: 88.300003 | S144: -0.01132502793 | T144: -0.01138964438
A145: 2021-08-06 | B145: 17526.2793 | C145: -0.002346699223 | D145: -0.002349457036 | E145: 2021-08-06 | F145: 936 | G145: -0.01602564103 | H145: -0.01615544022 | I145: 2021-08-06 | J145: 8.92509 | K145: 0 | L145: 0 | M145: 2021-08-06 | N145: 71.454544 | O145: -0.006361302928 | P145: -0.006381622233 | Q145: 2021-08-06 | R145: 87.300003 | S145: -0.07331043276 | T145: -0.07613664842
A146: 2021-08-09 | B146: 17485.15039 | C146: -0.009236967506 | D146: -0.009279892828 | E146: 2021-08-09 | F146: 921 | G146: 0.00108577633 | H146: 0.001085187301 | I146: 2021-08-09 | J146: 8.92509 | K146: 0.008359467524 | L146: 0.008324720684 | M146: 2021-08-09 | N146: 71 | O146: -0.001280450704 | P146: -0.001281271182 | Q146: 2021-08-09 | R146: 80.900002 | S146: 0.0234857967 | T146: 0.02321424884
A147: 2021-08-10 | B147: 17323.64062 | C147: -0.005568167748 | D147: -0.005583727781 | E147: 2021-08-10 | F147: 922 | G147: -0.01301518438 | H147: -0.01310062405 | I147: 2021-08-10 | J147: 8.999699 | K147: 0.01761658918 | L147: 0.01746321573 | M147: 2021-08-10 | N147: 70.909088 | O147: 0.008974420881 | P147: 0.00893439009 | Q147: 2021-08-10 | R147: 82.800003 | S147: -0.06763292025 | T147: -0.07002867945
A148: 2021-08-11 | B148: 17227.17969 | C148: -0.0004202797632 | D148: -0.0004203681055 | E148: 2021-08-11 | F148: 910 | G148: -0.006593406593 | H148: -0.006615239119 | I148: 2021-08-11 | J148: 9.158243 | K148: -0.01221992035 | L148: -0.01229519746 | M148: 2021-08-11 | N148: 71.545456 | O148: -0.002541377331 | P148: -0.002544612112 | Q148: 2021-08-11 | R148: 77.199997 | S148: 0.02072546713 | T148: 0.02051361676
A149: 2021-08-12 | B149: 17219.93945 | C149: -0.01381131906 | D149: -0.01390758271 | E149: 2021-08-12 | F149: 904 | G149: 0.006637168142 | H149: 0.006615239119 | I149: 2021-08-12 | J149: 9.04633 | K149: -0.001030915299 | L149: -0.001031447058 | M149: 2021-08-12 | N149: 71.363632 | O149: -0.006369406759 | P149: -0.006389777978 | Q149: 2021-08-12 | R149: 78.800003 | S149: -0.03553303164 | T149: -0.03617969465
A150: 2021-08-13 | B150: 16982.10938 | C150: -0.007262928372 | D150: -0.007289431843 | E150: 2021-08-13 | F150: 910 | G150: -0.00989010989 | H150: -0.009939341903 | I150: 2021-08-13 | J150: 9.037004 | K150: -0.01444792987 | L150: -0.01455331753 | M150: 2021-08-13 | N150: 70.909088 | O150: -0.00641023616 | P150: -0.00643086995 | Q150: 2021-08-13 | R150: 76 | S150: 0.002631539474 | T150: 0.002628083036
A151: 2021-08-16 | B151: 16858.76953 | C151: -0.01170964201 | D151: -0.01177873981 | E151: 2021-08-16 | F151: 901 | G151: 0 | H151: 0 | I151: 2021-08-16 | J151: 8.906438 | K151: 0 | L151: 0 | M151: 2021-08-16 | N151: 70.454544 | O151: 0 | P151: 0 | Q151: 2021-08-16 | R151: 76.199997 | S151: 0 | T151: 0
A152: 2021-08-17 | B152: 16661.35938 | C152: 0.009897761178 | D152: 0.009849099173 | E152: 2021-08-17 | F152: 901 | G152: 0.01220865705 | H152: 0.01213473247 | I152: 2021-08-17 | J152: 8.906438 | K152: 0.01047118949 | L152: 0.01041674631 | M152: 2021-08-17 | N152: 70.454544 | O152: -0.001290363898 | P152: -0.001291197134 | Q152: 2021-08-17 | R152: 76.199997 | S152: 0.01181103721 | T152: 0.01174183131
A153: 2021-08-18 | B153: 16826.26953 | C153: -0.02679554961 | D153: -0.02716109514 | E153: 2021-08-18 | F153: 912 | G153: -0.02631578947 | H153: -0.02666824708 | I153: 2021-08-18 | J153: 8.999699 | K153: -0.003108770638 | L153: -0.003113612903 | M153: 2021-08-18 | N153: 70.363632 | O153: -0.007751845442 | P153: -0.007782047177 | Q153: 2021-08-18 | R153: 77.099998 | S153: -0.05317766675 | T153: -0.05464381348
A154: 2021-08-19 | B154: 16375.40039 | C154: -0.002043306435 | D154: -0.002045396834 | E154: 2021-08-19 | F154: 888 | G154: -0.01689189189 | H154: -0.01703618715 | I154: 2021-08-19 | J154: 8.971721 | K154: -0.005197553513 | L154: -0.005211107781 | M154: 2021-08-19 | N154: 69.818184 | O154: -0.002604249919 | P154: -0.002607646876 | Q154: 2021-08-19 | R154: 73 | S154: 0.05753420548 | T154: 0.05593997702
A155: 2021-08-20 | B155: 16341.94043 | C155: 0.02447074236 | D155: 0.02417613032 | E155: 2021-08-20 | F155: 873 | G155: 0.04352806415 | H155: 0.04260734142 | I155: 2021-08-20 | J155: 8.92509 | K155: 0.004179789784 | L155: 0.004171078727 | M155: 2021-08-20 | N155: 69.63636 | O155: 0.01305490408 | P155: 0.01297042328 | Q155: 2021-08-20 | R155: 77.199997 | S155: 0.003886049374 | T155: 0.003878518189
A156: 2021-08-23 | B156: 16741.83984 | C156: 0.004592722527 | D156: 0.004582208158 | E156: 2021-08-23 | F156: 911 | G156: -0.002195389682 | H156: -0.002197803082 | I156: 2021-08-23 | J156: 8.962395 | K156: -0.002081140142 | L156: -0.002083308723 | M156: 2021-08-23 | N156: 70.545456 | O156: 0.01159785543 | P156: 0.01153111583 | Q156: 2021-08-23 | R156: 77.5 | S156: -0.01935483871 | T156: -0.01954459607
A157: 2021-08-24 | B157: 16818.73047 | C157: 0.01350452143 | D157: 0.0134141481 | E157: 2021-08-24 | F157: 909 | G157: 0.002200220022 | H157: 0.002197803082 | I157: 2021-08-24 | J157: 8.943743 | K157: 0.001042740159 | L157: 0.001042196883 | M157: 2021-08-24 | N157: 71.363632 | O157: 0.008917259144 | P157: 0.008877735179 | Q157: 2021-08-24 | R157: 76 | S157: 0.01315789474 | T157: 0.01307208157
A158: 2021-08-25 | B158: 17045.85938 | C158: 0.001237928962 | D158: 0.00123716336 | E158: 2021-08-25 | F158: 911 | G158: -0.02524698134 | H158: -0.02557115427 | I158: 2021-08-25 | J158: 8.953069 | K158: -0.006250035602 | L158: -0.00626964884 | M158: 2021-08-25 | N158: 72 | O158: -0.005050555556 | P158: -0.005063352718 | Q158: 2021-08-25 | R158: 77 | S158: 0.04285718182 | T158: 0.04196423646
A159: 2021-08-26 | B159: 17066.96094 | C159: 0.008376930756 | D159: 0.008342038994 | E159: 2021-08-26 | F159: 888 | G159: 0.009009009009 | H159: 0.008968669983 | I159: 2021-08-26 | J159: 8.897112 | K159: 0.002096410611 | L159: 0.002094216208 | M159: 2021-08-26 | N159: 71.63636 | O159: 0.003807116945 | P159: 0.003799888216 | Q159: 2021-08-26 | R159: 80.300003 | S159: 0.02615191683 | T159: 0.02581580287
A160: 2021-08-27 | B160: 17209.92969 | C160: 0.01084198753 | D160: 0.01078363457 | E160: 2021-08-27 | F160: 896 | G160: 0.01785714286 | H160: 0.0176995771 | I160: 2021-08-27 | J160: 8.915764 | K160: 0.01987446056 | L160: 0.01967954184 | M160: 2021-08-27 | N160: 71.909088 | O160: 0.002528526019 | P160: 0.002525334675 | Q160: 2021-08-27 | R160: 82.400002 | S160: -0.02305827614 | T160: -0.02332827676
A161: 2021-08-30 | B161: 17396.51953 | C161: 0.005390131735 | D161: 0.005375656965 | E161: 2021-08-30 | F161: 912 | G161: -0.01206140351 | H161: -0.01213473247 | I161: 2021-08-30 | J161: 9.09296 | K161: -0.006153771709 | L161: -0.006172784201 | M161: 2021-08-30 | N161: 72.090912 | O161: 0.006305149809 | P161: 0.006285355512 | Q161: 2021-08-30 | R161: 80.5 | S161: -0.02732915528 | T161: -0.02770954311
A162: 2021-08-31 | B162: 17490.28906 | C162: -0.0009318787666 | D162: -0.0009323132356 | E162: 2021-08-31 | F162: 901 | G162: 0.02885682575 | H162: 0.02844830796 | I162: 2021-08-31 | J162: 9.037004 | K162: 0.00412791673 | L162: 0.004119420255 | M162: 2021-08-31 | N162: 72.545456 | O162: 0.01002505243 | P162: 0.009975134932 | Q162: 2021-08-31 | R162: 78.300003 | S162: 0.002554240004 | T162: 0.002550983477
A163: 2021-09-01 | B163: 17473.99023 | C163: -0.008826287868 | D163: -0.008865470273 | E163: 2021-09-01 | F163: 927 | G163: 0.006472491909 | H163: 0.006451635281 | I163: 2021-09-01 | J163: 9.074308 | K163: -0.006166530825 | L163: -0.006185622403 | M163: 2021-09-01 | N163: 73.272728 | O163: -0.002481359777 | P163: -0.002484443452 | Q163: 2021-09-01 | R163: 78.5 | S163: -0.03439486624 | T163: -0.03500029256
A164: 2021-09-02 | B164: 17319.75977 | C164: 0.01138353872 | D164: 0.0113192338 | E164: 2021-09-02 | F164: 933 | G164: -0.01500535906 | H164: -0.01511907849 | I164: 2021-09-02 | J164: 9.018351 | K164: 0.007238906536 | L164: 0.007212831414 | M164: 2021-09-02 | N164: 73.090912 | O164: -0.002487641692 | P164: -0.002490741014 | Q164: 2021-09-02 | R164: 75.800003 | S164: 0 | T164: 0
A165: 2021-09-03 | B165: 17516.91992 | C165: -0.001234186209 | D165: -0.001234948444 | E165: 2021-09-03 | F165: 919 | G165: -0.02502720348 | H165: -0.02534570938 | I165: 2021-09-03 | J165: 9.083634 | K165: 0.004106836537 | L165: 0.004098426502 | M165: 2021-09-03 | N165: 72.909088 | O165: -0.003740658503 | P165: -0.003747672263 | Q165: 2021-09-03 | R165: 75.800003 | S165: -0.007915646125 | T165: -0.007947141164
A166: 2021-09-06 | B166: 17495.30078 | C166: -0.003797113341 | D166: -0.003804340677 | E166: 2021-09-06 | F166: 896 | G166: 0.0078125 | H166: 0.007782140442 | I166: 2021-09-06 | J166: 9.120939 | K166: 0.004089929776 | L166: 0.004081588748 | M166: 2021-09-06 | N166: 72.63636 | O166: -0.003754703567 | P166: -0.003761770161 | Q166: 2021-09-06 | R166: 75.199997 | S166: 0 | T166: 0
A167: 2021-09-07 | B167: 17428.86914 | C167: -0.00908715911 | D167: -0.009128699187 | E167: 2021-09-07 | F167: 903 | G167: 0.009966777409 | H167: 0.009917436657 | I167: 2021-09-07 | J167: 9.158243 | K167: -0.00601217941 | L167: -0.006030325329 | M167: 2021-09-07 | N167: 72.363632 | O167: -0.003768743946 | P167: -0.003775863555 | Q167: 2021-09-07 | R167: 75.199997 | S167: 0.01462773995 | T167: 0.01452178655
A168: 2021-09-08 | B168: 17270.49023 | C168: 0.001959402631 | D168: 0.001957485505 | E168: 2021-09-08 | F168: 912 | G168: -0.01206140351 | H168: -0.01213473247 | I168: 2021-09-08 | J168: 9.103182 | K168: -0.004237309547 | L168: -0.004246312384 | M168: 2021-09-08 | N168: 72.090912 | O168: 0 | P168: 0 | Q168: 2021-09-08 | R168: 76.300003 | S168: 0.01310615938 | T168: 0.01302101679
A169: 2021-09-09 | B169: 17304.33008 | C169: 0.00983801362 | D169: 0.009789935436 | E169: 2021-09-09 | F169: 901 | G169: 0.02663706992 | H169: 0.0262884799 | I169: 2021-09-09 | J169: 9.064609 | K169: 0.005319148349 | L169: 0.005305051646 | M169: 2021-09-09 | N169: 72.090912 | O169: 0.005044075458 | P169: 0.005031396727 | Q169: 2021-09-09 | R169: 77.300003 | S169: 0.02069856323 | T169: 0.0204872588
A170: 2021-09-10 | B170: 17474.57031 | C170: -0.001617193756 | D170: -0.001618502825 | E170: 2021-09-10 | F170: 925 | G170: 0.002162162162 | H170: 0.002159828053 | I170: 2021-09-10 | J170: 9.112825 | K170: 0.004232825715 | L170: 0.004223892508 | M170: 2021-09-10 | N170: 72.454544 | O170: 0.002509380226 | P170: 0.002506236989 | Q170: 2021-09-10 | R170: 78.900002 | S170: -0.01774400462 | T170: -0.01790331684
A171: 2021-09-13 | B171: 17446.31055 | C171: -0.0006540154131 | D171: -0.0006542293745 | E171: 2021-09-13 | F171: 927 | G171: 0.02157497303 | H171: 0.02134552762 | I171: 2021-09-13 | J171: 9.151398 | K171: 0.007376140782 | L171: 0.007349070092 | M171: 2021-09-13 | N171: 72.63636 | O171: 0 | P171: 0 | Q171: 2021-09-13 | R171: 77.5 | S171: 0.007741909677 | T171: 0.007712094878
A172: 2021-09-14 | B172: 17434.90039 | C172: -0.004640140705 | D172: -0.004650939577 | E172: 2021-09-14 | F172: 947 | G172: -0.01267159451 | H172: -0.0127525639 | I172: 2021-09-14 | J172: 9.2189 | K172: -0.001046003319 | L172: -0.001046550763 | M172: 2021-09-14 | N172: 72.63636 | O172: 0.002503209137 | P172: 0.002500081327 | Q172: 2021-09-14 | R172: 78.099998 | S172: -0.02432779832 | T172: -0.02462860791
A173: 2021-09-15 | B173: 17354 | C173: -0.004339102282 | D173: -0.004348543507 | E173: 2021-09-15 | F173: 935 | G173: 0.001069518717 | H173: 0.001068947189 | I173: 2021-09-15 | J173: 9.209257 | K173: 0.01570680458 | L173: 0.01558472934 | M173: 2021-09-15 | N173: 72.818184 | O173: 0.003745328227 | P173: 0.003738331949 | Q173: 2021-09-15 | R173: 76.199997 | S173: 0.003937047399 | T173: 0.00392931751
A174: 2021-09-16 | B174: 17278.69922 | C174: -0.000110549757 | D174: -0.0001105558681 | E174: 2021-09-16 | F174: 936 | G174: 0.004273504274 | H174: 0.004264398786 | I174: 2021-09-16 | J174: 9.353905 | K174: -0.01546391587 | L174: -0.01558472934 | M174: 2021-09-16 | N174: 73.090912 | O174: -0.001243820846 | P174: -0.001244595033 | Q174: 2021-09-16 | R174: 76.5 | S174: -0.01045755556 | T174: -0.01051262002
A175: 2021-09-17 | B175: 17276.78906 | C175: -0.02031446635 | D175: -0.02052364284 | E175: 2021-09-17 | F175: 940 | G175: -0.03085106383 | H175: -0.031336978 | I175: 2021-09-17 | J175: 9.209257 | K175: -0.01256540023 | L175: -0.01264501248 | M175: 2021-09-17 | N175: 73 | O175: -0.011208 | P175: -0.01127128293 | Q175: 2021-09-17 | R175: 75.699997 | S175: 0 | T175: 0
A176: 2021-09-22 | B176: 16925.82031 | C176: 0.009004017955 | D176: 0.008963723479 | E176: 2021-09-22 | F176: 911 | G176: 0.004390779363 | H176: 0.004381168016 | I176: 2021-09-22 | J176: 9.093539 | K176: 0.01696710159 | L176: 0.01682476805 | M176: 2021-09-22 | N176: 72.181816 | O176: -0.001259375353 | P176: -0.001260169032 | Q176: 2021-09-22 | R176: 75.699997 | S176: 0.04095120374 | T176: 0.04013491412
A177: 2021-09-23 | B177: 17078.2207 | C177: 0.01065501806 | D177: 0.01059865338 | E177: 2021-09-23 | F177: 915 | G177: 0.005464480874 | H177: 0.005449604768 | I177: 2021-09-23 | J177: 9.24783 | K177: 0 | L177: 0 | M177: 2021-09-23 | N177: 72.090912 | O177: 0.002522037729 | P177: 0.002518862729 | Q177: 2021-09-23 | R177: 78.800003 | S177: 0.04695427486 | T177: 0.04588525841
A178: 2021-09-24 | B178: 17260.18945 | C178: 0.003104257815 | D178: 0.003099449555 | E178: 2021-09-24 | F178: 920 | G178: 0.04239130435 | H178: 0.04151740484 | I178: 2021-09-24 | J178: 9.24783 | K178: -0.004171032556 | L178: -0.004179755576 | M178: 2021-09-24 | N178: 72.272728 | O178: 0.0276729557 | P178: 0.02729697993 | Q178: 2021-09-24 | R178: 82.5 | S178: -0.00121209697 | T178: -0.001212832153
A179: 2021-09-27 | B179: 17313.76953 | C179: -0.007643054146 | D179: -0.007672411969 | E179: 2021-09-27 | F179: 959 | G179: -0.002085505735 | H179: -0.00208768343 | I179: 2021-09-27 | J179: 9.209257 | K179: 0.004188502938 | L179: 0.004179755576 | M179: 2021-09-27 | N179: 74.272728 | O179: -0.008567990124 | P179: -0.008604906368 | Q179: 2021-09-27 | R179: 82.400002 | S179: -0.04490297221 | T179: -0.04594234388
A180: 2021-09-28 | B180: 17181.43945 | C180: -0.01897271273 | D180: -0.01915500403 | E180: 2021-09-28 | F180: 957 | G180: -0.04597701149 | H180: -0.04706751086 | I180: 2021-09-28 | J180: 9.24783 | K180: -0.002085570345 | L180: -0.002087748175 | M180: 2021-09-28 | N180: 73.63636 | O180: -0.01234564012 | P180: -0.01242248062 | Q180: 2021-09-28 | R180: 78.699997 | S180: -0.07115627971 | T180: -0.07381477791
A181: 2021-09-29 | B181: 16855.46094 | C181: 0.004705216505 | D181: 0.004694181574 | E181: 2021-09-29 | F181: 913 | G181: -0.008762322015 | H181: -0.008800936895 | I181: 2021-09-29 | J181: 9.228543 | K181: -0.00104491034 | L181: -0.001045456639 | M181: 2021-09-29 | N181: 72.727272 | O181: 0.001250040013 | P181: 0.001249259363 | Q181: 2021-09-29 | R181: 73.099998 | S181: 0.009575992054 | T181: 0.009530432861
A182: 2021-09-30 | B182: 16934.76953 | C182: -0.02148708935 | D182: -0.0217212979 | E182: 2021-09-30 | F182: 905 | G182: -0.02209944751 | H182: -0.02234729869 | I182: 2021-09-30 | J182: 9.2189 | K182: -0.01046025014 | L182: -0.01051534308 | M182: 2021-09-30 | N182: 72.818184 | O182: -0.009987505319 | P182: -0.01003771504 | Q182: 2021-09-30 | R182: 73.800003 | S182: -0.01761521609 | T182: -0.0177722104
A183: 2021-10-01 | B183: 16570.89062 | C183: -0.009808828003 | D183: -0.009857251468 | E183: 2021-10-01 | F183: 885 | G183: 0.00790960452 | H183: 0.007878487572 | I183: 2021-10-01 | J183: 9.122468 | K183: 0.001057060436 | L183: 0.001056502141 | M183: 2021-10-01 | N183: 72.090912 | O183: -0.005044186429 | P183: -0.005056951281 | Q183: 2021-10-01 | R183: 72.5 | S183: -0.04827586207 | T183: -0.04948005726
A184: 2021-10-04 | B184: 16408.34961 | C184: 0.0031935199 | D184: 0.003188431446 | E184: 2021-10-04 | F184: 892 | G184: -0.02802690583 | H184: -0.0284271558 | I184: 2021-10-04 | J184: 9.132111 | K184: -0.003167832717 | L184: -0.003172860921 | M184: 2021-10-04 | N184: 71.727272 | O184: 0.0063371154 | P184: 0.006317120314 | Q184: 2021-10-04 | R184: 69 | S184: 0.02318837681 | T184: 0.02292361157
A185: 2021-10-05 | B185: 16460.75 | C185: -0.004106121775 | D185: -0.004114575041 | E185: 2021-10-05 | F185: 867 | G185: 0.00461361015 | H185: 0.004603000072 | I185: 2021-10-05 | J185: 9.103182 | K185: 0.003177899772 | L185: 0.003172860921 | M185: 2021-10-05 | N185: 72.181816 | O185: -0.006297209258 | P185: -0.006317120314 | Q185: 2021-10-05 | R185: 70.599998 | S185: 0.001416416471 | T185: 0.001415414299
A186: 2021-10-06 | B186: 16393.16016 | C186: 0.01956298944 | D186: 0.01937409376 | E186: 2021-10-06 | F186: 871 | G186: 0.04592422503 | H186: 0.04490092041 | I186: 2021-10-06 | J186: 9.132111 | K186: 0.006335884441 | L186: 0.006315897106 | M186: 2021-10-06 | N186: 71.727272 | O186: 0.01013940695 | P186: 0.01008834801 | Q186: 2021-10-06 | R186: 70.699997 | S186: 0.02687413127 | T186: 0.02651936381
A187: 2021-10-07 | B187: 16713.85938 | C187: -0.0043933412 | D187: -0.004403020283 | E187: 2021-10-07 | F187: 911 | G187: -0.001097694841 | H187: -0.001098297749 | I187: 2021-10-07 | J187: 9.189971 | K187: -0.003147996876 | L187: -0.003152962242 | M187: 2021-10-07 | N187: 72.454544 | O187: 0.002509380226 | P187: 0.002506236989 | Q187: 2021-10-07 | R187: 72.599998 | S187: 0.01928377464 | T187: 0.01910019892
A188: 2021-10-08 | B188: 16640.42969 | C188: -0.010672191 | D188: -0.01072954728 | E188: 2021-10-08 | F188: 910 | G188: -0.02527472527 | H188: -0.0255996172 | I188: 2021-10-08 | J188: 9.161041 | K188: -0.001052609632 | L188: -0.001053164015 | M188: 2021-10-08 | N188: 72.63636 | O188: -0.006257802566 | P188: -0.006277464683 | Q188: 2021-10-08 | R188: 74 | S188: 0.06621624324 | T188: 0.06411616
A189: 2021-10-12 | B189: 16462.83984 | C189: -0.00697629395 | D189: -0.00700074206 | E189: 2021-10-12 | F189: 887 | G189: -0.0281848929 | H189: -0.02858971165 | I189: 2021-10-12 | J189: 9.151398 | K189: -0.005268703208 | L189: -0.00528263177 | M189: 2021-10-12 | N189: 72.181816 | O189: -0.005037723074 | P189: -0.00505045518 | Q189: 2021-10-12 | R189: 78.900002 | S189: -0.02027882078 | T189: -0.0204872588
A190: 2021-10-13 | B190: 16347.99023 | C190: 0.002403296212 | D190: 0.002400412914 | E190: 2021-10-13 | F190: 862 | G190: -0.02552204176 | H190: -0.02585337883 | I190: 2021-10-13 | J190: 9.103182 | K190: 0 | L190: 0 | M190: 2021-10-13 | N190: 71.818184 | O190: 0.005063230226 | P190: 0.00505045518 | Q190: 2021-10-13 | R190: 77.300003 | S190: -0.03622254711 | T190: -0.03689486902
A191: 2021-10-14 | B191: 16387.2793 | C191: 0.02403755675 | D191: 0.02375320245 | E191: 2021-10-14 | F191: 840 | G191: 0.02023809524 | H191: 0.02003602676 | I191: 2021-10-14 | J191: 9.103182 | K191: 0.006355909395 | L191: 0.006335795785 | M191: 2021-10-14 | N191: 72.181816 | O191: -0.002518861537 | P191: -0.002522039206 | Q191: 2021-10-14 | R191: 74.5 | S191: 0.06040268456 | T191: 0.05864872708
A192: 2021-10-15 | B192: 16781.18945 | C192: -0.004512702464 | D192: -0.004522915443 | E192: 2021-10-15 | F192: 857 | G192: 0.01166861144 | H192: 0.01160105818 | I192: 2021-10-15 | J192: 9.161041 | K192: 0 | L192: 0 | M192: 2021-10-15 | N192: 72 | O192: 0.005050444444 | P192: 0.005037733728 | Q192: 2021-10-15 | R192: 79 | S192: 0.01898734177 | T192: 0.01880933196
A193: 2021-10-18 | B193: 16705.46094 | C193: 0.01168533959 | D193: 0.01161759325 | E193: 2021-10-18 | F193: 867 | G193: 0.03575547866 | H193: 0.03513109152 | I193: 2021-10-18 | J193: 9.161041 | K193: 0 | L193: 0 | M193: 2021-10-18 | N193: 72.363632 | O193: 0.005025176182 | P193: 0.005012592125 | Q193: 2021-10-18 | R193: 80.5 | S193: 0.01863354037 | T193: 0.01846206284
A194: 2021-10-19 | B194: 16900.66992 | C194: -0.0007603017549 | D194: -0.0007605909308 | E194: 2021-10-19 | F194: 898 | G194: 0.003340757238 | H194: 0.003335189306 | I194: 2021-10-19 | J194: 9.161041 | K194: 0.001052609632 | L194: 0.001052056027 | M194: 2021-10-19 | N194: 72.727272 | O194: -0.003750010038 | P194: -0.003757058953 | Q194: 2021-10-19 | R194: 82 | S194: -0.01097563415 | T194: -0.0110363108
A195: 2021-10-20 | B195: 16887.82031 | C195: 0.0001000397309 | D195: 0.0001000347273 | E195: 2021-10-20 | F195: 901 | G195: 0.01331853496 | H195: 0.01323062299 | I195: 2021-10-20 | J195: 9.170684 | K195: 0 | L195: 0 | M195: 2021-10-20 | N195: 72.454544 | O195: -0.01003763132 | P195: -0.01008834801 | Q195: 2021-10-20 | R195: 81.099998 | S195: 0 | T195: 0
A196: 2021-10-21 | B196: 16889.50977 | C196: -4.556271974e-05 | D196: -4.556375775e-05 | E196: 2021-10-21 | F196: 913 | G196: 0.01423877327 | H196: 0.01413835405 | I196: 2021-10-21 | J196: 9.170684 | K196: 0 | L196: 0 | M196: 2021-10-21 | N196: 71.727272 | O196: 0.008871939253 | P196: 0.008832814836 | Q196: 2021-10-21 | R196: 81.099998 | S196: 0.06781751092 | T196: 0.06561685601
A197: 2021-10-22 | B197: 16888.74023 | C197: =(B198-B197)/B197 -> 0.0003256607612 | D197: =LN(B198/B197) -> 0.0003256077452 | E197: 2021-10-22 | F197: 926 | G197: =(F198-F197)/F197 -> 0.01295896328 | H197: =LN(F198/F197) -> 0.01287571436 | I197: 2021-10-22 | J197: 9.170684 | K197: =(J198-J197)/J197 -> -0.002103005621 | L197: =LN(J198/J197) -> -0.002105220042 | M197: 2021-10-22 | N197: 72.363632 | O197: =(N198-N197)/N197 -> 0.005025176182 | P197: =LN(N198/N197) -> 0.005012592125 | Q197: 2021-10-22 | R197: 86.599998 | S197: =(R198-R197)/R197 -> 0.005773672189 | T197: =LN(R198/R197) -> 0.005757068423
A198: 2021-10-25 | B198: 16894.24023 | C198: 0.008292744039 | D198: 0.008258548159 | E198: 2021-10-25 | F198: 938 | G198: 0.008528784648 | H198: 0.008492620046 | I198: 2021-10-25 | J198: 9.151398 | K198: 0.004214984421 | L198: 0.004206126257 | M198: 2021-10-25 | N198: 72.727272 | O198: 0.00500005005 | P198: 0.004987591312 | Q198: 2021-10-25 | R198: 87.099998 | S198: 0.01377732523 | T198: 0.01368328069
A199: 2021-10-26 | B199: 17034.33984 | C199: 0.002360580884 | D199: 0.002357799089 | E199: 2021-10-26 | F199: 946 | G199: -0.00422832981 | H199: -0.004237294476 | I199: 2021-10-26 | J199: 9.189971 | K199: -0.003147996876 | L199: -0.003152962242 | M199: 2021-10-26 | N199: 73.090912 | O199: -0.004975173931 | P199: -0.004987591312 | Q199: 2021-10-26 | R199: 88.300003 | S199: -0.001132570743 | T199: -0.001133212586
A200: 2021-10-27 | B200: 17074.55078 | C200: -0.001928011016 | D200: -0.001929872022 | E200: 2021-10-27 | F200: 942 | G200: -0.006369426752 | H200: -0.006389798099 | I200: 2021-10-27 | J200: 9.161041 | K200: 0.001052609632 | L200: 0.001052056027 | M200: 2021-10-27 | N200: 72.727272 | O200: 0.003750010038 | P200: 0.003742996279 | Q200: 2021-10-27 | R200: 88.199997 | S200: 0.03061230263 | T200: 0.03015309419
A201: 2021-10-28 | B201: 17041.63086 | C201: -0.003181661629 | D201: -0.003186733876 | E201: 2021-10-28 | F201: 936 | G201: -0.02457264957 | H201: -0.02487959588 | I201: 2021-10-28 | J201: 9.170684 | K201: -0.005257623096 | L201: -0.005271493032 | M201: 2021-10-28 | N201: 73 | O201: -0.003736 | P201: -0.003742996279 | Q201: 2021-10-28 | R201: 90.900002 | S201: 0.01100109987 | T201: 0.01094102794
... 322 more rows

Sheet 效率前緣
B1: 日期 | C1: 大盤報酬率-Ln | D1: 報酬率Ln(聯發科) | E1: 報酬率Ln(台企銀) | F1: 報酬率Ln(卜蜂) | G1: 報酬率Ln(元太) | K1: 2454-聯發科 | L1: 2834-台企銀 | M1: 1215-卜蜂 | N1: 8069-元太 | Q1: 變數 | U1: 目標式 | W1: 限制式1 | Y1: 限制式2 | AB1: 變數 | AF1: 目標式 | AH1: 限制式1 | AJ1: 限制式2
A2: 1 | B2: 2021-01-04 | C2: =LN(A3/A2) -> 0.6931471806 | D2: 0.006313131313 | E2: 0.002059707215 | F2: -0.008163286808 | G2: 0.01030927835 | J2: 報酬率 | K2: =AVERAGE(D2:D520) -> 0.0001521924165 | L2: =AVERAGE(E2:E520) -> 0.0009677474498 | M2: =AVERAGE(F2:F520) -> 0.0003935493293 | N2: =AVERAGE(G2:G520) -> 0.003223779925 | Q2: 2454-聯發科 | R2: 2834-台企銀 | S2: 1215-卜蜂 | T2: 8069-元太 | U2: 投資組合變異最小（風險最小） | V2: STD | W2: 規劃求解結果= | X2: 投資組合期望報酬（給定） | Y2: W1+W2+W3+W4= | AB2: 2454-聯發科 | AC2: 2834-台企銀 | AD2: 1215-卜蜂 | AE2: 8069-元太 | AF2: 投資組合變異最小（風險最小） | AG2: STD | AH2: 規劃求解結果= | AI2: 投資組合期望報酬（給定） | AJ2: W1+W2+W3+W4=
A3: 2 | B3: 2021-01-05 | C3: =LN(A4/A3) -> 0.4054651081 | D3: -0.006273525721 | E3: -0.009249741137 | F3: -0.005487023259 | G3: -0.03979593878 | J3: 標準差 | K3: =_xlfn.STDEV.P(D2:D520) -> 0.02555904576 | L3: =_xlfn.STDEV.P(E2:E520) -> 0.01214479849 | M3: =_xlfn.STDEV.P(F2:F520) -> 0.008604629176 | N3: =_xlfn.STDEV.P(G2:G520) -> 0.03299769806 | P3: 1 | Q3: 1 | R3: 0 | S3: 0 | T3: 0 | U3: =MMULT(Q3:T3,MMULT($K$5:$N$8,TRANSPOSE(Q3:T3))) -> 0.0006545259491 | V3: =SQRT(U3) -> 0.02558370476 | W3: =SUMPRODUCT($K$2:$N$2,Q3:T3) -> 0.0001521924165 | X3: 0.0001522 | Y3: =SUM(Q3:T3) -> 1 | AA3: 1 | AB3: 0 | AC3: 0.09919180135 | AD3: 0 | AE3: 0.9008081987 | AF3: =MMULT(AB3:AE3,MMULT($K$5:$N$8,TRANSPOSE(AB3:AE3))) -> 0.0008981498169 | AG3: =SQRT(AF3) -> 0.02996914775 | AH3: =SUMPRODUCT($K$2:$N$2,AB3:AE3) -> 0.003 | AI3: 0.003 | AJ3: =SUM(AB3:AE3) -> 1
A4: 3 | B4: 2021-01-06 | C4: 0.2876820725 | D4: 0.008838383838 | E4: 0.001037331821 | F4: 0.001379354544 | G4: 0.02337944789 | J4: Var-Cov | K4: 2454-聯發科 | L4: 2834-台企銀 | M4: 1215-卜蜂 | N4: 8069-元太 | P4: 2 | Q4: 0 | R4: 0 | S4: 0.07772236754 | T4: 0.9222776325 | U4: =MMULT(Q4:T4,MMULT($K$5:$N$8,TRANSPOSE(Q4:T4))) -> 0.0009365446513 | V4: =SQRT(U4) -> 0.03060301703 | W4: =SUMPRODUCT($K$2:$N$2,Q4:T4) -> 0.003003807703 | X4: 0.0029 | Y4: =SUM(Q4:T4) -> 1 | AA4: 2 | AB4: 0 | AC4: 0.1435174044 | AD4: 0 | AE4: 0.8564825956 | AF4: =MMULT(AB4:AE4,MMULT($K$5:$N$8,TRANSPOSE(AB4:AE4))) -> 0.0008190594341 | AG4: 0.02861921442 | AH4: =SUMPRODUCT($K$2:$N$2,AB4:AE4) -> 0.0029 | AI4: 0.0029 | AJ4: 1
A5: 4 | B5: 2021-01-07 | C5: 0.2231435513 | D5: 0.04881101377 | E5: 0.01036267991 | F5: 0.002754787879 | G5: -0.01453792255 | J5: 2454-聯發科 | K5: 0.0006545259491 | L5: 7.349952684e-05 | M5: 3.611356915e-05 | N5: 0.0002346591435 | P5: 3 | Q5: 0 | R5: 0 | S5: 0.1277223675 | T5: 0.8722776325 | U5: =MMULT(Q5:T5,MMULT($K$5:$N$8,TRANSPOSE(Q5:T5))) -> 0.0008439288372 | V5: 0.0290504533 | W5: 0.002862296173 | X5: 0.0028 | Y5: 1 | AA5: 3 | AB5: 0 | AC5: 0.1882862635 | AD5: 0 | AE5: 0.8117137365 | AF5: =MMULT(AB5:AE5,MMULT($K$5:$N$8,TRANSPOSE(AB5:AE5))) -> 0.0007436084155 | AG5: 0.02726918436 | AH5: =SUMPRODUCT($K$2:$N$2,AB5:AE5) -> 0.002799 | AI5: 0.0028 | AJ5: 1
A6: 5 | B6: 2021-01-08 | C6: 0.1823215568 | D6: 0.01551312649 | E6: 0.005128253066 | F6: 0.009615450866 | G6: 0.007376143153 | J6: 2834-台企銀 | K6: 7.349952684e-05 | L6: 0.000147780872 | M6: 2.944940147e-05 | N6: 6.400716168e-05 | P6: 4 | Q6: 0 | R6: 0 | S6: 0.1795256277 | T6: 0.8204743723 | U6: =MMULT(Q6:T6,MMULT($K$5:$N$8,TRANSPOSE(Q6:T6))) -> 0.0007535186437 | V6: 0.02745029406 | W6: 0.002715681001 | X6: 0.0027 | Y6: 1 | AA6: 4 | AB6: 0 | AC6: 0.2326118666 | AD6: 0 | AE6: 0.7673881334 | AF6: =MMULT(AB6:AE6,MMULT($K$5:$N$8,TRANSPOSE(AB6:AE6))) -> 0.000673290841 | AG6: 0.02594784848 | AH6: =SUMPRODUCT($K$2:$N$2,AB6:AE6) -> 0.002699 | AI6: 0.0027 | AJ6: 1
A7: 6 | B7: 2021-01-11 | C7: 0.1541506798 | D7: -0.005875440658 | E7: -0.01632655116 | F7: -0.005442231115 | G7: -0.03138075379 | J7: 1215-卜蜂 | K7: 3.611356915e-05 | L7: 2.944940147e-05 | M7: 7.418257692e-05 | N7: 5.676983614e-05 | P7: 5 | Q7: 0 | R7: 0 | S7: 0.2295256277 | T7: 0.7704743723 | U7: =MMULT(Q7:T7,MMULT($K$5:$N$8,TRANSPOSE(Q7:T7))) -> 0.0006716083892 | V7: 0.02591540834 | W7: 0.002574169471 | X7: 0.0026 | Y7: 1 | AA7: 5 | AB7: 0 | AC7: 0.2769374696 | AD7: 0 | AE7: 0.7230625304 | AF7: =MMULT(AB7:AE7,MMULT($K$5:$N$8,TRANSPOSE(AB7:AE7))) -> 0.0006073378477 | AG7: 0.02464422544 | AH7: =SUMPRODUCT($K$2:$N$2,AB7:AE7) -> 0.002599 | AI7: 0.0026 | AJ7: 1
A8: 7 | B8: 2021-01-12 | C8: 0.1335313926 | D8: 0.04491725768 | E8: 0.001037331821 | F8: 0.001368032862 | G8: -0.005399568151 | J8: 8069-元太 | K8: 0.0002346591435 | L8: 6.400716168e-05 | M8: 5.676983614e-05 | N8: 0.001090950101 | P8: 6 | Q8: 0 | R8: 0.001417151786 | S8: 0.2781723398 | T8: 0.7204105084 | U8: =MMULT(Q8:T8,MMULT($K$5:$N$8,TRANSPOSE(Q8:T8))) -> 0.0005948412124 | V8: 0.02438936679 | W8: 0.002433290918 | X8: 0.0025 | Y8: 1 | AA8: 6 | AB8: 0 | AC8: 0.3208198166 | AD8: 0 | AE8: 0.6791801834 | AF8: =MMULT(AB8:AE8,MMULT($K$5:$N$8,TRANSPOSE(AB8:AE8))) -> 0.0005463437152 | AG8: 0.02337399656 | AH8: =SUMPRODUCT($K$2:$N$2,AB8:AE8) -> 0.0025 | AI8: 0.0025 | AJ8: 1
A9: 8 | B9: 2021-01-13 | C9: 0.1177830357 | D9: -0.02601809955 | E9: 0 | F9: -0.002732327809 | G9: -0.01737239994 | P9: 7 | Q9: 0 | R9: 0.01194398535 | S9: 0.319116679 | T9: 0.6689393357 | U9: =MMULT(Q9:T9,MMULT($K$5:$N$8,TRANSPOSE(Q9:T9))) -> 0.0005212382527 | V9: 0.02283064284 | W9: 0.002293660118 | X9: 0.0024 | Y9: 1 | AA9: 7 | AB9: 0 | AC9: 0.3651454197 | AD9: 0 | AE9: 0.6348545803 | AF9: =MMULT(AB9:AE9,MMULT($K$5:$N$8,TRANSPOSE(AB9:AE9))) -> 0.0004890762386 | AG9: 0.02211506813 | AH9: =SUMPRODUCT($K$2:$N$2,AB9:AE9) -> 0.0024 | AI9: 0.0024 | AJ9: 1
A10: 9 | B10: 2021-01-14 | C10: 0.1053605157 | D10: -0.01277584204 | E10: -0.009326423028 | F10: -0.005479386662 | G10: -0.02099449724 | J10: 標準差(SD) | K10: =K5^0.5 -> 0.02558370476 | L10: =L6^0.5 -> 0.01215651562 | M10: =M7^0.5 -> 0.008612930798 | N10: =N8^0.5 -> 0.03302953377 | P10: 8 | Q10: 0 | R10: 0.02252169579 | S10: 0.360258904 | T10: 0.6172194002 | U10: =MMULT(Q10:T10,MMULT($K$5:$N$8,TRANSPOSE(Q10:T10))) -> 0.0004528149053 | V10: 0.02127944795 | W10: 0.002153354475 | X10: 0.0023 | Y10: 1 | AA10: 8 | AB10: 0 | AC10: 0.4099142788 | AD10: 0 | AE10: 0.5900857212 | AF10: =MMULT(AB10:AE10,MMULT($K$5:$N$8,TRANSPOSE(AB10:AE10))) -> 0.0004356663554 | AG10: 0.02087262215 | AH10: =SUMPRODUCT($K$2:$N$2,AB10:AE10) -> 0.002299 | AI10: 0.0023 | AJ10: 1
A11: 10 | B11: 2021-01-15 | C11: 0.0953101798 | D11: -0.007058823529 | E11: -0.009414224064 | F11: -0.006887030303 | G11: 0.01128668197 | J11: Correlation | K11: 2454-聯發科 | L11: 2834-台企銀 | M11: 1215-卜蜂 | N11: 8069-元太 | P11: 9 | Q11: 0 | R11: 0.03295836976 | S11: 0.4008525664 | T11: 0.5661890638 | U11: =MMULT(Q11:T11,MMULT($K$5:$N$8,TRANSPOSE(Q11:T11))) -> 0.000390742072 | V11: 0.01976719687 | W11: 0.002014919575 | X11: 0.0022 | Y11: 1 | AA11: 9 | AB11: 0 | AC11: 0.4542398819 | AD11: 0 | AE11: 0.5457601181 | AF11: =MMULT(AB11:AE11,MMULT($K$5:$N$8,TRANSPOSE(AB11:AE11))) -> 0.0003871716872 | AG11: 0.01967667876 | AH11: =SUMPRODUCT($K$2:$N$2,AB11:AE11) -> 0.002199 | AI11: 0.0022 | AJ11: 1
A12: 11 | B12: 2021-01-18 | C12: 0.08701137699 | D12: 0.04146919431 | E12: 0.001055953416 | F12: -0.004160898659 | G12: -0.005580357267 | J12: 2454-聯發科 | K12: 1 | L12: 0.2363262678 | M12: 0.1638913453 | N12: 0.2776972654 | P12: 10 | Q12: 0 | R12: 0.04339504357 | S12: 0.4414462289 | T12: 0.5151587275 | U12: =MMULT(Q12:T12,MMULT($K$5:$N$8,TRANSPOSE(Q12:T12))) -> 0.0003340709434 | V12: 0.01827760771 | W12: 0.001876484674 | X12: 0.0021 | Y12: 1 | AA12: 10 | AB12: 0 | AC12: 0.4981222289 | AD12: 0 | AE12: 0.5018777711 | AF12: =MMULT(AB12:AE12,MMULT($K$5:$N$8,TRANSPOSE(AB12:AE12))) -> 0.0003434612964 | AG12: 0.01853270883 | AH12: =SUMPRODUCT($K$2:$N$2,AB12:AE12) -> 0.0021 | AI12: 0.0021 | AJ12: 1
A13: 12 | B13: 2021-01-19 | C13: 0.08004270767 | D13: -0.007963594994 | E13: -0.01371302731 | F13: -0.02089142038 | G13: -0.02693604999 | J13: 2834-台企銀 | K13: 0.2363262678 | L13: 1 | M13: 0.2812654596 | N13: 0.1594105329 | P13: 11 | Q13: 0 | R13: 0.0536906818 | S13: 0.4814913279 | T13: 0.4648179903 | U13: =MMULT(Q13:T13,MMULT($K$5:$N$8,TRANSPOSE(Q13:T13))) -> 0.0002834583449 | V13: 0.01683622122 | W13: 0.001739920515 | X13: 0.002 | Y13: 1 | AA13: 11 | AB13: 0 | AC13: 0.542447832 | AD13: 0 | AE13: 0.457552168 | AF13: =MMULT(AB13:AE13,MMULT($K$5:$N$8,TRANSPOSE(AB13:AE13))) -> 0.0003036521449 | AG13: 0.01742561749 | AH13: =SUMPRODUCT($K$2:$N$2,AB13:AE13) -> 0.002 | AI13: 0.002 | AJ13: 1
A14: 13 | B14: 2021-01-20 | C14: 0.07410797215 | D14: 0.07110091743 | E14: -0.001069505715 | F14: 0.01280231068 | G14: 0.04613610363 | J14: 1215-卜蜂 | K14: 0.1638913453 | L14: 0.2812654596 | M14: 1 | N14: 0.199555747 | P14: 12 | Q14: 0 | R14: 0.06412735602 | S14: 0.5220849901 | T14: 0.4137876539 | U14: =MMULT(Q14:T14,MMULT($K$5:$N$8,TRANSPOSE(Q14:T14))) -> 0.0002375176299 | V14: 0.01541160699 | W14: 0.001601485615 | X14: 0.0019 | Y14: 1 | AA14: 12 | AB14: 0 | AC14: 0.5872166911 | AD14: 0 | AE14: 0.4127833089 | AF14: =MMULT(AB14:AE14,MMULT($K$5:$N$8,TRANSPOSE(AB14:AE14))) -> 0.00026787517 | AG14: 0.0163668925 | AH14: =SUMPRODUCT($K$2:$N$2,AB14:AE14) -> 0.001899 | AI14: 0.0019 | AJ14: 1
A15: 14 | B15: 2021-01-21 | C15: 0.06899287149 | D15: -0.0182012848 | E15: -0.008565321063 | F15: 0.01264048329 | G15: 0.06063947346 | J15: 8069-元太 | K15: 0.2776972654 | L15: 0.1594105329 | M15: 0.199555747 | N15: 1 | P15: 13 | Q15: 0 | R15: 0.07456403016 | S15: 0.5626786523 | T15: 0.3627573176 | U15: =MMULT(Q15:T15,MMULT($K$5:$N$8,TRANSPOSE(Q15:T15))) -> 0.0001969786196 | V15: 0.01403490718 | W15: 0.001463050714 | X15: 0.0018 | Y15: 1 | AA15: 13 | AB15: 0 | AC15: 0.6310990381 | AD15: 0 | AE15: 0.3689009619 | AF15: =MMULT(AB15:AE15,MMULT($K$5:$N$8,TRANSPOSE(AB15:AE15))) -> 0.0002371275856 | AG15: 0.01539894755 | AH15: =SUMPRODUCT($K$2:$N$2,AB15:AE15) -> 0.0018 | AI15: 0.0018 | AJ15: 1
A16: 15 | B16: 2021-01-22 | C16: 0.06453852114 | D16: -0.007633587786 | E16: 0.01079912056 | F16: -0.01109568907 | G16: 0.01039501083 | P16: 14 | Q16: 0 | R16: 0.08500070444 | S16: 0.6032723143 | T16: 0.3117269812 | U16: =MMULT(Q16:T16,MMULT($K$5:$N$8,TRANSPOSE(Q16:T16))) -> 0.0001618413141 | V16: 0.01272168676 | W16: 0.001324615814 | X16: 0.0017 | Y16: 1 | AA16: 14 | AB16: 0 | AC16: 0.6241787226 | AD16: 0.04120245698 | AE16: 0.3346188204 | AF16: =MMULT(AB16:AE16,MMULT($K$5:$N$8,TRANSPOSE(AB16:AE16))) -> 0.0002096720897 | AG16: 0.01448005835 | AH16: =SUMPRODUCT($K$2:$N$2,AB16:AE16) -> 0.001699000002 | AI16: 0.0017 | AJ16: 1
A17: 16 | B17: 2021-01-25 | C17: 0.06062462182 | D17: -0.04285714286 | E17: -0.008547019317 | F17: 0.002805015333 | G17: 0.0133745273 | P17: 15 | Q17: 0 | R17: 0.09543737843 | S17: 0.6438659767 | T17: 0.2606966449 | U17: =MMULT(Q17:T17,MMULT($K$5:$N$8,TRANSPOSE(Q17:T17))) -> 0.0001321057134 | V17: 0.01149372496 | W17: 0.001186180913 | X17: 0.0016 | Y17: 1 | AA17: 15 | AB17: 0 | AC17: 0.5934010515 | AD17: 0.1010687539 | AE17: 0.3055301946 | AF17: =MMULT(AB17:AE17,MMULT($K$5:$N$8,TRANSPOSE(AB17:AE17))) -> 0.0001848815662 | AG17: 0.0135971161 | AH17: =SUMPRODUCT($K$2:$N$2,AB17:AE17) -> 0.001599000002 | AI17: 0.0016 | AJ17: 1
A18: 17 | B18: 2021-01-26 | C18: 0.05715841384 | D18: 0.02985074627 | E18: -0.002155146267 | F18: -0.0111888 | G18: 0.006091350254 | P18: 16 | Q18: 0 | R18: 0.1058740526 | S18: 0.6844596389 | T18: 0.2096663085 | U18: =MMULT(Q18:T18,MMULT($K$5:$N$8,TRANSPOSE(Q18:T18))) -> 0.0001077718175 | V18: 0.0103813206 | W18: 0.001047746013 | X18: 0.0015 | Y18: 1 | AA18: 16 | AB18: 0 | AC18: 0.5626233802 | AD18: 0.1609350511 | AE18: 0.2764415687 | AF18: =MMULT(AB18:AE18,MMULT($K$5:$N$8,TRANSPOSE(AB18:AE18))) -> 0.000162365693 | AG18: 0.01274227974 | AH18: =SUMPRODUCT($K$2:$N$2,AB18:AE18) -> 0.001499000002 | AI18: 0.0015 | AJ18: 1
A19: 18 | B19: 2021-01-27 | C19: 0.05406722127 | D19: -0.03121516165 | E19: -0.005399618179 | F19: 0.001414347933 | G19: -0.04742680217 | P19: 17 | Q19: 0 | R19: 0.1164517629 | S19: 0.7256018641 | T19: 0.157946373 | U19: =MMULT(Q19:T19,MMULT($K$5:$N$8,TRANSPOSE(Q19:T19))) -> 8.862077706e-05 | V19: 0.009413860901 | W19: 0.00090744037 | X19: 0.0014 | Y19: 1 | AA19: 17 | AB19: 0 | AC19: 0.5318457089 | AD19: 0.2208013482 | AE19: 0.2473529428 | AF19: =MMULT(AB19:AE19,MMULT($K$5:$N$8,TRANSPOSE(AB19:AE19))) -> 0.0001421244704 | AG19: 0.0119215968 | AH19: =SUMPRODUCT($K$2:$N$2,AB19:AE19) -> 0.001399000002 | AI19: 0.0014 | AJ19: 1
A20: 19 | B20: 2021-01-28 | C20: 0.05129329439 | D20: 0.006904487917 | E20: -0.01194351144 | F20: 0 | G20: 0.04025417288 | P20: 18 | Q20: 0.03675779173 | R20: 0.108037954 | S20: 0.7445157758 | T20: 0.1106884784 | U20: =MMULT(Q20:T20,MMULT($K$5:$N$8,TRANSPOSE(Q20:T20))) -> 7.719027943e-05 | V20: 0.008785799874 | W20: 0.0007599866905 | X20: 0.0013 | Y20: 1 | AA20: 18 | AB20: 0 | AC20: 0.5010680377 | AD20: 0.2806676454 | AE20: 0.2182643169 | AF20: =MMULT(AB20:AE20,MMULT($K$5:$N$8,TRANSPOSE(AB20:AE20))) -> 0.0001241578982 | AG20: 0.01114261631 | AH20: =SUMPRODUCT($K$2:$N$2,AB20:AE20) -> 0.001299000002 | AI20: 0.0013 | AJ20: 1
A21: 20 | B21: 2021-01-29 | C21: 0.04879016417 | D21: 0.03428571429 | E21: 0.01428565874 | F21: 0.001412474672 | G21: 0.02851328018 | P21: 19 | Q21: 0.07985371058 | R21: 0.09653912214 | S21: 0.7603346099 | T21: 0.06327255736 | U21: =MMULT(Q21:T21,MMULT($K$5:$N$8,TRANSPOSE(Q21:T21))) -> 7.12612919e-05 | V21: 0.008441640356 | W21: 0.0006087845944 | X21: 0.0012 | Y21: 1 | AA21: 19 | AB21: 0 | AC21: 0.4702903664 | AD21: 0.3405339426 | AE21: 0.189175691 | AF21: =MMULT(AB21:AE21,MMULT($K$5:$N$8,TRANSPOSE(AB21:AE21))) -> 0.0001084659765 | AG21: 0.01041470002 | AH21: =SUMPRODUCT($K$2:$N$2,AB21:AE21) -> 0.001199000002 | AI21: 0.0012 | AJ21: 1
A22: 21 | B22: 2021-02-01 | C22: 0.04652001563 | D22: 0.02872928177 | E22: 0.002166937229 | F22: 0.01128348686 | G22: -0.01782182178 | P22: 20 | Q22: 0.1229496203 | R22: 0.0850403061 | S22: 0.7761534384 | T22: 0.0158566352 | U22: =MMULT(Q22:T22,MMULT($K$5:$N$8,TRANSPOSE(Q22:T22))) -> 7.072784501e-05 | V22: 0.00840998484 | W22: 0.0004575825065 | X22: 0.0011 | Y22: 1 | AA22: 20 | AB22: 0 | AC22: 0.4395126952 | AD22: 0.4004002397 | AE22: 0.1600870651 | AF22: =MMULT(AB22:AE22,MMULT($K$5:$N$8,TRANSPOSE(AB22:AE22))) -> 9.504870522e-05 | AG22: 0.00974929255 | AH22: =SUMPRODUCT($K$2:$N$2,AB22:AE22) -> 0.001099000002 | AI22: 0.0011 | AJ22: 1
A23: 22 | B23: 2021-02-02 | C23: 0.04445176257 | D23: 0.02040816327 | E23: 0.005405339613 | F23: 0 | G23: 0.006048467986 | P23: 21 | Q23: 0.1246967548 | R23: 0.08457413739 | S23: 0.7767947406 | T23: 0.01393436726 | U23: =MMULT(Q23:T23,MMULT($K$5:$N$8,TRANSPOSE(Q23:T23))) -> 7.082002206e-05 | V23: 0.008415463271 | W23: 0.0004514526888 | X23: 0.001 | Y23: 1 | AA23: 21 | AB23: 0 | AC23: 0.4087350239 | AD23: 0.4602665369 | AE23: 0.1309984392 | AF23: =MMULT(AB23:AE23,MMULT($K$5:$N$8,TRANSPOSE(AB23:AE23))) -> 8.390608447e-05 | AG23: 0.009160026445 | AH23: =SUMPRODUCT($K$2:$N$2,AB23:AE23) -> 0.0009990000025 | AI23: 0.001 | AJ23: 1
A24: 23 | B24: 2021-02-03 | C24: 0.04255961442 | D24: -0.004210526316 | E24: -0.0010752558 | F24: 0 | G24: -0.02805615118 | P24: 22 | Q24: 0.1275877511 | R24: 0.08380362595 | S24: 0.777879596 | T24: 0.01072902692 | U24: =MMULT(Q24:T24,MMULT($K$5:$N$8,TRANSPOSE(Q24:T24))) -> 7.099072427e-05 | V24: 0.008425599342 | W24: 0.0004412406483 | X24: 0.0009 | Y24: 1 | AA24: 22 | AB24: 0 | AC24: 0.3782651293 | AD24: 0.5195341711 | AE24: 0.1022006996 | AF24: =MMULT(AB24:AE24,MMULT($K$5:$N$8,TRANSPOSE(AB24:AE24))) -> 7.511553439e-05 | AG24: 0.008666921852 | AH24: =SUMPRODUCT($K$2:$N$2,AB24:AE24) -> 0.0009000000025 | AI24: 0.0009 | AJ24: 1
A25: 24 | B25: 2021-02-04 | C25: 0.04082199452 | D25: 0.00422832981 | E25: 0 | F25: 0.001394744817 | G25: -0.009278371134 | P25: 23 | Q25: 0.1298909372 | R25: 0.08319344195 | S25: 0.7787517332 | T25: 0.008163887665 | U25: =MMULT(Q25:T25,MMULT($K$5:$N$8,TRANSPOSE(Q25:T25))) -> 7.114360058e-05 | V25: 0.008434666595 | W25: 0.0004330744563 | X25: 0.0008 | Y25: 1 | AA25: 23 | AB25: 0 | AC25: 0.3471796814 | AD25: 0.5799991312 | AE25: 0.07282118743 | AF25: =MMULT(AB25:AE25,MMULT($K$5:$N$8,TRANSPOSE(AB25:AE25))) -> 6.844479442e-05 | AG25: 0.008273136915 | AH25: =SUMPRODUCT($K$2:$N$2,AB25:AE25) -> 0.0007990000025 | AI25: 0.0008 | AJ25: 1
A26: 25 | B26: 2021-02-05 | C26: 0.03922071315 | D26: 0.03157894737 | E26: 0.01614642913 | F26: 0 | G26: 0.02705513064 | P26: 24 | Q26: 0.1322498422 | R26: 0.08255922474 | S26: 0.7795877066 | T26: 0.005603226508 | U26: =MMULT(Q26:T26,MMULT($K$5:$N$8,TRANSPOSE(Q26:T26))) -> 7.131964128e-05 | V26: 0.008445095694 | W26: 0.0004248936904 | X26: 0.0007 | Y26: 1 | AA26: 24 | AB26: 0 | AC26: 0.3167097869 | AD26: 0.6392667654 | AE26: 0.04402344779 | AF26: =MMULT(AB26:AE26,MMULT($K$5:$N$8,TRANSPOSE(AB26:AE26))) -> 6.415805228e-05 | AG26: 0.008009872176 | AH26: =SUMPRODUCT($K$2:$N$2,AB26:AE26) -> 0.0007000000025 | AI26: 0.0007 | AJ26: 1
A27: 26 | B27: 2021-02-17 | C27: 0.03774032798 | D27: -0.002040816327 | E27: -0.002118618318 | F27: 0.009749247802 | G27: 0.06585613235 | P27: 25 | Q27: 0.1345663295 | R27: 0.08194288236 | S27: 0.7804516129 | T27: 0.003039175257 | U27: =MMULT(Q27:T27,MMULT($K$5:$N$8,TRANSPOSE(Q27:T27))) -> 7.150579512e-05 | V27: 0.008456109928 | W27: 0.0004167238313 | X27: 0.0006 | Y27: 1 | AA27: 25 | AB27: 0.014844443 | AC27: 0.2836577425 | AD27: 0.6851889879 | AE27: 0.01630882651 | AF27: =MMULT(AB27:AE27,MMULT($K$5:$N$8,TRANSPOSE(AB27:AE27))) -> 6.192836063e-05 | AG27: 0.007869457454 | AH27: =SUMPRODUCT($K$2:$N$2,AB27:AE27) -> 0.0005990000027 | AI27: 0.0006 | AJ27: 1
A28: 27 | B28: 2021-02-18 | C28: 0.03636764417 | D28: -0.01431492843 | E28: 0.005307790979 | F28: 0.001379354544 | G28: 0 | P28: 26 | Q28: 0.1375772094 | R28: 0.08095443916 | S28: 0.7814683514 | T28: 0 | U28: =MMULT(Q28:T28,MMULT($K$5:$N$8,TRANSPOSE(Q28:T28))) -> 7.178843219e-05 | V28: 0.00847280545 | W28: 0.0004068280055 | X28: 0.0005 | Y28: 1 | AA28: 26 | AB28: 0.03811743769 | AC28: 0.202659323 | AD28: 0.7592232393 | AE28: 0 | AF28: =MMULT(AB28:AE28,MMULT($K$5:$N$8,TRANSPOSE(AB28:AE28))) -> 6.206894051e-05 | AG28: 0.007878384384 | AH28: =SUMPRODUCT($K$2:$N$2,AB28:AE28) -> 0.0005007160245 | AI28: 0.0005 | AJ28: 1
A29: 28 | B29: 2021-02-19 | C29: 0.03509131981 | D29: -0.01348547718 | E29: -0.002111906832 | F29: 0.005509575758 | G29: 0.00760460105 | P29: 27 | Q29: 0.1880771696 | R29: 0.02463668683 | S29: 0.7872861435 | T29: 0 | U29: =MMULT(Q29:T29,MMULT($K$5:$N$8,TRANSPOSE(Q29:T29))) -> 8.17403193e-05 | V29: 0.0090410353 | W29: 0.0003623019435 | X29: 0.0004 | Y29: 1 | AA29: 27 | AB29: 0.07315052733 | AC29: 0.04198212425 | AD29: 0.8848673484 | AE29: 0 | AF29: =MMULT(AB29:AE29,MMULT($K$5:$N$8,TRANSPOSE(AB29:AE29))) -> 6.916166449e-05 | AG29: 0.008316349228 | AH29: =SUMPRODUCT($K$2:$N$2,AB29:AE29) -> 0.0004000000007 | AI29: 0.0004 | AJ29: 1
A30: 29 | B30: 2021-02-22 | C30: 0.03390155168 | D30: 0.01472134595 | E30: 0.01164018378 | F30: 0.001369906939 | G30: -0.03018864151 | P30: 28 | Q30: 0.2768761165 | R30: 0 | S30: 0.7231238835 | T30: 0 | U30: =MMULT(Q30:T30,MMULT($K$5:$N$8,TRANSPOSE(Q30:T30))) -> 0.0001034278941 | V30: 0.01016995054 | W30: 0.0003267233646 | X30: 0.0003 | Y30: 1 | AA30: 28 | AB30: 0.08010733633 | AC30: 0.01007513006 | AD30: 0.9098175336 | AE30: 0 | AF30: =MMULT(AB30:AE30,MMULT($K$5:$N$8,TRANSPOSE(AB30:AE30))) -> 7.154384869e-05 | AG30: 0.008458359692 | AH30: =SUMPRODUCT($K$2:$N$2,AB30:AE30) -> 0.0003799999906 | AI30: 0.00038 | AJ30: 1
A31: 30 | B31: 2021-02-23 | C31: 0.03278982282 | D31: -0.02590673575 | E31: 0.003138149462 | F31: -0.00273594534 | G31: -0.03307394813 | P31: 29 | Q31: 0.3768761165 | R31: 0 | S31: 0.6231238835 | T31: 0 | U31: =MMULT(Q31:T31,MMULT($K$5:$N$8,TRANSPOSE(Q31:T31))) -> 0.0001387317098 | V31: 0.01177844259 | W31: 0.0003025876733 | X31: 0.0002 | Y31: 1 | AA31: 29 | AB31: 0.1431462181 | AC31: 0 | AD31: 0.8568537819 | AE31: 0 | AF31: =MMULT(AB31:AE31,MMULT($K$5:$N$8,TRANSPOSE(AB31:AE31))) -> 7.673556286e-05 | AG31: 0.008759883724 | AH31: =SUMPRODUCT($K$2:$N$2,AB31:AE31) -> 0.000359 | AI31: 0.00036 | AJ31: 1
A32: 31 | B32: 2021-02-24 | C32: 0.03174869831 | D32: 0.004255319149 | E32: 0.009384773243 | F32: 0.002743451273 | G32: 0.02816895316 | P32: 30 | Q32: 0.4768761165 | R32: 0 | S32: 0.5231238835 | T32: 0 | U32: =MMULT(Q32:T32,MMULT($K$5:$N$8,TRANSPOSE(Q32:T32))) -> 0.0001871651533 | V32: 0.0136808316 | W32: 0.000278451982 | X32: 0.0001 | Y32: 1 | AA32: 30 | AB32: 0.2218678084 | AC32: 0 | AD32: 0.7781321916 | AE32: 0 | AF32: =MMULT(AB32:AE32,MMULT($K$5:$N$8,TRANSPOSE(AB32:AE32))) -> 8.960551156e-05 | AG32: 0.009466018781 | AH32: =SUMPRODUCT($K$2:$N$2,AB32:AE32) -> 0.00034 | AI32: 0.00034 | AJ32: 1
A33: 32 | B33: 2021-02-25 | C33: 0.03077165867 | D33: -0.05084745763 | E33: -0.02169428285 | F33: -0.008207956404 | G33: -0.0117416443 | P33: 31 | Q33: 0.5768761165 | R33: 0 | S33: 0.4231238835 | T33: 0 | U33: =MMULT(Q33:T33,MMULT($K$5:$N$8,TRANSPOSE(Q33:T33))) -> 0.0002487282246 | V33: 0.01577111995 | W33: 0.0002543162908 | X33: -9.974659987e-18 | Y33: 1 | AA33: 31 | AB33: 0.3088758819 | AC33: 0 | AD33: 0.6911241181 | AE33: 0 | AF33: =MMULT(AB33:AE33,MMULT($K$5:$N$8,TRANSPOSE(AB33:AE33))) -> 0.0001132965343 | AG33: 0.01064408448 | AH33: =SUMPRODUCT($K$2:$N$2,AB33:AE33) -> 0.000319 | AI33: 0.00032 | AJ33: 1
A34: 33 | B34: 2021-02-26 | C34: 0.02985296315 | D34: 0.004464285714 | E34: -0.007391787137 | F34: 0.005517296795 | G34: 0.005940574257 | P34: 32 | Q34: 0.6768761165 | R34: 0 | S34: 0.3231238835 | T34: 0 | U34: =MMULT(Q34:T34,MMULT($K$5:$N$8,TRANSPOSE(Q34:T34))) -> 0.0003234209236 | V34: 0.01798390735 | W34: 0.0002301805995 | X34: -0.0001 | Y34: 1 | AA34: 32 | AB34: 0.3917407138 | AC34: 0 | AD34: 0.6082592862 | AE34: 0 | AF34: =MMULT(AB34:AE34,MMULT($K$5:$N$8,TRANSPOSE(AB34:AE34))) -> 0.0001451003667 | AG34: 0.01204576136 | AH34: =SUMPRODUCT($K$2:$N$2,AB34:AE34) -> 0.000299 | AI34: 0.0003 | AJ34: 1
A35: 34 | B35: 2021-03-02 | C35: 0.02898753687 | D35: 0.03333333333 | E35: 0.02234049761 | F35: 0.00137166528 | G35: 0.001968563031 | P35: 33 | Q35: 0.7768761165 | R35: 0 | S35: 0.2231238835 | T35: 0 | U35: =MMULT(Q35:T35,MMULT($K$5:$N$8,TRANSPOSE(Q35:T35))) -> 0.0004112432504 | V35: 0.02027913337 | W35: 0.0002060449082 | X35: -0.0002 | Y35: 1 | AA35: 33 | AB35: 0.4704623041 | AC35: 0 | AD35: 0.5295376959 | AE35: 0 | AF35: =MMULT(AB35:AE35,MMULT($K$5:$N$8,TRANSPOSE(AB35:AE35))) -> 0.000183664674 | AG35: 0.01355229405 | AH35: =SUMPRODUCT($K$2:$N$2,AB35:AE35) -> 0.00028 | AI35: 0.00028 | AJ35: 1
A36: 35 | B36: 2021-03-03 | C36: 0.02817087697 | D36: -0.03548387097 | E36: -0.007284102073 | F36: 0.00547950721 | G36: -0.0137524749 | P36: 34 | Q36: 0.8768761165 | R36: 0 | S36: 0.1231238835 | T36: 0 | U36: =MMULT(Q36:T36,MMULT($K$5:$N$8,TRANSPOSE(Q36:T36))) -> 0.0005121952049 | V36: 0.02263173005 | W36: 0.0001819092169 | X36: -0.0003 | Y36: 1 | AA36: 34 | AB36: 0.553327136 | AC36: 0 | AD36: 0.446672864 | AE36: 0 | AF36: =MMULT(AB36:AE36,MMULT($K$5:$N$8,TRANSPOSE(AB36:AE36))) -> 0.0002330488569 | AG36: 0.0152659378 | AH36: =SUMPRODUCT($K$2:$N$2,AB36:AE36) -> 0.00026 | AI36: 0.00026 | AJ36: 1
A37: 36 | B37: 2021-03-04 | C37: 0.02739897419 | D37: -0.01560758082 | E37: 0.001048205305 | F37: 0.002724762972 | G37: -0.02390440191 | P37: 35 | Q37: 0.9768761165 | R37: 0 | S37: 0.02312388353 | T37: 0 | U37: =MMULT(Q37:T37,MMULT($K$5:$N$8,TRANSPOSE(Q37:T37))) -> 0.0006262767872 | V37: 0.02502552272 | W37: 0.0001577735257 | X37: -0.0004 | Y37: 1 | AA37: 35 | AB37: 0.6361919679 | AC37: 0 | AD37: 0.3638080321 | AE37: 0 | AF37: =MMULT(AB37:AE37,MMULT($K$5:$N$8,TRANSPOSE(AB37:AE37))) -> 0.0002914486043 | AG37: 0.01707186587 | AH37: =SUMPRODUCT($K$2:$N$2,AB37:AE37) -> 0.00024 | AI37: 0.00024 | AJ37: 1
A38: 37 | B38: 2021-03-05 | C38: 0.02666824708 | D38: -0.0181200453 | E38: -0.003141323164 | F38: 0.0176631312 | G38: 0.004081653061 | P38: 36 | Q38: 1 | R38: 0 | S38: 0 | T38: 0 | U38: =MMULT(Q38:T38,MMULT($K$5:$N$8,TRANSPOSE(Q38:T38))) -> 0.0006545259491 | V38: 0.02558370476 | W38: 0.0001521924165 | X38: -0.0005 | Y38: 1 | AA38: 36 | AB38: 0.7232000413 | AC38: 0 | AD38: 0.2767999587 | AE38: 0 | AF38: =MMULT(AB38:AE38,MMULT($K$5:$N$8,TRANSPOSE(AB38:AE38))) -> 0.0003624713402 | AG38: 0.01903868011 | AH38: =SUMPRODUCT($K$2:$N$2,AB38:AE38) -> 0.000219 | AI38: 0.00022 | AJ38: 1
A39: 38 | B39: 2021-03-08 | C39: 0.0259754864 | D39: 0.01384083045 | E39: 0.01155459393 | F39: 0.002670194812 | G39: 0.004065060893 | AA39: 37 | AB39: 0.8060648732 | AC39: 0 | AD39: 0.1939351268 | AE39: 0 | AF39: =MMULT(AB39:AE39,MMULT($K$5:$N$8,TRANSPOSE(AB39:AE39))) -> 0.0004393529946 | AG39: 0.0209607489 | AH39: =SUMPRODUCT($K$2:$N$2,AB39:AE39) -> 0.000199 | AI39: 0.0002 | AJ39: 1
A40: 39 | B40: 2021-03-09 | C40: 0.02531780798 | D40: -0.01706484642 | E40: 0.007268974319 | F40: 0.001331483341 | G40: -0.004048603075 | AA40: 38 | AB40: 0.8889297051 | AC40: 0 | AD40: 0.1110702949 | AE40: 0 | AF40: =MMULT(AB40:AE40,MMULT($K$5:$N$8,TRANSPOSE(AB40:AE40))) -> 0.0005252502135 | AG40: 0.02291833793 | AH40: =SUMPRODUCT($K$2:$N$2,AB40:AE40) -> 0.000179 | AI40: 0.00018 | AJ40: 1
A41: 40 | B41: 2021-03-10 | C41: 0.02469261259 | D41: 0.02777777778 | E41: 0.003092745898 | F41: -0.001329712851 | G41: 0.03861782442 | AA41: 39 | AB41: 0.9676512955 | AC41: 0 | AD41: 0.03234870452 | AE41: 0 | AF41: =MMULT(AB41:AE41,MMULT($K$5:$N$8,TRANSPOSE(AB41:AE41))) -> 0.000615203238 | AG41: 0.02480329087 | AH41: =SUMPRODUCT($K$2:$N$2,AB41:AE41) -> 0.00016 | AI41: 0.00016 | AJ41: 1
A42: 41 | B42: 2021-03-11 | C42: 0.02409755158 | D42: 0.01238738739 | E42: 0.002055473541 | F42: -0.001331600518 | G42: -0.0136985524 | AA42: 40 | AB42: 1 | AC42: 0 | AD42: 0 | AE42: 0 | AF42: =MMULT(AB42:AE42,MMULT($K$5:$N$8,TRANSPOSE(AB42:AE42))) -> 0.0006545259491 | AG42: 0.02558370476 | AH42: =SUMPRODUCT($K$2:$N$2,AB42:AE42) -> 0.0001521924165 | AI42: 0.0001522 | AJ42: 1
A43: 42 | B43: 2021-03-12 | C43: 0.02353049741 | D43: 0.008898776418 | E43: 0.005128253066 | F43: -0.009333280299 | G43: 0.03373007803
A44: 43 | B44: 2021-03-15 | C44: 0.02298951822 | D44: 0.01323042999 | E44: 0.007142879807 | F44: 0.001345819621 | G44: 0.02687144057
A45: 44 | B45: 2021-03-16 | C45: 0.02247285585 | D45: -0.0119695321 | E45: -0.01013169762 | F45: 0.002688258209 | G45: -0.01682246729
A46: 45 | B46: 2021-03-17 | C46: 0.02197890672 | D46: -0.00550660793 | E46: -0.001023638734 | F46: 0.004021458316 | G46: 0.02471490588
A47: 46 | B47: 2021-03-18 | C47: 0.02150620522 | D47: -0.01993355482 | E47: -0.007172044473 | F47: -0.002670312302 | G47: 0.01669753185
A48: 47 | B48: 2021-03-19 | C48: 0.0210534092 | D48: -0.004519774011 | E48: 0.008255944116 | F48: 0.01070949443 | G48: -0.001824781055
A49: 48 | B49: 2021-03-22 | C49: 0.0206192872 | D49: -0.01248581158 | E49: -0.004094225688 | F49: 0.006622612271 | G49: -0.02376597763
A50: 49 | B50: 2021-03-23 | C50: 0.02020270732 | D50: 0.0275862069 | E50: 0.003083210312 | F50: -0.009210589086 | G50: 0.01685387577
A51: 50 | B51: 2021-03-24 | C51: 0.0198026273 | D51: 0.0615212528 | E51: 0.006147576554 | F51: 0.002656010681 | G51: -0.0184162066
A52: 51 | B52: 2021-03-25 | C52: 0.01941808586 | D52: -0.006322444679 | E52: 0.004073379577 | F52: 0.002649091531 | G52: 0.02251409048
A53: 52 | B53: 2021-03-26 | C53: 0.01904819497 | D53: -0.002120890774 | E53: 0.01217034591 | F53: 0.001320929945 | G53: -0.005504568807
A54: 53 | B54: 2021-03-29 | C54: 0.01869213301 | D54: 0.03188097768 | E54: 0.002003983686 | F54: 0.002638606972 | G54: 0
A55: 54 | B55: 2021-03-30 | C55: 0.01834913867 | D55: -0.002059732235 | E55: -0.003999951534 | F55: 0.007894641773 | G55: 0.01660511039
A56: 55 | B56: 2021-03-31 | C56: 0.0180185055 | D56: -0.008255933953 | E56: -0.003012119207 | F56: -0.005221869724 | G56: -0.001814845801
A57: 56 | B57: 2021-04-01 | C57: 0.0176995771 | D57: 0.03850156087 | E57: -0.009063442478 | F57: -0.00524939627 | G57: 0.03090910909
A58: 57 | B58: 2021-04-07 | C58: 0.01739174271 | D58: 0.02204408818 | E58: -0.004064991481 | F58: -0.002638490877 | G58: 0.005290987561
A59: 58 | B59: 2021-04-08 | C59: 0.01709443336 | D59: -0.02058823529 | E59: -0.003061187311 | F59: -0.00661373552 | G59: -0.02982457895
A60: 59 | B60: 2021-04-09 | C60: 0.01680711832 | D60: -0.03903903904 | E60: 0.01125892858 | F60: -0.001331600518 | G60: -0.01265824616
A61: 60 | B61: 2021-04-12 | C61: 0.01652930195 | D61: 0.001041666667 | E61: -0.003036508867 | F61: 0.006666645547 | G61: -0.01098897476
A62: 61 | B62: 2021-04-13 | C62: 0.01626052087 | D62: 0.004162330905 | E62: -0.005076080795 | F62: 0.001324545766 | G62: -0.02037033333
A63: 62 | B63: 2021-04-14 | C63: 0.01600034135 | D63: 0.0207253886 | E63: 0.009183671348 | F63: 0 | G63: 0.05860109419
A64: 63 | B64: 2021-04-15 | C64: 0.01574835697 | D64: -0.01015228426 | E64: 0.008088988961 | F64: 0.009259206447 | G64: -0.01428569643
A65: 64 | B65: 2021-04-16 | C65: 0.01550418654 | D65: -0.01230769231 | E65: 0.02306914236 | F65: 0.038007929 | G65: 0.007246322332
A66: 65 | B66: 2021-04-19 | C66: 0.01526747213 | D66: 0.03634475597 | E66: 0 | F66: -0.008838444444 | G66: 0.03237417383
A67: 66 | B67: 2021-04-20 | C67: =LN(A68/A67) -> 0.01503787736 | D67: -0.01002004008 | E67: -0.01470580969 | F67: 0.002547852385 | G67: -0.001742212483
A68: 67 | B68: 2021-04-21 | C68: 0.01481508579 | D68: -0.004048582996 | E68: 0.004975063866 | F68: -0.003811954179 | G68: -0.02443275784
A69: 68 | B69: 2021-04-22 | C69: 0.01459879942 | D69: 0.05182926829 | E69: -0.004950435135 | F69: -0.005102091785 | G69: 0.09838997859
A70: 69 | B70: 2021-04-23 | C70: 0.01438873745 | D70: 0.03381642512 | E70: 0.01492529829 | F70: 0 | G70: 0.02280125333
A71: 70 | B71: 2021-04-26 | C71: 0.01418463499 | D71: -0.004672897196 | E71: -0.004901901524 | F71: 0 | G71: -0.007961783566
A72: 71 | B72: 2021-04-27 | C72: 0.01398624197 | D72: 0.01408450704 | E72: 0 | F72: 0.04487187876 | G72: 0.05457460762
A73: 72 | B73: 2021-04-28 | C73: 0.01379332213 | D73: 0.09722222222 | E73: 0.004926048528 | F73: -0.02453990578 | G73: 0.0106545667
A74: 73 | B74: 2021-04-29 | C74: 0.01360565206 | D74: -0.06751054852 | E74: -0.01470580969 | F74: 0.001257791182 | G74: -0.05120484786
A75: 74 | B75: 2021-05-03 | C75: 0.01342302033 | D75: -0.01809954751 | E75: -0.02189060109 | F75: 0.005025176182 | G75: -0.03968253968
A76: 75 | B76: 2021-05-04 | C76: 0.01324522675 | D76: -0.07373271889 | E76: 0.007121080845 | F76: -0.001250040013 | G76: -0.02644624793
A77: 76 | B77: 2021-05-05 | C77: 0.01307208157 | D77: 0.04975124378 | E77: 0.002020177514 | F77: -0.01752191327 | G77: 0.001697758856
A78: 77 | B78: 2021-05-06 | C78: 0.01290340484 | D78: 0.004739336493 | E78: 0.007056474277 | F78: 0.006369518861 | G78: 0.040678
A79: 78 | B79: 2021-05-07 | C79: 0.01273902578 | D79: -0.07641509434 | E79: 0.01601603643 | F79: 0.01898728044 | G79: -0.02442996663
A80: 79 | B80: 2021-05-10 | C80: 0.01257878221 | D80: -0.06945863126 | E80: -0.0197044054 | F80: -0.02484475105 | G80: -0.07679470528
A81: 80 | B81: 2021-05-11 | C81: 0.01242252 | D81: -0.02524698134 | E81: -0.03115583056 | F81: -0.02547762704 | G81: -0.01446652829
A82: 81 | B82: 2021-05-12 | C82: 0.01227009259 | D82: -0.01689189189 | E82: -0.01141076127 | F82: 0.01830066367 | G82: 0.01284405505
A83: 82 | B83: 2021-05-13 | C83: 0.01212136053 | D83: 0.02520045819 | E83: 0.01049316444 | F83: 0.01026956579 | G83: 0.02898547049
A84: 83 | B84: 2021-05-14 | C84: 0.01197619105 | D84: 0.02122905028 | E84: -0.03322953326 | F84: -0.02922494477 | G84: -0.08098588171
A85: 84 | B85: 2021-05-17 | C85: 0.01183445765 | D85: 0.0875273523 | E85: 0.01825994508 | F85: 0.02225133031 | G85: 0.06896547761
A86: 85 | B86: 2021-05-18 | C86: 0.01169603976 | D86: -0.05130784708 | E86: -0.01265818776 | F86: -0.01024326761 | G86: 0.01792114727
A87: 86 | B87: 2021-05-19 | C87: 0.0115608224 | D87: -0.01378579003 | E87: -0.001068363095 | F87: -0.005174695936 | G87: 0.01232396148
A88: 87 | B88: 2021-05-20 | C88: 0.01142869582 | D88: 0.02688172043 | E88: 0.006417034293 | F88: 0.006501930049 | G88: 0.001739095652
A89: 88 | B89: 2021-05-21 | C89: 0.01129955525 | D89: -0.01256544503 | E89: -0.004250745681 | F89: 0.005168010656 | G89: 0.001736163255
A90: 89 | B90: 2021-05-24 | C90: 0.0111733006 | D90: 0.009544008484 | E90: 0.005336229002 | F90: -0.001285388188 | G90: 0.07625644582
A91: 90 | B91: 2021-05-25 | C91: 0.01104983619 | D91: -0.001050420168 | E91: 0.005307790979 | F91: 0.002574085075 | G91: -0.001610273804
A92: 91 | B92: 2021-05-26 | C92: 0.01092907053 | D92: -0.01682439537 | E92: -0.008447740553 | F92: -0.003851101293 | G92: -0.01935485484
A93: 92 | B93: 2021-05-27 | C93: 0.0108109161 | D93: 0.02780748663 | E93: 0.01810437559 | F93: 0.005154577213 | G93: 0.01151317453
A94: 93 | B94: 2021-05-28 | C94: 0.01069528912 | D94: 0.0353798127 | E94: 0.005230174329 | F94: 0.02051280084 | G94: 0.00487803252
A95: 94 | B95: 2021-05-31 | C95: 0.01058210933 | D95: -0.01809045226 | E95: -0.002081140142 | F95: 0.002512643368 | G95: 0.03559872226
A96: 95 | B96: 2021-06-01 | C96: 0.01047129987 | D96: -0.01842374616 | E96: 0.006256440955 | F96: 0.006265643985 | G96: 0.004687546875
A97: 96 | B97: 2021-06-02 | C97: 0.01036278704 | D97: 0.02294056309 | E97: 0 | F97: 0.001245369863 | G97: 0.02332814821
A98: 97 | B98: 2021-06-03 | C98: 0.01025650017 | D98: -0.004077471967 | E98: -0.004145027517 | F98: -0.003731353085 | G98: -0.02279635154
A99: 98 | B99: 2021-06-04 | C99: 0.01015237146 | D99: -0.004094165814 | E99: -0.01040581229 | F99: 0.002496848864 | G99: -0.003110497522
A100: 99 | B100: 2021-06-07 | C100: 0.01005033585 | D100: -0.007194244604 | E100: -0.00315464847 | F100: 0.003736 | G100: 0.01092051516
A101: 100 | B101: 2021-06-08 | C101: 0.009950330853 | D101: 0.001035196687 | E101: 0 | F101: -0.003722094256 | G101: 0.003086373314
A102: 101 | B102: 2021-06-09 | C102: 0.009852296443 | D102: 0.03205791107 | E102: 0.004219471325 | F102: 0.001245369863 | G102: -0.01538461538
A103: 102 | B103: 2021-06-10 | C103: 0.009756174945 | D103: -0.01803607214 | E103: -0.00105040739 | F103: 0.006218885325 | G103: -0.00625003125
A104: 103 | B104: 2021-06-11 | C104: 0.009661910912 | D104: 0.009183673469 | E104: -0.002103136563 | F104: 0.0148330578 | G104: 0.06603781654
A105: 104 | B105: 2021-06-15 | C105: 0.009569451016 | D105: -0.004044489383 | E105: -0.004214912161 | F105: 0.002436131666 | G105: 0.02212389283
A106: 105 | B106: 2021-06-16 | C106: 0.009478743955 | D106: -0.007106598985 | E106: 0 | F106: 0.01215062905 | G106: 0.02741693965
A107: 106 | B107: 2021-06-17 | C107: 0.00938974035 | D107: -0.01329243354 | E107: -0.00529105452 | F107: -0.001200518619 | G107: -0.008426952602
A108: 107 | B108: 2021-06-18 | C108: 0.009302392662 | D108: -0.04870466321 | E108: -0.004255267696 | F108: 0.007211558039 | G108: -0.002832804613
A109: 108 | B109: 2021-06-21 | C109: 0.009216655105 | D109: -0.01633986928 | E109: 0.00213672619 | F109: 0.01431984767 | G109: 0.0284090901
A110: 109 | B110: 2021-06-22 | C110: 0.009132483563 | D110: 0.04208194906 | E110: 0.009594880779 | F110: 0.01411758104 | G110: 0.03314918417
A111: 110 | B111: 2021-06-23 | C111: 0.00904983552 | D111: -0.01275239107 | E111: -0.003167860247 | F111: -0.003480185809 | G111: -0.01737971855
A112: 111 | B112: 2021-06-24 | C112: 0.008968669983 | D112: -0.00215285253 | E112: 0 | F112: 0.001164079118 | G112: -0.001360517007
A113: 112 | B113: 2021-06-25 | C113: 0.008888947417 | D113: 0.008629989213 | E113: 0.002118618318 | F113: -0.04651158269 | G113: 0.02997269673
A114: 113 | B114: 2021-06-28 | C114: 0.008810629682 | D114: 0 | E114: -0.003171208896 | F114: -0.01341463388 | G114: -0.01984127037
A115: 114 | B115: 2021-06-29 | C115: 0.008733679969 | D115: 0.02887700535 | E115: 0.00212086497 | F115: -0.003708291645 | G115: 0.006747638509
A116: 115 | B116: 2021-06-30 | C116: 0.008658062743 | D116: -0.007276507277 | E116: -0.003174564632 | F116: 0.002481359777 | G116: -0.005361943843
A117: 116 | B117: 2021-07-01 | C117: 0.008583743691 | D117: 0.002094240838 | E117: -0.002123230219 | F117: -0.006188099132 | G117: 0
A118: 117 | B118: 2021-07-02 | C118: 0.008510689668 | D118: 0 | E118: 0.006383015614 | F118: 0.002490630137 | G118: 0.04447443576
A119: 118 | B119: 2021-07-05 | C119: 0.008438868646 | D119: -0.03657262278 | E119: 0.002114139264 | F119: 0.001242275813 | G119: 0.03354836129
A120: 119 | B120: 2021-07-06 | C120: 0.008368249671 | D120: -0.005422993492 | E120: -0.004219358217 | F120: -0.003722094256 | G120: 0.01872659223
A121: 120 | B121: 2021-07-07 | C121: 0.008298802815 | D121: 0.003271537623 | E121: 0.004237236637 | F121: -0.002490630137 | G121: 0.006127451131
A122: 121 | B122: 2021-07-08 | C122: 0.008230499137 | D122: -0.001086956522 | E122: 0 | F122: -0.001248479363 | G122: 0.01339828291
A123: 122 | B123: 2021-07-09 | C123: 0.008163310639 | D123: 0.01741022851 | E123: 0.001054839554 | F123: -0.006249980062 | G123: 0.0120192312
A124: 123 | B124: 2021-07-12 | C124: 0.008097210233 | D124: -0.009625668449 | E124: -0.002107456081 | F124: -0.01006288292 | G124: 0.01900244723
A125: 124 | B125: 2021-07-13 | C125: 0.008032171697 | D125: 0.004319654428 | E125: -0.001055953416 | F125: -0.006353219693 | G125: -0.008158566148
A126: 125 | B126: 2021-07-14 | C126: 0.007968169649 | D126: 0.02258064516 | E126: 0.002114139264 | F126: 0.01790271026 | G126: -0.01527608732
A127: 126 | B127: 2021-07-15 | C127: 0.007905179507 | D127: 0.006309148265 | E127: 0.008438829542 | F127: -0.00502506563 | G127: -0.009546574837
A128: 127 | B128: 2021-07-16 | C128: 0.007843177461 | D128: -0.03970741902 | E128: 0.007322199197 | F128: -0.005050555556 | G128: 0.07951804819
A129: 128 | B129: 2021-07-19 | C129: 0.007782140442 | D129: 0.001088139282 | E129: -0.009345792311 | F129: 0.003807116945 | G129: 0.02343748936
A130: 129 | B130: 2021-07-20 | C130: 0.007722046094 | D130: -0.008695652174 | E130: 0 | F130: -0.001264151758 | G130: -0.07633588036
A131: 130 | B131: 2021-07-21 | C131: =LN(A132/A131) -> 0.007662872746 | D131: 0.007675438596 | E131: 0.006289344228 | F131: -0.005063341618 | G131: 0.02361275172
A132: 131 | B132: 2021-07-22 | C132: 0.007604599385 | D132: 0.01523394995 | E132: -0.001041653985 | F132: -0.001272305369 | G132: 0.005767012887
A133: 132 | B133: 2021-07-23 | C133: 0.007547205635 | D133: -0.01071811361 | E133: -0.008342033084 | F133: -0.003821554374 | G133: 0.02866972576
A134: 133 | B134: 2021-07-26 | C134: 0.007490671729 | D134: 0.01625135428 | E134: 0.002103023813 | F134: 0.001278700715 | G134: -0.05128204185
A135: 134 | B135: 2021-07-27 | C135: 0.007434978488 | D135: -0.05117270789 | E135: -0.007345248862 | F135: -0.003831427959 | G135: -0.03407756837
A136: 135 | B136: 2021-07-28 | C136: 0.007380107298 | D136: 0.04831460674 | E136: 0.002114139264 | F136: 0.00384616426 | G136: 0.01094891767
A137: 136 | B137: 2021-07-29 | C137: 0.007326040092 | D137: -0.02465166131 | E137: 0.001054839554 | F137: 0.003831427959 | G137: -0.03008423658
A138: 137 | B138: 2021-07-30 | C138: 0.007272759329 | D138: 0.02637362637 | E138: 0.00105372804 | F138: 0.01145041245 | G138: 0.0310173705
A139: 138 | B139: 2021-08-02 | C139: 0.007220247973 | D139: 0.004282655246 | E139: 0 | F139: -0.001257901874 | G139: 0.05655842495
A140: 139 | B140: 2021-08-03 | C140: 0.007168489479 | D140: 0.01279317697 | E140: 0.005263207201 | F140: -0.003778347721 | G140: 0.004555740163
A141: 140 | B141: 2021-08-04 | C141: 0.007117467769 | D141: 0.01157894737 | E141: 0 | F141: -0.005056829535 | G141: 0.001133854914
A142: 141 | B142: 2021-08-05 | C142: 0.007067167223 | D142: -0.02601456816 | E142: 0.002094215443 | F142: -0.001270688665 | G142: -0.01132502793
A143: 142 | B143: 2021-08-06 | C143: 0.007017572659 | D143: -0.01602564103 | E143: 0 | F143: -0.006361302928 | G143: -0.07331043276
A144: 143 | B144: 2021-08-09 | C144: 0.006968669316 | D144: 0.00108577633 | E144: 0.008359467524 | F144: -0.001280450704 | G144: 0.0234857967
A145: 144 | B145: 2021-08-10 | C145: 0.006920442845 | D145: -0.01301518438 | E145: 0.01761658918 | F145: 0.008974420881 | G145: -0.06763292025
A146: 145 | B146: 2021-08-11 | C146: 0.006872879288 | D146: -0.006593406593 | E146: -0.01221992035 | F146: -0.002541377331 | G146: 0.02072546713
A147: 146 | B147: 2021-08-12 | C147: 0.00682596507 | D147: 0.006637168142 | E147: -0.001030915299 | F147: -0.006369406759 | G147: -0.03553303164
A148: 147 | B148: 2021-08-13 | C148: 0.006779686985 | D148: -0.00989010989 | E148: -0.01444792987 | F148: -0.00641023616 | G148: 0.002631539474
A149: 148 | B149: 2021-08-16 | C149: 0.006734032181 | D149: 0 | E149: 0 | F149: 0 | G149: 0
A150: 149 | B150: 2021-08-17 | C150: 0.006688988151 | D150: 0.01220865705 | E150: 0.01047118949 | F150: -0.001290363898 | G150: 0.01181103721
A151: 150 | B151: 2021-08-18 | C151: 0.006644542719 | D151: -0.02631578947 | E151: -0.003108770638 | F151: -0.007751845442 | G151: -0.05317766675
A152: 151 | B152: 2021-08-19 | C152: 0.006600684031 | D152: -0.01689189189 | E152: -0.005197553513 | F152: -0.002604249919 | G152: 0.05753420548
A153: 152 | B153: 2021-08-20 | C153: 0.006557400546 | D153: 0.04352806415 | E153: 0.004179789784 | F153: 0.01305490408 | G153: 0.003886049374
A154: 153 | B154: 2021-08-23 | C154: 0.006514681021 | D154: -0.002195389682 | E154: -0.002081140142 | F154: 0.01159785543 | G154: -0.01935483871
A155: 154 | B155: 2021-08-24 | C155: 0.006472514506 | D155: 0.002200220022 | E155: 0.001042740159 | F155: 0.008917259144 | G155: 0.01315789474
A156: 155 | B156: 2021-08-25 | C156: 0.00643089033 | D156: -0.02524698134 | E156: -0.006250035602 | F156: -0.005050555556 | G156: 0.04285718182
A157: 156 | B157: 2021-08-26 | C157: 0.006389798099 | D157: 0.009009009009 | E157: 0.002096410611 | F157: 0.003807116945 | G157: 0.02615191683
A158: 157 | B158: 2021-08-27 | C158: 0.006349227679 | D158: 0.01785714286 | E158: 0.01987446056 | F158: 0.002528526019 | G158: -0.02305827614
A159: 158 | B159: 2021-08-30 | C159: 0.006309169193 | D159: -0.01206140351 | E159: -0.006153771709 | F159: 0.006305149809 | G159: -0.02732915528
A160: 159 | B160: 2021-08-31 | C160: 0.006269613014 | D160: 0.02885682575 | E160: 0.00412791673 | F160: 0.01002505243 | G160: 0.002554240004
A161: 160 | B161: 2021-09-01 | C161: 0.006230549751 | D161: 0.006472491909 | E161: -0.006166530825 | F161: -0.002481359777 | G161: -0.03439486624
A162: 161 | B162: 2021-09-02 | C162: 0.006191970248 | D162: -0.01500535906 | E162: 0.007238906536 | F162: -0.002487641692 | G162: 0
A163: 162 | B163: 2021-09-03 | C163: 0.006153865574 | D163: -0.02502720348 | E163: 0.004106836537 | F163: -0.003740658503 | G163: -0.007915646125
A164: 163 | B164: 2021-09-06 | C164: 0.006116227017 | D164: 0.0078125 | E164: 0.004089929776 | F164: -0.003754703567 | G164: 0
A165: 164 | B165: 2021-09-07 | C165: 0.006079046076 | D165: 0.009966777409 | E165: -0.00601217941 | F165: -0.003768743946 | G165: 0.01462773995
A166: 165 | B166: 2021-09-08 | C166: 0.006042314456 | D166: -0.01206140351 | E166: -0.004237309547 | F166: 0 | G166: 0.01310615938
A167: 166 | B167: 2021-09-09 | C167: 0.00600602406 | D167: 0.02663706992 | E167: 0.005319148349 | F167: 0.005044075458 | G167: 0.02069856323
A168: 167 | B168: 2021-09-10 | C168: 0.005970166987 | D168: 0.002162162162 | E168: 0.004232825715 | F168: 0.002509380226 | G168: -0.01774400462
A169: 168 | B169: 2021-09-13 | C169: 0.00593473552 | D169: 0.02157497303 | E169: 0.007376140782 | F169: 0 | G169: 0.007741909677
A170: 169 | B170: 2021-09-14 | C170: 0.005899722127 | D170: -0.01267159451 | E170: -0.001046003319 | F170: 0.002503209137 | G170: -0.02432779832
A171: 170 | B171: 2021-09-15 | C171: 0.005865119452 | D171: 0.001069518717 | E171: 0.01570680458 | F171: 0.003745328227 | G171: 0.003937047399
A172: 171 | B172: 2021-09-16 | C172: 0.005830920311 | D172: 0.004273504274 | E172: -0.01546391587 | F172: -0.001243820846 | G172: -0.01045755556
A173: 172 | B173: 2021-09-17 | C173: 0.005797117684 | D173: -0.03085106383 | E173: -0.01256540023 | F173: -0.011208 | G173: 0
A174: 173 | B174: 2021-09-22 | C174: 0.005763704717 | D174: 0.004390779363 | E174: 0.01696710159 | F174: -0.001259375353 | G174: 0.04095120374
A175: 174 | B175: 2021-09-23 | C175: 0.005730674709 | D175: 0.005464480874 | E175: 0 | F175: 0.002522037729 | G175: 0.04695427486
A176: 175 | B176: 2021-09-24 | C176: 0.005698021115 | D176: 0.04239130435 | E176: -0.004171032556 | F176: 0.0276729557 | G176: -0.00121209697
A177: 176 | B177: 2021-09-27 | C177: 0.005665737536 | D177: -0.002085505735 | E177: 0.004188502938 | F177: -0.008567990124 | G177: -0.04490297221
A178: 177 | B178: 2021-09-28 | C178: 0.005633817718 | D178: -0.04597701149 | E178: -0.002085570345 | F178: -0.01234564012 | G178: -0.07115627971
A179: 178 | B179: 2021-09-29 | C179: 0.005602255549 | D179: -0.008762322015 | E179: -0.00104491034 | F179: 0.001250040013 | G179: 0.009575992054
A180: 179 | B180: 2021-09-30 | C180: 0.005571045049 | D180: -0.02209944751 | E180: -0.01046025014 | F180: -0.009987505319 | G180: -0.01761521609
A181: 180 | B181: 2021-10-01 | C181: 0.005540180376 | D181: 0.00790960452 | E181: 0.001057060436 | F181: -0.005044186429 | G181: -0.04827586207
A182: 181 | B182: 2021-10-04 | C182: 0.005509655811 | D182: -0.02802690583 | E182: -0.003167832717 | F182: 0.0063371154 | G182: 0.02318837681
A183: 182 | B183: 2021-10-05 | C183: 0.005479465765 | D183: 0.00461361015 | E183: 0.003177899772 | F183: -0.006297209258 | G183: 0.001416416471
A184: 183 | B184: 2021-10-06 | C184: 0.005449604768 | D184: 0.04592422503 | E184: 0.006335884441 | F184: 0.01013940695 | G184: 0.02687413127
A185: 184 | B185: 2021-10-07 | C185: 0.005420067469 | D185: -0.001097694841 | E185: -0.003147996876 | F185: 0.002509380226 | G185: 0.01928377464
A186: 185 | B186: 2021-10-08 | C186: 0.005390848635 | D186: -0.02527472527 | E186: -0.001052609632 | F186: -0.006257802566 | G186: 0.06621624324
A187: 186 | B187: 2021-10-12 | C187: 0.005361943141 | D187: -0.0281848929 | E187: -0.005268703208 | F187: -0.005037723074 | G187: -0.02027882078
A188: 187 | B188: 2021-10-13 | C188: 0.005333345975 | D188: -0.02552204176 | E188: 0 | F188: 0.005063230226 | G188: -0.03622254711
A189: 188 | B189: 2021-10-14 | C189: 0.00530505223 | D189: 0.02023809524 | E189: 0.006355909395 | F189: -0.002518861537 | G189: 0.06040268456
A190: 189 | B190: 2021-10-15 | C190: 0.005277057101 | D190: 0.01166861144 | E190: 0 | F190: 0.005050444444 | G190: 0.01898734177
A191: 190 | B191: 2021-10-18 | C191: 0.005249355886 | D191: 0.03575547866 | E191: 0 | F191: 0.005025176182 | G191: 0.01863354037
A192: 191 | B192: 2021-10-19 | C192: 0.005221943981 | D192: 0.003340757238 | E192: 0.001052609632 | F192: -0.003750010038 | G192: -0.01097563415
A193: 192 | B193: 2021-10-20 | C193: 0.005194816877 | D193: 0.01331853496 | E193: 0 | F193: -0.01003763132 | G193: 0
A194: 193 | B194: 2021-10-21 | C194: 0.005167970158 | D194: 0.01423877327 | E194: 0 | F194: 0.008871939253 | G194: 0.06781751092
A195: 194 | B195: 2021-10-22 | C195: =LN(A196/A195) -> 0.0051413995 | D195: 0.01295896328 | E195: -0.002103005621 | F195: 0.005025176182 | G195: 0.005773672189
A196: 195 | B196: 2021-10-25 | C196: 0.005115100667 | D196: 0.008528784648 | E196: 0.004214984421 | F196: 0.00500005005 | G196: 0.01377732523
A197: 196 | B197: 2021-10-26 | C197: 0.005089069507 | D197: -0.00422832981 | E197: -0.003147996876 | F197: -0.004975173931 | G197: -0.001132570743
A198: 197 | B198: 2021-10-27 | C198: 0.005063301957 | D198: -0.006369426752 | E198: 0.001052609632 | F198: 0.003750010038 | G198: 0.03061230263
A199: 198 | B199: 2021-10-28 | C199: 0.00503779403 | D199: -0.02457264957 | E199: -0.005257623096 | F199: -0.003736 | G199: 0.01100109987
A200: 199 | B200: 2021-10-29 | C200: 0.005012541824 | D200: 0.009857612267 | E200: 0.001057060436 | F200: 0.002499970025 | G200: 0.04026110903
... 321 more rows

Sheet 台灣美元兌新台幣匯率(元)(USD)
A1: 台灣美元兌新台幣匯率(元)(USD)
A2: 年月 | B2: 數值
A3: 2017/12 | B3: 29.848 | C3: =(B3-B4)/B3 -> 0.02338515143
A4: 2018/01 | B4: 29.15 | C4: =(B4-B5)/B4 -> -0.002744425386
A5: 2018/02 | B5: 29.23 | C5: 0.003763256928
A6: 2018/03 | B6: 29.12 | C6: -0.01665521978
A7: 2018/04 | B7: 29.605 | C7: -0.01266677926
A8: 2018/05 | B8: 29.98 | C8: -0.0173448966
A9: 2018/06 | B9: 30.5 | C9: -0.003737704918
A10: 2018/07 | B10: 30.614 | C10: -0.003821780885
A11: 2018/08 | B11: 30.731 | C11: 0.005857277668
A12: 2018/09 | B12: 30.551 | C12: -0.01364930771
A13: 2018/10 | B13: 30.968 | C13: 0.003810384913
A14: 2018/11 | B14: 30.85 | C14: 0.003792544571
A15: 2018/12 | B15: 30.733 | C15: -0.0002277681971
A16: 2019/01 | B16: 30.74 | C16: -0.001138581653
A17: 2019/02 | B17: 30.775 | C17: -0.00162469537
A18: 2019/03 | B18: 30.825 | C18: -0.002595296026
A19: 2019/04 | B19: 30.905 | C19: -0.02287655719
A20: 2019/05 | B20: 31.612 | C20: 0.01708212071
A21: 2019/06 | B21: 31.072 | C21: -0.0007723995881
A22: 2019/07 | B22: 31.096 | C22: -0.01009776177
A23: 2019/08 | B23: 31.41 | C23: 0.01171601401
A24: 2019/09 | B24: 31.042 | C24: 0.01868436312
A25: 2019/10 | B25: 30.462 | C25: -0.001674217057
A26: 2019/11 | B26: 30.513 | C26: 0.013338577
A27: 2019/12 | B27: 30.106 | C27: -0.004783099714
A28: 2020/01 | B28: 30.25 | C28: -0.002644628099
A29: 2020/02 | B29: 30.33 | C29: 0.002505769865
A30: 2020/03 | B30: 30.254 | C30: 0.0149401732
A31: 2020/04 | B31: 29.802 | C31: -0.007717602845
A32: 2020/05 | B32: 30.032 | C32: 0.01238678743
A33: 2020/06 | B33: 29.66 | C33: 0.005327039784
A34: 2020/07 | B34: 29.502 | C34: -0.0008135041692
A35: 2020/08 | B35: 29.526 | C35: 0.01354738197
A36: 2020/09 | B36: 29.126 | C36: 0.006901050608
A37: 2020/10 | B37: 28.925 | C37: 0.00349178911
A38: 2020/11 | B38: 28.824 | C38: 0.01096308632
A39: 2020/12 | B39: 28.508 | C39: 0.003367475796
A40: 2021/01 | B40: 28.412 | C40: 0.003730817964
A41: 2021/02 | B41: 28.306 | C41: -0.007948844768
A42: 2021/03 | B42: 28.531 | C42: 0.0203638148
A43: 2021/04 | B43: 27.95 | C43: 0.01048300537
A44: 2021/05 | B44: 27.657 | C44: -0.007701486061
A45: 2021/06 | B45: 27.87 | C45: -0.003444564047
A46: 2021/07 | B46: 27.966 | C46: 0.006936994922
A47: 2021/08 | B47: 27.772 | C47: -0.003384704018
A48: 2021/09 | B48: 27.866 | C48: 0.001650757195
A49: 2021/10 | B49: 27.82 | C49: 0.0003594536305
A50: 2021/11 | B50: 27.81 | C50: 0.004314994606
A51: 2021/12 | B51: 27.69 | C51: -0.004983748646
A52: 2022/01 | B52: 27.828 | C52: -0.006935460687
A53: 2022/02 | B53: 28.021 | C53: -0.02144819956
A54: 2022/03 | B54: 28.622 | C54: -0.02997694081
A55: 2022/04 | B55: 29.48 | C55: 0.01407734057
A56: 2022/05 | B56: 29.065 | C56: -0.02274212971
A57: 2022/06 | B57: 29.726 | C57: -0.007131803808
A58: 2022/07 | B58: 29.938 | C58: -0.01660097535
A59: 2022/08 | B59: 30.435 | C59: -0.04297683588
A60: 2022/09 | B60: 31.743 | C60: -0.01471190499
A61: 2022/10 | B61: 32.21 | C61: 0.04060850667
A62: 2022/11 | B62: 30.902 | C62: 0.006277910815
A63: 2022/12 | B63: 30.708 | C63: 0.0213625114
A64: 2023/01 | B64: 30.052 | C64: -0.01424198057
A65: 2023/02 | B65: 30.48 | C65: 0.0008530183727
A66: 2023/03 | B66: 30.454 | C66: -0.003795888882
A67: 2023/04 | B67: 30.5696 | C67: 1

Sheet 台灣重貼現率-月（百分比）
A1: 證券代碼 | B1: 年月 | C1: 數值
A2: MB0101 台灣-中央銀行-重貼現率-月(百分比) | B2: 202005 | C2: 1.125
A3: MB0101 台灣-中央銀行-重貼現率-月(百分比) | B3: 202006 | C3: 1.125
A4: MB0101 台灣-中央銀行-重貼現率-月(百分比) | B4: 202007 | C4: 1.125
A5: MB0101 台灣-中央銀行-重貼現率-月(百分比) | B5: 202008 | C5: 1.125
A6: MB0101 台灣-中央銀行-重貼現率-月(百分比) | B6: 202009 | C6: 1.125
A7: MB0101 台灣-中央銀行-重貼現率-月(百分比) | B7: 202010 | C7: 1.125
A8: MB0101 台灣-中央銀行-重貼現率-月(百分比) | B8: 202011 | C8: 1.125
A9: MB0101 台灣-中央銀行-重貼現率-月(百分比) | B9: 202012 | C9: 1.125
A10: MB0101 台灣-中央銀行-重貼現率-月(百分比) | B10: 202101 | C10: 1.125
A11: MB0101 台灣-中央銀行-重貼現率-月(百分比) | B11: 202102 | C11: 1.125
A12: MB0101 台灣-中央銀行-重貼現率-月(百分比) | B12: 202103 | C12: 1.125
A13: MB0101 台灣-中央銀行-重貼現率-月(百分比) | B13: 202104 | C13: 1.125
A14: MB0101 台灣-中央銀行-重貼現率-月(百分比) | B14: 202105 | C14: 1.125
A15: MB0101 台灣-中央銀行-重貼現率-月(百分比) | B15: 202106 | C15: 1.125
A16: MB0101 台灣-中央銀行-重貼現率-月(百分比) | B16: 202107 | C16: 1.125
A17: MB0101 台灣-中央銀行-重貼現率-月(百分比) | B17: 202108 | C17: 1.125
A18: MB0101 台灣-中央銀行-重貼現率-月(百分比) | B18: 202109 | C18: 1.125
A19: MB0101 台灣-中央銀行-重貼現率-月(百分比) | B19: 202110 | C19: 1.125
A20: MB0101 台灣-中央銀行-重貼現率-月(百分比) | B20: 202111 | C20: 1.125
A21: MB0101 台灣-中央銀行-重貼現率-月(百分比) | B21: 202112 | C21: 1.125
A22: MB0101 台灣-中央銀行-重貼現率-月(百分比) | B22: 202201 | C22: 1.125
A23: MB0101 台灣-中央銀行-重貼現率-月(百分比) | B23: 202202 | C23: 1.125
A24: MB0101 台灣-中央銀行-重貼現率-月(百分比) | B24: 202203 | C24: 1.375
A25: MB0101 台灣-中央銀行-重貼現率-月(百分比) | B25: 202204 | C25: 1.375
A26: MB0101 台灣-中央銀行-重貼現率-月(百分比) | B26: 202205 | C26: 1.375
A27: MB0101 台灣-中央銀行-重貼現率-月(百分比) | B27: 202206 | C27: 1.5
A28: MB0101 台灣-中央銀行-重貼現率-月(百分比) | B28: 202207 | C28: 1.5
A29: MB0101 台灣-中央銀行-重貼現率-月(百分比) | B29: 202208 | C29: 1.5
A30: MB0101 台灣-中央銀行-重貼現率-月(百分比) | B30: 202209 | C30: 1.625
A31: MB0101 台灣-中央銀行-重貼現率-月(百分比) | B31: 202210 | C31: 1.625
A32: MB0101 台灣-中央銀行-重貼現率-月(百分比) | B32: 202211 | C32: 1.625
A33: MB0101 台灣-中央銀行-重貼現率-月(百分比) | B33: 202212 | C33: 1.75
A34: MB0101 台灣-中央銀行-重貼現率-月(百分比) | B34: 202301 | C34: 1.75
A35: MB0101 台灣-中央銀行-重貼現率-月(百分比) | B35: 202302 | C35: 1.75
A36: MB0101 台灣-中央銀行-重貼現率-月(百分比) | B36: 202303 | C36: 1.875
A37: MB0101 台灣-中央銀行-重貼現率-月(百分比) | B37: 202304 | C37: 1.875

Sheet 美國十年期公債殖利率（百分比）
A1: 證券代碼 | B1: 年月 | C1: 數值
A2: CA15 美國十年期公債殖利率(百分比) | B2: 202005 | C2: 0.67
A3: CA15 美國十年期公債殖利率(百分比) | B3: 202006 | C3: 0.73
A4: CA15 美國十年期公債殖利率(百分比) | B4: 202007 | C4: 0.62
A5: CA15 美國十年期公債殖利率(百分比) | B5: 202008 | C5: 0.65
A6: CA15 美國十年期公債殖利率(百分比) | B6: 202009 | C6: 0.68
A7: CA15 美國十年期公債殖利率(百分比) | B7: 202010 | C7: 0.79
A8: CA15 美國十年期公債殖利率(百分比) | B8: 202011 | C8: 0.87
A9: CA15 美國十年期公債殖利率(百分比) | B9: 202012 | C9: 0.93
A10: CA15 美國十年期公債殖利率(百分比) | B10: 202101 | C10: 1.08
A11: CA15 美國十年期公債殖利率(百分比) | B11: 202102 | C11: 1.26
A12: CA15 美國十年期公債殖利率(百分比) | B12: 202103 | C12: 1.61
A13: CA15 美國十年期公債殖利率(百分比) | B13: 202104 | C13: 1.64
A14: CA15 美國十年期公債殖利率(百分比) | B14: 202105 | C14: 1.62
A15: CA15 美國十年期公債殖利率(百分比) | B15: 202106 | C15: 1.52
A16: CA15 美國十年期公債殖利率(百分比) | B16: 202107 | C16: 1.32
A17: CA15 美國十年期公債殖利率(百分比) | B17: 202108 | C17: 1.28
A18: CA15 美國十年期公債殖利率(百分比) | B18: 202109 | C18: 1.37
A19: CA15 美國十年期公債殖利率(百分比) | B19: 202110 | C19: 1.58
A20: CA15 美國十年期公債殖利率(百分比) | B20: 202111 | C20: 1.56
A21: CA15 美國十年期公債殖利率(百分比) | B21: 202112 | C21: 1.47
A22: CA15 美國十年期公債殖利率(百分比) | B22: 202201 | C22: 1.76
A23: CA15 美國十年期公債殖利率(百分比) | B23: 202202 | C23: 1.93
A24: CA15 美國十年期公債殖利率(百分比) | B24: 202203 | C24: 2.13
A25: CA15 美國十年期公債殖利率(百分比) | B25: 202204 | C25: 2.75
A26: CA15 美國十年期公債殖利率(百分比) | B26: 202205 | C26: 2.9
A27: CA15 美國十年期公債殖利率(百分比) | B27: 202206 | C27: 3.14
A28: CA15 美國十年期公債殖利率(百分比) | B28: 202207 | C28: 2.9
A29: CA15 美國十年期公債殖利率(百分比) | B29: 202208 | C29: 2.9
A30: CA15 美國十年期公債殖利率(百分比) | B30: 202209 | C30: 3.52
A31: CA15 美國十年期公債殖利率(百分比) | B31: 202210 | C31: 3.98
A32: CA15 美國十年期公債殖利率(百分比) | B32: 202211 | C32: 3.89
A33: CA15 美國十年期公債殖利率(百分比) | B33: 202212 | C33: 3.62
A34: CA15 美國十年期公債殖利率(百分比) | B34: 202301 | C34: 3.53
A35: CA15 美國十年期公債殖利率(百分比) | B35: 202302 | C35: 3.75
A36: CA15 美國十年期公債殖利率(百分比) | B36: 202303 | C36: 3.66
A37: CA15 美國十年期公債殖利率(百分比) | B37: 202304 | C37: 3.46

Sheet 消費者物價指數ＣＰＩ
A1: 2021/01-2023/03 | B1: 台灣CPI | C1: 美國CPI
A2: 2021-01-01 | B2: -0.19 | C2: 0.003
A3: 2021-02-01 | B3: 1.38 | C3: 0.004
A4: 2021-03-01 | B4: 1.22 | C4: 0.026
A5: 2021-04-01 | B5: 2.11 | C5: 0.042
A6: 2021-05-01 | B6: 2.45 | C6: 0.05
A7: 2021-06-01 | B7: 1.83 | C7: 0.054
A8: 2021-07-01 | B8: 1.91 | C8: 0.054
A9: 2021-08-01 | B9: 2.34 | C9: 0.053
A10: 2021-09-01 | B10: 2.6 | C10: 0.054
A11: 2021-10-01 | B11: 2.55 | C11: 0.062
A12: 2021-11-01 | B12: 2.84 | C12: 0.068
A13: 2021-12-01 | B13: 2.63 | C13: 0.07
A14: 2022-01-01 | B14: 2.83 | C14: 0.075
A15: 2022-02-01 | B15: 2.33 | C15: 0.079
A16: 2022-03-01 | B16: 3.27 | C16: 0.085
A17: 2022-04-01 | B17: 3.37 | C17: 0.083
A18: 2022-05-01 | B18: 3.39 | C18: 0.086
A19: 2022-06-01 | B19: 3.59 | C19: 0.091
A20: 2022-07-01 | B20: 3.35 | C20: 0.085
A21: 2022-08-01 | B21: 2.68 | C21: 0.083
A22: 2022-09-01 | B22: 2.76 | C22: 0.082
A23: 2022-10-01 | B23: 2.74 | C23: 0.077
A24: 2022-11-01 | B24: 2.35 | C24: 0.071
A25: 2022-12-01 | B25: 2.71 | C25: 0.065
A26: 2023-01-01 | B26: 3.05 | C26: 0.064
A27: 2023-02-01 | B27: 2.42 | C27: 0.06
A28: 2023-03-01 | B28: 2.35 | C28: 0.05

Sheet PPP
A1: 變動匯率 | B1: 台灣CPI | C1: 美國CPI | D1: (Id-If)/(1+If) | E1: 變動匯率 | G1: 摘要輸出
A2: 0.003730817964 | B2: -0.0019 | C2: 0.003 | D2: =(B2-C2)/(1+C2) -> -0.004885343968 | E2: 0.003730817964
A3: -0.007948844768 | B3: 0.0138 | C3: 0.004 | D3: =(B3-C3)/(1+C3) -> 0.009760956175 | E3: -0.007948844768 | G3: 迴歸統計
A4: 0.0203638148 | B4: 0.0122 | C4: 0.026 | D4: -0.0134502924 | E4: 0.0203638148 | G4: R 的倍數 | H4: 0.2901582864
A5: 0.01048300537 | B5: 0.0211 | C5: 0.042 | D5: -0.02005758157 | E5: 0.01048300537 | G5: R 平方 | H5: 0.08419183119
A6: -0.007701486061 | B6: 0.0245 | C6: 0.05 | D6: -0.02428571429 | E6: -0.007701486061 | G6: 調整的 R 平方 | H6: 0.04755950444
A7: -0.003444564047 | B7: 0.0183 | C7: 0.054 | D7: -0.03387096774 | E7: -0.003444564047 | G7: 標準誤 | H7: 0.0165021892
A8: 0.006936994922 | B8: 0.0191 | C8: 0.054 | D8: -0.03311195446 | E8: 0.006936994922 | G8: 觀察值個數 | H8: 27
A9: -0.003384704018 | B9: 0.0234 | C9: 0.053 | D9: -0.02811016144 | E9: -0.003384704018
A10: 0.001650757195 | B10: 0.026 | C10: 0.054 | D10: -0.0265654649 | E10: 0.001650757195 | G10: ANOVA
A11: 0.0003594536305 | B11: 0.0255 | C11: 0.062 | D11: -0.03436911488 | E11: 0.0003594536305 | H11: 自由度 | I11: SS | J11: MS | K11: F | L11: 顯著值
A12: 0.004314994606 | B12: 0.0284 | C12: 0.068 | D12: -0.03707865169 | E12: 0.004314994606 | G12: 迴歸 | H12: 1 | I12: 0.000625876399 | J12: 0.000625876399 | K12: 2.298293301 | L12: 0.1420597243
A13: -0.004983748646 | B13: 0.0263 | C13: 0.07 | D13: -0.0408411215 | E13: -0.004983748646 | G13: 殘差 | H13: 25 | I13: 0.006808056207 | J13: 0.0002723222483
A14: -0.006935460687 | B14: 0.0283 | C14: 0.075 | D14: -0.04344186047 | E14: -0.006935460687 | G14: 總和 | H14: 26 | I14: 0.007433932606
A15: -0.02144819956 | B15: 0.0233 | C15: 0.079 | D15: -0.0516218721 | E15: -0.02144819956
A16: -0.02997694081 | B16: 0.0327 | C16: 0.085 | D16: -0.04820276498 | E16: -0.02997694081 | H16: 係數 | I16: 標準誤 | J16: t 統計 | K16: P-值 | L16: 下限 95% | M16: 上限 95% | N16: 下限 95.0% | O16: 上限 95.0%
A17: 0.01407734057 | B17: 0.0337 | C17: 0.083 | D17: -0.04552169898 | E17: 0.01407734057 | G17: 截距 | H17: 0.008481643499 | I17: 0.008122610701 | J17: 1.04420165 | K17: 0.3063844614 | L17: -0.008247186389 | M17: 0.02521047339 | N17: -0.008247186389 | O17: 0.02521047339
A18: -0.02274212971 | B18: 0.0339 | C18: 0.086 | D18: -0.04797421731 | E18: -0.02274212971 | G18: (Id-If)/(1+IF) | H18: 0.3254546916 | I18: 0.2146781336 | J18: 1.516012303 | K18: 0.1420597243 | L18: -0.116683201 | M18: 0.7675925842 | N18: -0.116683201 | O18: 0.7675925842
A19: -0.007131803808 | B19: 0.0359 | C19: 0.091 | D19: -0.05050412466 | E19: -0.007131803808
A20: -0.01660097535 | B20: 0.0335 | C20: 0.085 | D20: -0.04746543779 | E20: -0.01660097535
A21: -0.04297683588 | B21: 0.0268 | C21: 0.083 | D21: -0.05189289012 | E21: -0.04297683588
A22: -0.01471190499 | B22: 0.0276 | C22: 0.082 | D22: -0.05027726433 | E22: -0.01471190499
A23: 0.04060850667 | B23: 0.0274 | C23: 0.077 | D23: -0.0460538533 | E23: 0.04060850667
A24: 0.006277910815 | B24: 0.0235 | C24: 0.071 | D24: -0.04435107376 | E24: 0.006277910815
A25: 0.0213625114 | B25: 0.0271 | C25: 0.065 | D25: -0.03558685446 | E25: 0.0213625114
A26: -0.01424198057 | B26: 0.0305 | C26: 0.064 | D26: -0.03148496241 | E26: -0.01424198057
A27: 0.0008530183727 | B27: 0.0242 | C27: 0.06 | D27: -0.03377358491 | E27: 0.0008530183727
A28: -0.003795888882 | B28: 0.0235 | C28: 0.05 | D28: -0.02523809524 | E28: -0.003795888882

Sheet UIRP
A1: 變動匯率 | B1: 台灣重貼現率 | C1: 美國十年期公債殖利率 | D1: (rd-rf)/(1+rf) | E1: 變動匯率 | G1: 摘要輸出
A2: 0.003730817964 | B2: 1.125 | C2: 1.08 | D2: =(B2-C2)/(1+C2) -> 0.02163461538 | E2: 0.003730817964
A3: -0.007948844768 | B3: 1.125 | C3: 1.26 | D3: =(B3-C3)/(1+C3) -> -0.05973451327 | E3: -0.007948844768 | G3: 迴歸統計
A4: 0.0203638148 | B4: 1.125 | C4: 1.61 | D4: -0.1858237548 | E4: 0.0203638148 | G4: R 的倍數 | H4: 0.01063198955
A5: 0.01048300537 | B5: 1.125 | C5: 1.64 | D5: -0.1950757576 | E5: 0.01048300537 | G5: R 平方 | H5: 0.0001130392018
A6: -0.007701486061 | B6: 1.125 | C6: 1.62 | D6: -0.1889312977 | E6: -0.007701486061 | G6: 調整的 R 平方 | H6: -0.03988243923
A7: -0.003444564047 | B7: 1.125 | C7: 1.52 | D7: -0.1567460317 | E7: -0.003444564047 | G7: 標準誤 | H7: 0.01724307662
A8: 0.006936994922 | B8: 1.125 | C8: 1.32 | D8: -0.08405172414 | E8: 0.006936994922 | G8: 觀察值個數 | H8: 27
A9: -0.003384704018 | B9: 1.125 | C9: 1.28 | D9: -0.06798245614 | E9: -0.003384704018
A10: 0.001650757195 | B10: 1.125 | C10: 1.37 | D10: -0.1033755274 | E10: 0.001650757195 | G10: ANOVA
A11: 0.0003594536305 | B11: 1.125 | C11: 1.58 | D11: -0.1763565891 | E11: 0.0003594536305 | H11: 自由度 | I11: SS | J11: MS | K11: F | L11: 顯著值
A12: 0.004314994606 | B12: 1.125 | C12: 1.56 | D12: -0.169921875 | E12: 0.004314994606 | G12: 迴歸 | H12: 1 | I12: 8.403258079e-07 | J12: 8.403258079e-07 | K12: 0.002826299527 | L12: 0.958024618
A13: -0.004983748646 | B13: 1.125 | C13: 1.47 | D13: -0.1396761134 | E13: -0.004983748646 | G13: 殘差 | H13: 25 | I13: 0.00743309228 | J13: 0.0002973236912
A14: -0.006935460687 | B14: 1.125 | C14: 1.76 | D14: -0.2300724638 | E14: -0.006935460687 | G14: 總和 | H14: 26 | I14: 0.007433932606
A15: -0.02144819956 | B15: 1.125 | C15: 1.93 | D15: -0.2747440273 | E15: -0.02144819956
A16: -0.02997694081 | B16: 1.375 | C16: 2.13 | D16: -0.2412140575 | E16: -0.02997694081 | H16: 係數 | I16: 標準誤 | J16: t 統計 | K16: P-值 | L16: 下限 95% | M16: 上限 95% | N16: 下限 95.0% | O16: 上限 95.0%
A17: 0.01407734057 | B17: 1.375 | C17: 2.75 | D17: -0.3666666667 | E17: 0.01407734057 | G17: 截距 | H17: -0.002520754196 | I17: 0.007060788708 | J17: -0.3570074535 | K17: 0.7240821578 | L17: -0.01706272075 | M17: 0.01202121236 | N17: -0.01706272075 | O17: 0.01202121236
A18: -0.02274212971 | B18: 1.375 | C18: 2.9 | D18: -0.391025641 | E18: -0.02274212971 | G18: (rd-rf)/(1+rf) | H18: 0.001263382233 | I18: 0.02376433534 | J18: 0.05316295258 | K18: 0.958024618 | L18: -0.04768018258 | M18: 0.05020694704 | N18: -0.04768018258 | O18: 0.05020694704
A19: -0.007131803808 | B19: 1.5 | C19: 3.14 | D19: -0.3961352657 | E19: -0.007131803808
A20: -0.01660097535 | B20: 1.5 | C20: 2.9 | D20: -0.358974359 | E20: -0.01660097535
A21: -0.04297683588 | B21: 1.5 | C21: 2.9 | D21: -0.358974359 | E21: -0.04297683588
A22: -0.01471190499 | B22: 1.625 | C22: 3.52 | D22: -0.4192477876 | E22: -0.01471190499
A23: 0.04060850667 | B23: 1.625 | C23: 3.98 | D23: -0.4728915663 | E23: 0.04060850667
A24: 0.006277910815 | B24: 1.625 | C24: 3.89 | D24: -0.463190184 | E24: 0.006277910815
A25: 0.0213625114 | B25: 1.75 | C25: 3.62 | D25: -0.4047619048 | E25: 0.0213625114
A26: -0.01424198057 | B26: 1.75 | C26: 3.53 | D26: -0.3929359823 | E26: -0.01424198057
A27: 0.0008530183727 | B27: 1.75 | C27: 3.75 | D27: -0.4210526316 | E27: 0.0008530183727
A28: -0.003795888882 | B28: 1.875 | C28: 3.66 | D28: -0.3830472103 | E28: -0.003795888882
